Workbook

Sheet 1
B1: =N2 -> PRECIOS DE VISADO PARA LOS TRABAJOS PROFESIONALES v12.02 (21.01.26)
A2: COAM | N2: PRECIOS DE VISADO PARA LOS TRABAJOS PROFESIONALES v12.02 (21.01.26)
A3: . | B3: PREÁMBULO
A4: . | B4: Desde enero de 2005 el Colegio calcula el precio de visado a partir de los datos aportados por el colegiado en los correspondientes impresos colegiaes
B5: Este documento permite conocer con anterioridad al visado la cantidad que el Colegio facturará, mediante una hoja de cálculo que permite obtener estos valores que se puede consultar en el área de visado de la página web colegial.
B6: 1. NORMAS GENERALES
E7: Los trabajos se clasifican en:
F8: 1 Edificación.
F9: 2 Urbanismo.
F10: 3 Otros trabajos y documentos de arquitectura
C12: 1.1 DEFINICIONES
D13: 1.1.1 PRECIO DEL VISADO
D14: El precio del visado indica la cantidad que han de abonar los arquitectos colegiados o habilitados por el visado de sus trabajos profesionales.
D15: El arquitecto podrá solicitar al Colegio que el importe del Precio del Visado de su trabajo profesional sea facturado a él mismo o a su cliente
D16: 1.1.2 MÓDULO *
D17: El precio se estima en función de un Módulo M, cuyo valor será fijado anualmente por la Junta de Gobierno y hecho público en diciembre para su aplicación durante el siguiente ejercicio. Su valor puede ser consultado en el área de visado de la página web colegial. Su valor hasta la finalización del año natural 2026 es de 538,79 €. | N17: 538.79
D18: 1.1.3 MÓDULO POR HORA DE TRABAJO | N18: 0.21
D19: Se establece que el Módulo M equivale a diez horas-tipo de trabajo. El cálculo de la cuota de visado para los trabajos valorados por tiempo será igual a M/500 por hora de trabajo. | N19: =N17/500 -> 1.07758
D20: 1.1.4 CÓDIGOS
D21: Se han creado unos códigos para los tipos de trabajo y los tipos de uso que facilitan la introducción de datos. Los códigos de tipos de trabajo están en la Tabla T y los de uso en la tabla E1.

Sheet 2 (hidden)
B1: ='1'!B1 -> PRECIOS DE VISADO PARA LOS TRABAJOS PROFESIONALES v12.02 (21.01.26)
A2: COAM | N2: CUOTAS DE VISADO PARA LOS TRABAJOS PROFESIONALES v1.1
B3: 2. EDIFICACIÓN
B4: 2.1 OBRAS DE NUEVA PLANTA
M8: ='2.1.1B'!$G$13 -> 0
B10: 2.2 OBRAS DE CONSERVACIÓN, REPARACIÓN, REFORMA, REESTRUCTURACIÓN, AMPLIACIÓN, ACONDICIONAMIENTO, REHABILITACIÓN, CONSOLIDACIÓN Y/O RESTAURACIÓN
B14: 2.3 EXPEDIENTES DE LEGALIZACIÓN
B18: 2.4 PROYECTO Y DIRECCIÓN DE DERRIBO DE EDIFICACIONES
B24: 2.5 OTROS TRABAJOS DE ARQUITECTURA
B31: *

Sheet 3 (hidden)
B1: ='1'!B1 -> PRECIOS DE VISADO PARA LOS TRABAJOS PROFESIONALES v12.02 (21.01.26)
A2: COAM | R2: CUOTAS DE VISADO PARA LOS TRABAJOS PROFESIONALES v1
B3: 3. URBANISMO
B4: 3.1 TRABAJOS DE PLANEAMIENTO, DESARROLLO Y DETALLE | K4: 3.2 CUOTA PARA TRABAJOS DE GESTIÓN DEL PLANEAMIENTO
K10: 3.3 CUOTA PARA TRABAJOS DE URBANIZACIÓN
H22: ='3.1.7'!G19 -> 0

Sheet 4 (hidden)
B1: ='1'!B1 -> PRECIOS DE VISADO PARA LOS TRABAJOS PROFESIONALES v12.02 (21.01.26)
A2: COAM | R2: CUOTAS DE VISADO PARA LOS TRABAJOS PROFESIONALES v1
B3: 4. OTROS DOCUMENTOS Y TRABAJOS DE ARQUITECTURA
B4: 4.1 SEGURIDAD Y SALUD | K4: 4.4 RECONOCIMIENTOS, ANDAMIOS, EXÁMENES Y CONSULTAS
B8: 4.2 DESLINDES, REPLANTEOS Y MEDICIONES | K8: 4.5 INFORMES, PERITAJES, DICTÁMENES, CERTIFICADOS Y ARBITRAJES
K16: 4.6 OTROS TRABAJOS DE ARQUITECTURA Y DEL ARQUITECTO
B20: 4.3 TASACIONES

Sheet 2.1 (hidden)
A1: ='1'!$N$17 -> 538.79 | B1: COAM | C1: ='1'!B1 -> PRECIOS DE VISADO PARA LOS TRABAJOS PROFESIONALES v12.02 (21.01.26) | W1: =IVA -> 1.21
A2: FALSE | C2: 2.1 DETERMINACIÓN DEL PRECIO DEL VISADO PARA OBRAS DE NUEVA PLANTA | W2: 46
W3: 26
C4: Se calcula mediante la siguiente fórmula: | W4: 205
A5: FALSE | C5: PV = Módulo · C · [Σ.Si · Qv] · F / 6000 | W5: 0.1
W6: =B38 -> 
C7: Plantas | F7: Num. Plantas | O7: Codigo del Uso | Q7: Sup. Planta | S7: Total m2 Uso | U7: Qv | W7: =IF(W6*W5<W3,W3,IF(W6*W5>W4,W4,W6*W5)) -> 
C8: de | D8: A
B9: 1 | I9: =INDEX(USOS!$C$1:$C$65,$B9) -> 0 | O9: =INDEX(USOS!$B$1:$B$68,$B9) -> 0 | R9: m2 | S9: =Q9*F9 -> 0 | T9: m2 | U9: =INDEX(USOS!$C$1:$C$68,$B9) -> 0 | W9: =IF(U9<>"-",U9*S9,0) -> 0
B11: 1 | O11: =INDEX(USOS!$B$1:$B$68,$B11) -> 0 | R11: m2 | S11: =Q11*F11 -> 0 | T11: m2 | U11: =INDEX(USOS!$C$1:$C$68,$B11) -> 0 | W11: =IF(U11<>"-",U11*S11,0) -> 0
B13: 1 | O13: =INDEX(USOS!$B$1:$B$68,$B13) -> 0 | R13: m2 | S13: =Q13*F13 -> 0 | T13: m2 | U13: =INDEX(USOS!$C$1:$C$68,$B13) -> 0 | W13: =IF(U13<>"-",U13*S13,0) -> 0
B15: 1 | O15: =INDEX(USOS!$B$1:$B$68,$B15) -> 0 | R15: m2 | S15: =Q15*F15 -> 0 | T15: m2 | U15: =INDEX(USOS!$C$1:$C$68,$B15) -> 0 | W15: =IF(U15<>"-",U15*S15,0) -> 0
B17: 1 | O17: =INDEX(USOS!$B$1:$B$68,$B17) -> 0 | R17: m2 | S17: =Q17*F17 -> 0 | T17: m2 | U17: =INDEX(USOS!$C$1:$C$68,$B17) -> 0 | W17: =IF(U17<>"-",U17*S17,0) -> 0
B19: 1 | O19: =INDEX(USOS!$B$1:$B$68,$B19) -> 0 | R19: m2 | S19: =Q19*F19 -> 0 | T19: m2 | U19: =INDEX(USOS!$C$1:$C$68,$B19) -> 0 | W19: =IF(U19<>"-",U19*S19,0) -> 0
B21: 1 | O21: =INDEX(USOS!$B$1:$B$68,$B21) -> 0 | R21: m2 | S21: =Q21*F21 -> 0 | T21: m2 | U21: =INDEX(USOS!$C$1:$C$68,$B21) -> 0 | W21: =IF(U21<>"-",U21*S21,0) -> 0
B23: 1 | O23: =INDEX(USOS!$B$1:$B$68,$B23) -> 0 | R23: m2 | S23: =Q23*F23 -> 0 | T23: m2 | U23: =INDEX(USOS!$C$1:$C$68,$B23) -> 0 | W23: =IF(U23<>"-",U23*S23,0) -> 0
B25: 1 | O25: =INDEX(USOS!$B$1:$B$68,$B25) -> 0 | R25: m2 | S25: =Q25*F25 -> 0 | T25: m2 | U25: =INDEX(USOS!$C$1:$C$68,$B25) -> 0 | W25: =IF(U25<>"-",U25*S25,0) -> 0
B27: 1 | O27: =INDEX(USOS!$B$1:$B$68,$B27) -> 0 | R27: m2 | S27: =Q27*F27 -> 0 | T27: m2 | U27: =INDEX(USOS!$C$1:$C$68,$B27) -> 0 | W27: =IF(U27<>"-",U27*S27,0) -> 0
F29: Presupuesto de ejecución material | J29: = | N29: =IF(S29="-",TRUE,FALSE) -> TRUE | O29: Superficie acumulativa | R29: = | S29: - | T29: m2 | U29: =IF(S29="-","",K29/(MODULO*S29)) ->  | W29: =IF(S29<>"-",U29*S29,0) -> 0
S30: -
F31: =IF(K29=0,0,CONCATENATE(ROUND(K29/S31,2)," €/m2 ",ROUND((K29/S31)*166.386,0)," pts/m2")) -> 0 | K31: =IF(S31<=300,11.75,IF(S31<=400,11.5,IF(S31<=600,10.8,IF(S31<=800,11.3,IF(S31<=1000,10,IF(S31<=2000,9,L31)))))) -> 11.75 | L31: =IF(S31<=3000,8.6,IF(S31<=5000,8,IF(S31<=8000,7.5,IF(S31<=12000,7.1,IF(S31<=20000,6.7,IF(S31<=35000,6.2,M31)))))) -> 8.6 | M31: =IF(S31<=80000,5.7,IF(S31<=120000,5.4,IF(S31<=200000,5.2,IF(S31<=400000,4.8,IF(S31<=700000,4.6,IF(S31<=1000000,4.45,4.45)))))) -> 5.7 | Q31: Σ Si | R31: = | S31: =SUM(S29,S27,S25,S23,S21,S19,S17,S15,S13,S11,S9) -> 0 | T31: m2 | W31: =SUM(W9,W11,W13,W15,W17,W19,W21,W23,W25,W27,W29) -> 0
E33: coeficiente por superficie construida | J33: = | K33: =IF(S31<>0,M33,"") ->  | L33: =IF(S31<>0,(2.6+10.2*((200/S31)^0.2)),0) -> 0 | M33: =IF(L33>11.75,11.75,IF(L33<4.457,4.45,L33)) -> 4.45 | Q33: Σ Si . Qv | R33: = | S33: =W31 -> 0
G35: =#REF! ->  | H35: Coeficiente de FASE | K35: ='2.1.1B'!$G$13 -> 0
J36: =
L37: ='2.1.1B'!$G$13 -> 0
B38: =MODULO*K33*S33*K36/6000 ->  | C38: =MODULO/40 -> 13.46975 | D38: =IF(B38>W2,B38,W2) ->  | H38: Calculo | J38: = | K38: =IF(A5=TRUE,D38+W7,D38) ->  | O38: URGENTE O RAPIDO
K39: =CONCATENATE(ROUND(K38*W1,2)," € c/IVA") -> 
L42: Arquitecto | M42: Cliente
L43: =K38/3 ->  | M43: =K38*2/3 -> 
L44: =CONCATENATE(ROUND(L43*W1,2)," € c/IVA") ->  | M44: =CONCATENATE(ROUND(M43*W1,2)," € c/IVA") ->  | N44: =CONCATENATE(ROUND(N43*Y1,2)," € c/IVA") -> 0 € c/IVA

Sheet 2.1.1 (hidden)
B1: COAM | C1: ='1'!B1 -> PRECIOS DE VISADO PARA LOS TRABAJOS PROFESIONALES v12.02 (21.01.26)
C2: 2.1.1 COEFICIENTE POR FASES Y POR SUSTITUCIÓN DE DOCUMENTOS
J4: PORCENTAJES POR SUSTITUCIÓN DE DOCUMENTOS
D5: AYUDA | J5: Porcentaje modificado | K5: ≤25 % | L5: >25% | M5: >50% | N5: >75%
C6: FALSE | D6: Estudios previos | G6: =IF( C6=TRUE,AB6,"") ->  | J6: Memoria | Q6: FALSE | R6: FALSE | S6: FALSE | U6: FALSE | V6: =IF(Q6=TRUE,0.1,0) -> 0 | W6: =IF(R6=TRUE,0.8,0) -> 0 | Z6: =IF(U6=TRUE,0.1,0) -> 0 | AA6: =SUM(V6:Z6) -> 0 | AB6: 0.05 | AC6: =SUM(V6:AB6) -> 0.05
C7: FALSE | D7: Anteproyecto | J7: Mediciones y presupuestos | Q7: FALSE | R7: FALSE | S7: FALSE | U7: FALSE | V7: =IF(Q7=TRUE,0.15,0) -> 0 | W7: =IF(R7=TRUE,0.75,0) -> 0 | Z7: =IF(U7=TRUE,0.1,0) -> 0 | AA7: 0 | AB7: 0.15 | AC7: 0.15
C8: FALSE | D8: Proyecto básico | J8: Planos | Q8: FALSE | R8: FALSE | S8: FALSE | U8: FALSE | V8: =IF(Q8=TRUE,0.15,0) -> 0 | W8: =IF(R8=TRUE,0.75,0) -> 0 | Z8: =IF(U8=TRUE,0.1,0) -> 0 | AA8: 0 | AB8: 0.1 | AC8: 0.1
C9: FALSE | D9: Proyecto de ejecución | J9: TOTAL | K9: =Q22 -> 0 | L9: =R22 -> 0 | M9: =S22 -> 0 | N9: =T22 -> 0 | Q9: FALSE | R9: FALSE | S9: FALSE | T9: FALSE | U9: FALSE | V9: =IF(Q9=TRUE,0.12,0) -> 0 | W9: =IF(R9=TRUE,0.53,0) -> 0 | X9: =IF(S9=TRUE,0.1,0) -> 0 | Y9: =IF(T9=TRUE,0.12,0) -> 0 | Z9: =IF(U9=TRUE,0.13,0) -> 0 | AA9: 0 | AB9: 0.5 | AC9: 0.5
C10: FALSE | D10: Dirección de obra | J10: Coeficiente de aprovechamiento del documento anterior, según porcentaje modificado | R10: FALSE | S10: FALSE | U10: FALSE | W10: =IF(R10=TRUE,0.67,0) -> 0 | Z10: =IF(U10=TRUE,0.33*N13,0) -> 0 | AA10: 0 | AB10: 0.05 | AC10: 0.05
C11: FALSE | D11: Liquidación y recepción | M11: =SUM(K9:N9) -> 0 | Q11: FALSE | S11: FALSE | U11: FALSE | V11: =IF(Q11=TRUE,0.15,0) -> 0 | Z11: =IF(U11=TRUE,0.85,0) -> 0 | AA11: 0 | AB11: 0.15 | AC11: 0.15
G13: =IF(M11=0,SUM(G6:G11),SUM(G6:G11)*M11) -> 0 | N13: 1
Q16: FALSE | R16: FALSE | S16: FALSE | T16: FALSE
Q17: FALSE | R17: FALSE | S17: FALSE | T17: FALSE
Q18: FALSE | R18: FALSE | S18: FALSE | T18: FALSE
Q19: =IF(Q16=TRUE,0,0) -> 0 | R19: =IF(R16=TRUE,0.025,0) -> 0 | S19: =IF(S16=TRUE,0.05,0) -> 0 | T19: =IF(T16=TRUE,0.075,0) -> 0
Q20: =IF(Q17=TRUE,0,0) -> 0 | R20: =IF(R17=TRUE,0.025,0) -> 0 | S20: =IF(S17=TRUE,0.05,0) -> 0 | T20: =IF(T17=TRUE,0.075,0) -> 0
Q21: =IF(Q18=TRUE,0,0) -> 0 | R21: =IF(R18=TRUE,0.15,0) -> 0 | S21: =IF(S18=TRUE,0.3,0) -> 0 | T21: =IF(T18=TRUE,0.45,0) -> 0
Q22: =SUM(Q19:Q21) -> 0 | R22: =SUM(R19:R21) -> 0 | S22: =SUM(S19:S21) -> 0 | T22: =SUM(T19:T21) -> 0

Sheet 2.1.1B (hidden)
B1: COAM | C1: ='1'!B1 -> PRECIOS DE VISADO PARA LOS TRABAJOS PROFESIONALES v12.02 (21.01.26)
C2: 2.1.1 COEFICIENTE POR FASES Y POR SUSTITUCIÓN DE DOCUMENTOS
J4: PORCENTAJES POR SUSTITUCIÓN DE DOCUMENTOS
D5: AYUDA | J5: Porcentaje modificado | K5: ≤25 % | L5: >25% | M5: >50% | N5: >75%
C6: FALSE | D6: Estudios previos | G6: =IF( C6=TRUE,AB6,"") ->  | J6: Memoria | Q6: FALSE | R6: FALSE | S6: FALSE | U6: FALSE | V6: =IF(Q6=TRUE,0.1,0) -> 0 | W6: =IF(R6=TRUE,0.8,0) -> 0 | Z6: =IF(U6=TRUE,0.1,0) -> 0 | AA6: =SUM(V6:Z6) -> 0 | AB6: 0.05 | AC6: =SUM(V6:AB6) -> 0.05
C7: FALSE | D7: Anteproyecto | G7: =IF( C7=TRUE,AB7,"") ->  | J7: Mediciones y presupuestos | Q7: FALSE | R7: FALSE | S7: FALSE | U7: FALSE | V7: =IF(Q7=TRUE,0.15,0) -> 0 | W7: =IF(R7=TRUE,0.75,0) -> 0 | Z7: =IF(U7=TRUE,0.1,0) -> 0 | AA7: 0 | AB7: 0.15 | AC7: 0.15
C8: FALSE | D8: Proyecto básico | J8: Planos | Q8: FALSE | R8: FALSE | S8: FALSE | U8: FALSE | V8: =IF(Q8=TRUE,0.15,0) -> 0 | W8: =IF(R8=TRUE,0.75,0) -> 0 | Z8: =IF(U8=TRUE,0.1,0) -> 0 | AA8: 0 | AB8: 0.1 | AC8: 0.1
C9: FALSE | D9: Proyecto de ejecución | J9: TOTAL | K9: =Q22 -> 0 | L9: =R22 -> 0 | M9: =S22 -> 0 | N9: =T22 -> 0 | Q9: FALSE | R9: FALSE | S9: FALSE | T9: FALSE | U9: FALSE | V9: =IF(Q9=TRUE,0.12,0) -> 0 | W9: =IF(R9=TRUE,0.53,0) -> 0 | X9: =IF(S9=TRUE,0.1,0) -> 0 | Y9: =IF(T9=TRUE,0.12,0) -> 0 | Z9: =IF(U9=TRUE,0.13,0) -> 0 | AA9: 0 | AB9: 0.5 | AC9: 0.5
C10: FALSE | D10: Dirección de obra | J10: Coeficiente de aprovechamiento del documento anterior, según porcentaje modificado | R10: FALSE | S10: FALSE | U10: FALSE | W10: =IF(R10=TRUE,0.67,0) -> 0 | Z10: =IF(U10=TRUE,0.33*N13,0) -> 0 | AA10: 0 | AB10: 0.05 | AC10: 0.05
C11: FALSE | D11: Liquidación y recepción | M11: =SUM(K9:N9) -> 0 | Q11: FALSE | S11: FALSE | U11: FALSE | V11: =IF(Q11=TRUE,0.15,0) -> 0 | Z11: =IF(U11=TRUE,0.85,0) -> 0 | AA11: 0 | AB11: 0.15 | AC11: 0.15
G13: =IF(M11=0,SUM(G6:G11),SUM(G6:G11)*M11) -> 0 | N13: 1
Q16: FALSE | R16: FALSE | S16: FALSE | T16: FALSE
Q17: FALSE | R17: FALSE | S17: FALSE | T17: FALSE
Q18: FALSE | R18: FALSE | S18: FALSE | T18: FALSE
Q19: =IF(Q16=TRUE,0,0) -> 0 | R19: =IF(R16=TRUE,0.025,0) -> 0 | S19: =IF(S16=TRUE,0.05,0) -> 0 | T19: =IF(T16=TRUE,0.075,0) -> 0
Q20: =IF(Q17=TRUE,0,0) -> 0 | R20: =IF(R17=TRUE,0.025,0) -> 0 | S20: =IF(S17=TRUE,0.05,0) -> 0 | T20: =IF(T17=TRUE,0.075,0) -> 0
Q21: =IF(Q18=TRUE,0,0) -> 0 | R21: =IF(R18=TRUE,0.15,0) -> 0 | S21: =IF(S18=TRUE,0.3,0) -> 0 | T21: =IF(T18=TRUE,0.45,0) -> 0
Q22: =SUM(Q19:Q21) -> 0 | R22: =SUM(R19:R21) -> 0 | S22: =SUM(S19:S21) -> 0 | T22: =SUM(T19:T21) -> 0

Sheet 2.2C (hidden)
A1: ='1'!$N$17 -> 538.79 | B1: COAM | C1: ='1'!B1 -> PRECIOS DE VISADO PARA LOS TRABAJOS PROFESIONALES v12.02 (21.01.26) | W1: =IVA -> 1.21
A2: FALSE | C2: 2.2 OBRAS DE INTERVENCIÓN PARCIAL: AMPLIACIÓN, REHABILITACIÓN, REFORMA… | W2: 46
W3: 26
C4: Se calcula mediante una de las siguientes fórmula: | W4: 205
A5: FALSE | C5: PV = Módulo · C · [Σ.Si · Qv] · F / 6000 · f | W5: 0.1
W6: =B38 -> 
C7: Plantas | F7: Num. Plantas | O7: Codigo del Uso | Q7: Sup. Planta | S7: Total m2 Uso | U7: Qv | W7: =IF(W6*W5<W3,W3,IF(W6*W5>W4,W4,W6*W5)) -> 
C8: de | D8: A
B9: 1 | I9: =INDEX(USOS!$C$1:$C$65,$B9) -> 0 | O9: =INDEX(USOS!$B$1:$B$68,$B9) -> 0 | R9: m2 | S9: =Q9*F9*AA9 -> 0 | T9: m2 | U9: =INDEX(USOS!$C$1:$C$68,$B9) -> 0 | W9: =IF(U9<>"-",U9*S9,0) -> 0 | Z9: 4 | AA9: =INDEX(M44:M49,$Z9) -> 0.7 | AB9: =W9 -> 0
AB10: =W10 -> 0
B11: 1 | O11: =INDEX(USOS!$B$1:$B$68,$B11) -> 0 | R11: m2 | S11: =Q11*F11*AA11 -> 0 | T11: m2 | U11: =INDEX(USOS!$C$1:$C$68,$B11) -> 0 | W11: =IF(U11<>"-",U11*S11,0) -> 0 | Z11: 1 | AA11: =INDEX(M44:M49,$Z11) -> 1 | AB11: 0
AB12: 0
B13: 1 | O13: =INDEX(USOS!$B$1:$B$68,$B13) -> 0 | R13: m2 | S13: =Q13*F13*AA13 -> 0 | T13: m2 | U13: =INDEX(USOS!$C$1:$C$68,$B13) -> 0 | W13: =IF(U13<>"-",U13*S13,0) -> 0 | Z13: 1 | AA13: =INDEX(M44:M49,$Z13) -> 1 | AB13: 0
AB14: 0
B15: 1 | O15: =INDEX(USOS!$B$1:$B$68,$B15) -> 0 | R15: m2 | S15: =Q15*F15*AA15 -> 0 | T15: m2 | U15: =INDEX(USOS!$C$1:$C$68,$B15) -> 0 | W15: =IF(U15<>"-",U15*S15,0) -> 0 | Z15: 1 | AA15: =INDEX(M44:M49,$Z15) -> 1 | AB15: 0
AB16: 0
B17: 1 | O17: =INDEX(USOS!$B$1:$B$68,$B17) -> 0 | R17: m2 | S17: =Q17*F17*AA17 -> 0 | T17: m2 | U17: =INDEX(USOS!$C$1:$C$68,$B17) -> 0 | W17: =IF(U17<>"-",U17*S17,0) -> 0 | Z17: 1 | AA17: =INDEX(M44:M49,$Z17) -> 1 | AB17: 0
AB18: 0
B19: 1 | O19: =INDEX(USOS!$B$1:$B$68,$B19) -> 0 | R19: m2 | S19: =Q19*F19*AA19 -> 0 | T19: m2 | U19: =INDEX(USOS!$C$1:$C$68,$B19) -> 0 | W19: =IF(U19<>"-",U19*S19,0) -> 0 | Z19: 1 | AA19: =INDEX(M44:M49,$Z19) -> 1 | AB19: 0
AB20: 0
B21: 1 | O21: =INDEX(USOS!$B$1:$B$68,$B21) -> 0 | R21: m2 | S21: =Q21*F21*AA21 -> 0 | T21: m2 | U21: =INDEX(USOS!$C$1:$C$68,$B21) -> 0 | W21: =IF(U21<>"-",U21*S21,0) -> 0 | Z21: 1 | AA21: =INDEX(M44:M49,$Z21) -> 1 | AB21: 0
AB22: 0
B23: 1 | O23: =INDEX(USOS!$B$1:$B$68,$B23) -> 0 | R23: m2 | S23: =Q23*F23*AA23 -> 0 | T23: m2 | U23: =INDEX(USOS!$C$1:$C$68,$B23) -> 0 | W23: =IF(U23<>"-",U23*S23,0) -> 0 | Z23: 1 | AA23: =INDEX(M44:M49,$Z23) -> 1 | AB23: 0
AB24: 0
B25: 1 | O25: =INDEX(USOS!$B$1:$B$68,$B25) -> 0 | R25: m2 | S25: =Q25*F25*AA25 -> 0 | T25: m2 | U25: =INDEX(USOS!$C$1:$C$68,$B25) -> 0 | W25: =IF(U25<>"-",U25*S25,0) -> 0 | Z25: 1 | AA25: =INDEX(M44:M49,$Z25) -> 1 | AB25: 0
AB26: 0
B27: 1 | O27: =INDEX(USOS!$B$1:$B$68,$B27) -> 0 | R27: m2 | S27: =Q27*F27*AA27 -> 0 | T27: m2 | U27: =INDEX(USOS!$C$1:$C$68,$B27) -> 0 | W27: =IF(U27<>"-",U27*S27,0) -> 0 | Z27: 1 | AA27: =INDEX(M44:M49,$Z27) -> 1 | AB27: 0
C29: Presupuesto de ejecución material PEM | J29: = | M29: € | N29: =IF(S29="-",TRUE,FALSE) -> FALSE
S30: -
B31: =IF(K29=0,0,0.5+(6*((MODULO/K29)^0.2))) -> 0 | C31: =IF(B31>=2.5,2.5,B31) -> 0 | F31: =IF(K29=0,0,CONCATENATE(ROUND(K29/S31,2)," €/m2 ",ROUND((K29/S31)*166.386,0)," pts/m2")) -> 0 | K31: =IF(S31<=300,11.75,IF(S31<=400,11.5,IF(S31<=600,10.8,IF(S31<=800,11.3,IF(S31<=1000,10,IF(S31<=2000,9,L31)))))) -> 11.75 | L31: =IF(S31<=3000,8.6,IF(S31<=5000,8,IF(S31<=8000,7.5,IF(S31<=12000,7.1,IF(S31<=20000,6.7,IF(S31<=35000,6.2,M31)))))) -> 8.6 | M31: =IF(S31<=80000,5.7,IF(S31<=120000,5.4,IF(S31<=200000,5.2,IF(S31<=400000,4.8,IF(S31<=700000,4.6,IF(S31<=1000000,4.45,4.45)))))) -> 5.7 | Q31: Σ Si | R31: = | S31: =Q9*F9+Q11*F11+Q13*F13+Q15*F15+Q17*F17+Q19*F19+Q21*F21+Q23*F23+Q25*F25+Q25*F25+Q27*F27 -> 0 | T31: m2 | W31: =SUM(W9,W11,W13,W15,W17,W19,W21,W23,W25,W27) -> 0
B33: =IF(K36=0,0,K36*K29*C31/1000) -> 0 | E33: coeficiente por superficie construida | J33: = | K33: =IF(S31<>0,M33,"") ->  | L33: =IF(S31<>0,(2.6+10.2*((200/S31)^0.2)),0) -> 0 | M33: =IF(L33>11.75,11.75,IF(L33<4.457,4.45,L33)) -> 4.45 | Q33: Σ Si . Qv | R33: = | S33: =W31 -> 0 | AB33: =100*1.2 -> 120 | AD33: =AA9*AB33 -> 84
G35: =#REF! ->  | H35: Coeficiente de FASE | K35: ='2.1.1B'!$G$13 -> 0 | AB35: =Q11*U11 -> 0 | AD35: =AB35*AA11 -> 0
J36: = | X36: 1 | AD36: =SUM(AD33:AD35) -> 84
L37: =K35 -> 0 | X37: =INDEX(USOS!$E$2:$E$7,$X36) -> 1
B38: =MODULO*K33*S33*K36/6000 ->  | C38: =MODULO/40 -> 13.46975 | F38: =IF(B33<B38*X37,B38*X37,B33) ->  | H38: Calculo | J38: = | K38: =IF(A5=TRUE,F39+W7,F39) ->  | L38: =IF(B33<B38,"Calculo según Obra nueva"," ") ->  | O38: URGENTE O RAPIDO
F39: =IF(F38>W2,F38,W2) ->  | K39: =CONCATENATE(ROUND(K38*W1,2)," € c/IVA") ->  | O39: =W7 -> 
L43: Coeficiente de minoración
L44: Intervención Completa | M44: 1
L45: Estructura | M45: 0.4
L46: Estructura, instalaciones, albañileria y acabados | M46: 0.9
L47: Instalaciones, albañileria y acabados | M47: 0.7
L48: Albañileria y acabados | M48: 0.5
L49: Acabados | M49: 0.3
L50: ALBAÑILERIA | M50: 0.1
L51: ACABADOS | M51: 0.1
L52: ALBAÑILERIA+ACABADOS | M52: 0.2
L53: INSTALACIONES | M53: 0.4
L54: ESTRUCTURA | M54: 0.4
L55: ALBAÑILERIA+INSTALACIONES | M55: 0.5
L56: ALBAÑILERIA+ESTRUCTURA | M56: 0.5
L57: ACABADOS+INSTALACIONES | M57: 0.5
L58: ACABADOS+ESTRUCTURA | M58: 0.5
L59: ALBAÑILERIA+ACABADOS+INSTALACIONES | M59: 0.6
L60: ALBAÑILERIA+ACABADOS+ESTRUCTURAS | M60: 0.6
L61: INSTALACIONES+ESTRUCTURA | M61: 0.8
L62: COMPLETA | M62: 1

Sheet 2.2CBIS (hidden)
A1: ='1'!$N$17 -> 538.79 | B1: COAM | C1: ='1'!B1 -> PRECIOS DE VISADO PARA LOS TRABAJOS PROFESIONALES v12.02 (21.01.26) | W1: =IVA -> 1.21
A2: FALSE | C2: 2.2 OBRAS DE INTERVENCIÓN PARCIAL: AMPLIACIÓN, REHABILITACIÓN, REFORMA… | W2: 45
W3: 25
C4: Se calcula mediante una de las siguientes fórmula: | W4: 200
A5: FALSE | C5: PV = Módulo · C · [Σ.Si · Qv] · F / 6000 | W5: 0.1
W6: =B38 -> 
C7: Plantas | F7: Num. Plantas | O7: Codigo del Uso | Q7: Sup. Planta | S7: Total m2 Uso | U7: Qv | W7: =IF(W6*W5<W3,W3,IF(W6*W5>W4,W4,W6*W5)) -> 
C8: de | D8: A
B9: 1 | I9: =INDEX(USOS!$C$1:$C$65,$B9) -> 0 | O9: =INDEX(USOS!$B$1:$B$68,$B9) -> 0 | R9: m2 | S9: =Q9*F9 -> 0 | T9: m2 | U9: =INDEX(USOS!$C$1:$C$68,$B9) -> 0 | W9: =IF(U9<>"-",U9*S9,0) -> 0
B11: 1 | O11: =INDEX(USOS!$B$1:$B$68,$B11) -> 0 | R11: m2 | S11: =Q11*F11 -> 0 | T11: m2 | U11: =INDEX(USOS!$C$1:$C$68,$B11) -> 0 | W11: =IF(U11<>"-",U11*S11,0) -> 0
B13: 1 | O13: =INDEX(USOS!$B$1:$B$68,$B13) -> 0 | R13: m2 | S13: =Q13*F13 -> 0 | T13: m2 | U13: =INDEX(USOS!$C$1:$C$68,$B13) -> 0 | W13: =IF(U13<>"-",U13*S13,0) -> 0
B15: 1 | O15: =INDEX(USOS!$B$1:$B$68,$B15) -> 0 | R15: m2 | S15: =Q15*F15 -> 0 | T15: m2 | U15: =INDEX(USOS!$C$1:$C$68,$B15) -> 0 | W15: =IF(U15<>"-",U15*S15,0) -> 0
B17: 1 | O17: =INDEX(USOS!$B$1:$B$68,$B17) -> 0 | R17: m2 | S17: =Q17*F17 -> 0 | T17: m2 | U17: =INDEX(USOS!$C$1:$C$68,$B17) -> 0 | W17: =IF(U17<>"-",U17*S17,0) -> 0
B19: 1 | O19: =INDEX(USOS!$B$1:$B$68,$B19) -> 0 | R19: m2 | S19: =Q19*F19 -> 0 | T19: m2 | U19: =INDEX(USOS!$C$1:$C$68,$B19) -> 0 | W19: =IF(U19<>"-",U19*S19,0) -> 0
B21: 1 | O21: =INDEX(USOS!$B$1:$B$68,$B21) -> 0 | R21: m2 | S21: =Q21*F21 -> 0 | T21: m2 | U21: =INDEX(USOS!$C$1:$C$68,$B21) -> 0 | W21: =IF(U21<>"-",U21*S21,0) -> 0
B23: 1 | O23: =INDEX(USOS!$B$1:$B$68,$B23) -> 0 | R23: m2 | S23: =Q23*F23 -> 0 | T23: m2 | U23: =INDEX(USOS!$C$1:$C$68,$B23) -> 0 | W23: =IF(U23<>"-",U23*S23,0) -> 0
B25: 1 | O25: =INDEX(USOS!$B$1:$B$68,$B25) -> 0 | R25: m2 | S25: =Q25*F25 -> 0 | T25: m2 | U25: =INDEX(USOS!$C$1:$C$68,$B25) -> 0 | W25: =IF(U25<>"-",U25*S25,0) -> 0
B27: 1 | O27: =INDEX(USOS!$B$1:$B$68,$B27) -> 0 | R27: m2 | S27: =Q27*F27 -> 0 | T27: m2 | U27: =INDEX(USOS!$C$1:$C$68,$B27) -> 0 | W27: =IF(U27<>"-",U27*S27,0) -> 0
C29: Presupuesto de ejecución material PEM | J29: = | M29: € | N29: =IF(S29="-",TRUE,FALSE) -> FALSE
S30: -
B31: =IF(K29=0,0,0.5+(6*((MODULO/K29)^0.2))) -> 0 | C31: =IF(B31>=2.5,2.5,B31) -> 0 | F31: =IF(K29=0,0,CONCATENATE(ROUND(K29/S31,2)," €/m2 ",ROUND((K29/S31)*166.386,0)," pts/m2")) -> 0 | K31: =IF(S31<=300,11.75,IF(S31<=400,11.5,IF(S31<=600,10.8,IF(S31<=800,11.3,IF(S31<=1000,10,IF(S31<=2000,9,L31)))))) -> 11.75 | L31: =IF(S31<=3000,8.6,IF(S31<=5000,8,IF(S31<=8000,7.5,IF(S31<=12000,7.1,IF(S31<=20000,6.7,IF(S31<=35000,6.2,M31)))))) -> 8.6 | M31: =IF(S31<=80000,5.7,IF(S31<=120000,5.4,IF(S31<=200000,5.2,IF(S31<=400000,4.8,IF(S31<=700000,4.6,IF(S31<=1000000,4.45,4.45)))))) -> 5.7 | Q31: Σ Si | R31: = | S31: =SUM(S27,S25,S23,S21,S19,S17,S15,S13,S11,S9) -> 0 | T31: m2 | W31: =SUM(W9,W11,W13,W15,W17,W19,W21,W23,W25,W27) -> 0
B33: =IF(K36=0,0,K36*K29*C31/1000) -> 0 | E33: coeficiente por superficie construida | J33: = | K33: =IF(S31<>0,M33,"") ->  | L33: =IF(S31<>0,(2.6+10.2*((200/S31)^0.2)),0) -> 0 | M33: =IF(L33>11.75,11.75,IF(L33<4.457,4.45,L33)) -> 4.45 | Q33: Σ Si . Qv | R33: = | S33: =W31 -> 0
G35: =#REF! ->  | H35: Coeficiente de FASE | K35: ='2.1.1B'!$G$13 -> 0
J36: = | O36: Coeficiente de minoración | X36: 1
X37: =INDEX(USOS!$E$2:$E$7,$X36) -> 1
B38: =MODULO*K33*S33*K36/6000 ->  | C38: =MODULO/40 -> 13.46975 | F38: =IF(B33<B38*X37,B38*X37,B33) ->  | H38: Calculo | J38: = | K38: =IF(A5=TRUE,F39+W7,F39) ->  | L38: =IF(B33<B38,"Calculo según Obra nueva"," ") ->  | O38: URGENTE O RAPIDO
F39: =IF(F38>W2,F38,W2) ->  | K39: =CONCATENATE(ROUND(K38*W1,2)," € c/IVA") ->  | O39: =W7 -> 

Sheet 2.3C (hidden)
A1: ='1'!$N$17 -> 538.79 | B1: COAM | C1: ='1'!B1 -> PRECIOS DE VISADO PARA LOS TRABAJOS PROFESIONALES v12.02 (21.01.26) | W1: =IVA -> 1.21
A2: FALSE | C2: 2.3 EXPEDIENTES DE LEGALIZACIÓN | W2: 46
W3: 26
C4: Se calcula mediante una de las siguientes fórmula: | W4: 205
A5: FALSE | C5: PV = Módulo · C · [Σ.Si · Qv] · F / 6000 | W5: 0.1
W6: =B38 -> 
C7: Plantas | F7: Num. Plantas | O7: Codigo del Uso | Q7: Sup. Planta | S7: Total m2 Uso | U7: Qv | W7: =IF(W6*W5<W3,W3,IF(W6*W5>W4,W4,W6*W5)) -> 
C8: de | D8: A
B9: 1 | I9: =INDEX(USOS!$C$1:$C$65,$B9) -> 0 | O9: =INDEX(USOS!$B$1:$B$68,$B9) -> 0 | R9: m2 | S9: =Q9*F9 -> 0 | T9: m2 | U9: =INDEX(USOS!$C$1:$C$68,$B9) -> 0 | W9: =IF(U9<>"-",U9*S9,0) -> 0
B11: 1 | O11: =INDEX(USOS!$B$1:$B$68,$B11) -> 0 | R11: m2 | S11: =Q11*F11 -> 0 | T11: m2 | U11: =INDEX(USOS!$C$1:$C$68,$B11) -> 0 | W11: =IF(U11<>"-",U11*S11,0) -> 0
B13: 1 | O13: =INDEX(USOS!$B$1:$B$68,$B13) -> 0 | R13: m2 | S13: =Q13*F13 -> 0 | T13: m2 | U13: =INDEX(USOS!$C$1:$C$68,$B13) -> 0 | W13: =IF(U13<>"-",U13*S13,0) -> 0
B15: 1 | O15: =INDEX(USOS!$B$1:$B$68,$B15) -> 0 | R15: m2 | S15: =Q15*F15 -> 0 | T15: m2 | U15: =INDEX(USOS!$C$1:$C$68,$B15) -> 0 | W15: =IF(U15<>"-",U15*S15,0) -> 0
B17: 1 | O17: =INDEX(USOS!$B$1:$B$68,$B17) -> 0 | R17: m2 | S17: =Q17*F17 -> 0 | T17: m2 | U17: =INDEX(USOS!$C$1:$C$68,$B17) -> 0 | W17: =IF(U17<>"-",U17*S17,0) -> 0
B19: 1 | O19: =INDEX(USOS!$B$1:$B$68,$B19) -> 0 | R19: m2 | S19: =Q19*F19 -> 0 | T19: m2 | U19: =INDEX(USOS!$C$1:$C$68,$B19) -> 0 | W19: =IF(U19<>"-",U19*S19,0) -> 0
B21: 1 | O21: =INDEX(USOS!$B$1:$B$68,$B21) -> 0 | R21: m2 | S21: =Q21*F21 -> 0 | T21: m2 | U21: =INDEX(USOS!$C$1:$C$68,$B21) -> 0 | W21: =IF(U21<>"-",U21*S21,0) -> 0
B23: 1 | O23: =INDEX(USOS!$B$1:$B$68,$B23) -> 0 | R23: m2 | S23: =Q23*F23 -> 0 | T23: m2 | U23: =INDEX(USOS!$C$1:$C$68,$B23) -> 0 | W23: =IF(U23<>"-",U23*S23,0) -> 0
B25: 1 | O25: =INDEX(USOS!$B$1:$B$68,$B25) -> 0 | R25: m2 | S25: =Q25*F25 -> 0 | T25: m2 | U25: =INDEX(USOS!$C$1:$C$68,$B25) -> 0 | W25: =IF(U25<>"-",U25*S25,0) -> 0
B27: 1 | O27: =INDEX(USOS!$B$1:$B$68,$B27) -> 0 | R27: m2 | S27: =Q27*F27 -> 0 | T27: m2 | U27: =INDEX(USOS!$C$1:$C$68,$B27) -> 0 | W27: =IF(U27<>"-",U27*S27,0) -> 0
C29: Presupuesto de ejecución material PEM | J29: = | M29: € | N29: =IF(S29="-",TRUE,FALSE) -> FALSE
S30: -
B31: =IF(K29=0,0,0.5+(6*((MODULO/K29)^0.2))) -> 0 | C31: =IF(B31>=2.5,2.5,B31) -> 0 | F31: =IF(K29=0,0,CONCATENATE(ROUND(K29/S31,2)," €/m2 ",ROUND((K29/S31)*166.386,0)," pts/m2")) -> 0 | K31: =IF(S31<=300,11.75,IF(S31<=400,11.5,IF(S31<=600,10.8,IF(S31<=800,11.3,IF(S31<=1000,10,IF(S31<=2000,9,L31)))))) -> 11.75 | L31: =IF(S31<=3000,8.6,IF(S31<=5000,8,IF(S31<=8000,7.5,IF(S31<=12000,7.1,IF(S31<=20000,6.7,IF(S31<=35000,6.2,M31)))))) -> 8.6 | M31: =IF(S31<=80000,5.7,IF(S31<=120000,5.4,IF(S31<=200000,5.2,IF(S31<=400000,4.8,IF(S31<=700000,4.6,IF(S31<=1000000,4.45,4.45)))))) -> 5.7 | Q31: Σ Si | R31: = | S31: =SUM(S27,S25,S23,S21,S19,S17,S15,S13,S11,S9) -> 0 | T31: m2 | W31: =SUM(W9,W11,W13,W15,W17,W19,W21,W23,W25,W27) -> 0
B33: =IF(K36=0,0,K36*K29*C31/1000) -> 0 | E33: coeficiente por superficie construida | J33: = | K33: =IF(S31<>0,M33,"") ->  | L33: =IF(S31<>0,(2.6+10.2*((200/S31)^0.2)),0) -> 0 | M33: =IF(L33>11.75,11.75,IF(L33<4.457,4.45,L33)) -> 4.45 | Q33: Σ Si . Qv | R33: = | S33: =W31 -> 0
G35: =#REF! ->  | H35: Coeficiente de FASE | M35: Legalización completa (80%) | R35: FALSE | S35: =IF(R35=TRUE,0.8,0) -> 0 | U35: =S35+S36 -> 0
J36: = | M36: Legalización sólo de dirección de obra (15%) | R36: FALSE | S36: =IF(R36=TRUE,0.15,0) -> 0 | X36: 1
B38: =MODULO*K33*S33*K36/6000 ->  | C38: =MODULO/40 -> 13.46975 | F38: =IF(B33<B38,B38,B33) ->  | H38: Calculo | J38: = | K38: =IF(A5=TRUE,F39+W7,F39) ->  | L38: =IF(B33<B38,"Calculo según Obra nueva"," ") ->  | O38: URGENTE O RAPIDO | S38: =W7 -> 
F39: =IF(F38>W2,F38,W2) ->  | K39: =CONCATENATE(ROUND(K38*W1,2)," € c/IVA") -> 

Sheet 2.2B (hidden)
A1: 400 | B1: COAM | C1: ='1'!B1 -> PRECIOS DE VISADO PARA LOS TRABAJOS PROFESIONALES v12.02 (21.01.26)
A2: FALSE | C2: 2.2 OBRAS DE CONSERVACIÓN, REPARACIÓN, REFORMA, REESTRUCTURACIÓN, AMPLIACIÓN, ACONDICIONAMIENTO, REHABILITACIÓN, CONSOLIDACIÓN Y/O RESTAURACIÓN
C3: Presupuesto de ejecución material de la obra (PEM) =
E4: €
A6: =IF(D4=0,0,0.5+(6*((MODULO/D4)^0.2))) -> 0 | C6: Coeficiente CP = | D6: =IF(A6>=2.5,2.5,A6) -> 0
C8: Coeficiente de FASE | D8: ='2.1.1B'!$G$13 -> 0 | O8: FALSE | P8: FALSE | S8: FALSE
O9: FALSE | P9: FALSE | S9: FALSE
O10: FALSE | P10: FALSE | S10: FALSE
B12: =IF(D9=0,0,D9*D4*D6/1000) -> 0 | C12: Calculo | D12: =IF(B12>MODULO/40,B12,IF(D9=0,0,MODULO/40)) -> 0 | O12: FALSE | P12: FALSE | Q12: FALSE | R12: FALSE | S12: FALSE
D13: =CONCATENATE(ROUND(D12*1.16,2)," € c/IVA") -> 0 € c/IVA | P13: FALSE | S13: FALSE
C14: El cliente desea que la cuota variable de intervención por visado le sea facturada a su nombre | O14: FALSE | S14: FALSE
D17: Arquitecto | E17: Cliente
D18: =D12/3 -> 0 | E18: =D12*2/3 -> 0

Sheet 2.3.1 (hidden)
A1: ='1'!N17 -> 538.79 | B1: COAM | C1: ='1'!B1 -> PRECIOS DE VISADO PARA LOS TRABAJOS PROFESIONALES v12.02 (21.01.26) | H1: =IVA -> 1.21
A2: FALSE | C2: 4.1 SEGURIDAD Y SALUD | H2: 68 | I2: 25
A3: 2 | H3: 45 | I3: 200
A4: TRUE | D4: Estudio de Seguridad y Salud | I4: 0.1
A5: FALSE | D5: Estudios Básicos de Seguridad y Salud, Plan de Seguridad y Salud, Coordinación y otros trabajos relacionados | I5: =B16 -> 45
I6: =IF(I5*I4<I2,I2,IF(I5*I4>I3,I3,I5*I4)) -> 25
I7: =IF(A5=TRUE,I5+I6,I5) -> 45
A8: 1 | B8: è | C8: =INDEX(USOS!$A$1:$A$65,$A8) -> Seleccione USO… (coeficiente Qv)
D10: Codigo de uso: | E10: =INDEX(USOS!$B$1:$B$68,$A8) -> 0 | F10: Q= | G10: =INDEX(USOS!$C$1:$C$68,$A8) -> 0
A12: =IF(D12<I14,H14,IF(D12<I15,H15,IF(D12<I16,H16,IF(D12<I17,H17,IF(D12<I18,H18,IF(D12<I19,H19,H20)))))) -> 15396.44 | B12: =IF(G10>0,0.02*A12,0) -> 0 | C12: Superficie | E12: m2
B13: =IF(A3=1,IF(B12>H2,B12,H2),IF(B12>H3,B12,H3)) -> 45
A14: =D14*0.03*0.02*0.07 -> 0 | B14: =IF(D14=0,A14,A14) -> 0 | D14: 0 | E14: € | G14: a | H14: =1.5*MODULO -> 808.185 | I14: =IF(G10<=0,0,400.01/G10) -> 0
C15: URGENTE O RAPIDO | E15: =I6 -> 25 | G15: b | H15: =1.5*MODULO+(D12-400)*1 -> 408.185 | I15: =IF(G10<=0,0,1000.01/G10) -> 0
B16: =B13 -> 45 | C16: Calculo | D16: =I7 -> 45 | G16: c | H16: =3*MODULO+(D12-1000)*0.8 -> 816.37 | I16: =IF(G10<=0,0,2000.01/G10) -> 0
D17: =CONCATENATE(ROUND(D16*H1,2)," € c/IVA") -> 54,45 € c/IVA | G17: d | H17: =5*MODULO+(D12-2000)*0.6 -> 1493.95 | I17: =IF(G10<=0,0,8000.01/G10) -> 0
G18: e | H18: =14*MODULO+(D12-8000)*0.4 -> 4343.06 | I18: =IF(G10<=0,0,20000.01/G10) -> 0
G19: f | H19: =26*MODULO+(D12-20000)*0.2 -> 10008.54 | I19: =IF(G10<=0,0,40000.01/G10) -> 0
G20: g | H20: =36*MODULO+(D12-40000)*0.1 -> 15396.44

Sheet 2.3.1A (hidden)
A1: ='1'!N17 -> 538.79 | B1: COAM | C1: ='1'!B1 -> PRECIOS DE VISADO PARA LOS TRABAJOS PROFESIONALES v12.02 (21.01.26) | H1: =IVA -> 1.21
A2: FALSE | C2: 4.1 SEGURIDAD Y SALUD | H2: 68
A3: 1 | H3: 45
A4: TRUE | C4: Estudio de Seguridad y Salud
A5: FALSE
C6: Estudios Básicos de Seguridad y Salud, Plan de Seguridad y Salud, Coordinación y otros trabajos relacionados
J7: 45 | L7: 35
A8: 1
A9: 1 | C9: Seleccione USO | H9: Codigo de uso: | J9: Qv | L9: Superficie (m²) | O9: 400 | P9: 1000 | Q9: 2000 | R9: 8000 | S9: 20000 | T9: 40000
A11: 1 | C11: =INDEX(USOS!$A$1:$A$65,$A11) -> Seleccione USO… (coeficiente Qv) | H11: =INDEX(USOS!$B$1:$B$68,$A11) -> 0 | J11: =INDEX(USOS!$C$1:$C$68,$A11) -> 0 | M11: =L11*J11 -> 0 | O11: =IF($L11=0,0,IF(M11<$O$9,1.5*$A$1/50,0)) -> 0 | P11: =IF($L11=0,0,IF(O11<>0,0,IF(M11<$P$9,((1.5*$A$1)+(M11-400)*1)/50,0))) -> 0 | Q11: =IF($L11=0,0,IF((P11+O11)<>0,0,IF(M11<$Q$9,((3*$A$1)+(M11-1000)*0.8)/50,0))) -> 0 | R11: =IF($L11=0,0,IF((P11+O11+Q11)<>0,0,IF(M11<$R$9,((5*$A$1)+(M11-2000)*0.6)/50,0))) -> 0 | S11: =IF($L11=0,0,IF((P11+O11+Q11+R11)<>0,0,IF(M11<$S$9,((14*$A$1)+(M11-8000)*0.4)/50,0))) -> 0 | T11: =IF($L11=0,0,IF((P11+O11+Q11+R11+S11)<>0,0,IF(M11<$T$9,((26*$A$1)+(M11-20000)*0.2)/50,0))) -> 0 | U11: =IF($L11=0,0,IF((P11+O11+Q11+R11+S11+T11)<>0,0,(36*$A$1)+(M11-40000)*0.1)/50) -> 0
D12: 0
A13: 1 | C13: 0 | H13: =INDEX(USOS!$B$1:$B$68,$A13) -> 0 | J13: =INDEX(USOS!$C$1:$C$68,$A13) -> 0 | M13: =L13*J13 -> 0 | O13: =IF($L13=0,0,IF(M13<$O$9,1.5*$A$1/50,0)) -> 0 | P13: =IF($L13=0,0,IF(O13<>0,0,IF(M13<$P$9,((1.5*$A$1)+(M13-400)*1)/50,0))) -> 0 | Q13: =IF($L13=0,0,IF((P13+O13)<>0,0,IF(M13<$Q$9,((3*$A$1)+(M13-1000)*0.8)/50,0))) -> 0 | R13: =IF($L13=0,0,IF((P13+O13+Q13)<>0,0,IF(M13<$R$9,((5*$A$1)+(M13-2000)*0.6)/50,0))) -> 0 | S13: =IF($L13=0,0,IF((P13+O13+Q13+R13)<>0,0,IF(M13<$S$9,((14*$A$1)+(M13-8000)*0.4)/50,0))) -> 0 | T13: =IF($L13=0,0,IF((P13+O13+Q13+R13+S13)<>0,0,IF(M13<$T$9,((26*$A$1)+(M13-20000)*0.2)/50,0))) -> 0 | U13: =IF($L13=0,0,IF((P13+O13+Q13+R13+S13+T13)<>0,0,(36*$A$1)+(M13-40000)*0.1)/50) -> 0
A15: 1 | C15: =INDEX(USOS!$A$1:$A$65,$A15) -> Seleccione USO… (coeficiente Qv) | H15: =INDEX(USOS!$B$1:$B$68,$A15) -> 0 | J15: =INDEX(USOS!$C$1:$C$68,$A15) -> 0 | M15: =L15*J15 -> 0 | O15: =IF($L15=0,0,IF(M15<$O$9,1.5*$A$1/50,0)) -> 0 | P15: =IF($L15=0,0,IF(O15<>0,0,IF(M15<$P$9,((1.5*$A$1)+(M15-400)*1)/50,0))) -> 0 | Q15: =IF($L15=0,0,IF((P15+O15)<>0,0,IF(M15<$Q$9,((3*$A$1)+(M15-1000)*0.8)/50,0))) -> 0 | R15: =IF($L15=0,0,IF((P15+O15+Q15)<>0,0,IF(M15<$R$9,((5*$A$1)+(M15-2000)*0.6)/50,0))) -> 0 | S15: =IF($L15=0,0,IF((P15+O15+Q15+R15)<>0,0,IF(M15<$S$9,((14*$A$1)+(M15-8000)*0.4)/50,0))) -> 0 | T15: =IF($L15=0,0,IF((P15+O15+Q15+R15+S15)<>0,0,IF(M15<$T$9,((26*$A$1)+(M15-20000)*0.2)/50,0))) -> 0 | U15: =IF($L15=0,0,IF((P15+O15+Q15+R15+S15+T15)<>0,0,(36*$A$1)+(M15-40000)*0.1)/50) -> 0
A17: 1 | C17: =INDEX(USOS!$A$1:$A$65,$A17) -> Seleccione USO… (coeficiente Qv) | H17: =INDEX(USOS!$B$1:$B$68,$A17) -> 0 | J17: =INDEX(USOS!$C$1:$C$68,$A17) -> 0 | M17: =L17*J17 -> 0 | O17: =IF($L17=0,0,IF(M17<$O$9,1.5*$A$1/50,0)) -> 0 | P17: =IF($L17=0,0,IF(O17<>0,0,IF(M17<$P$9,((1.5*$A$1)+(M17-400)*1)/50,0))) -> 0 | Q17: =IF($L17=0,0,IF((P17+O17)<>0,0,IF(M17<$Q$9,((3*$A$1)+(M17-1000)*0.8)/50,0))) -> 0 | R17: =IF($L17=0,0,IF((P17+O17+Q17)<>0,0,IF(M17<$R$9,((5*$A$1)+(M17-2000)*0.6)/50,0))) -> 0 | S17: =IF($L17=0,0,IF((P17+O17+Q17+R17)<>0,0,IF(M17<$S$9,((14*$A$1)+(M17-8000)*0.4)/50,0))) -> 0 | T17: =IF($L17=0,0,IF((P17+O17+Q17+R17+S17)<>0,0,IF(M17<$T$9,((26*$A$1)+(M17-20000)*0.2)/50,0))) -> 0 | U17: =IF($L17=0,0,IF((P17+O17+Q17+R17+S17+T17)<>0,0,(36*$A$1)+(M17-40000)*0.1)/50) -> 0
A19: 1 | C19: =INDEX(USOS!$A$1:$A$65,$A19) -> Seleccione USO… (coeficiente Qv) | H19: =INDEX(USOS!$B$1:$B$68,$A19) -> 0 | J19: =INDEX(USOS!$C$1:$C$68,$A19) -> 0 | M19: =L19*J19 -> 0 | O19: =IF($L19=0,0,IF(M19<$O$9,1.5*$A$1/50,0)) -> 0 | P19: =IF($L19=0,0,IF(O19<>0,0,IF(M19<$P$9,((1.5*$A$1)+(M19-400)*1)/50,0))) -> 0 | Q19: =IF($L19=0,0,IF((P19+O19)<>0,0,IF(M19<$Q$9,((3*$A$1)+(M19-1000)*0.8)/50,0))) -> 0 | R19: =IF($L19=0,0,IF((P19+O19+Q19)<>0,0,IF(M19<$R$9,((5*$A$1)+(M19-2000)*0.6)/50,0))) -> 0 | S19: =IF($L19=0,0,IF((P19+O19+Q19+R19)<>0,0,IF(M19<$S$9,((14*$A$1)+(M19-8000)*0.4)/50,0))) -> 0 | T19: =IF($L19=0,0,IF((P19+O19+Q19+R19+S19)<>0,0,IF(M19<$T$9,((26*$A$1)+(M19-20000)*0.2)/50,0))) -> 0 | U19: =IF($L19=0,0,IF((P19+O19+Q19+R19+S19+T19)<>0,0,(36*$A$1)+(M19-40000)*0.1)/50) -> 0
A21: 1 | C21: =INDEX(USOS!$A$1:$A$65,$A21) -> Seleccione USO… (coeficiente Qv) | H21: =INDEX(USOS!$B$1:$B$68,$A21) -> 0 | J21: =INDEX(USOS!$C$1:$C$68,$A21) -> 0 | M21: =L21*J21 -> 0 | O21: =IF($L21=0,0,IF(M21<$O$9,1.5*$A$1/50,0)) -> 0 | P21: =IF($L21=0,0,IF(O21<>0,0,IF(M21<$P$9,((1.5*$A$1)+(M21-400)*1)/50,0))) -> 0 | Q21: =IF($L21=0,0,IF((P21+O21)<>0,0,IF(M21<$Q$9,((3*$A$1)+(M21-1000)*0.8)/50,0))) -> 0 | R21: =IF($L21=0,0,IF((P21+O21+Q21)<>0,0,IF(M21<$R$9,((5*$A$1)+(M21-2000)*0.6)/50,0))) -> 0 | S21: =IF($L21=0,0,IF((P21+O21+Q21+R21)<>0,0,IF(M21<$S$9,((14*$A$1)+(M21-8000)*0.4)/50,0))) -> 0 | T21: =IF($L21=0,0,IF((P21+O21+Q21+R21+S21)<>0,0,IF(M21<$T$9,((26*$A$1)+(M21-20000)*0.2)/50,0))) -> 0 | U21: =IF($L21=0,0,IF((P21+O21+Q21+R21+S21+T21)<>0,0,(36*$A$1)+(M21-40000)*0.1)/50) -> 0
A23: 1 | C23: =INDEX(USOS!$A$1:$A$65,$A23) -> Seleccione USO… (coeficiente Qv) | H23: =INDEX(USOS!$B$1:$B$68,$A23) -> 0 | J23: =INDEX(USOS!$C$1:$C$68,$A23) -> 0 | M23: =L23*J23 -> 0 | O23: =IF($L23=0,0,IF(M23<$O$9,1.5*$A$1/50,0)) -> 0 | P23: =IF($L23=0,0,IF(O23<>0,0,IF(M23<$P$9,((1.5*$A$1)+(M23-400)*1)/50,0))) -> 0 | Q23: =IF($L23=0,0,IF((P23+O23)<>0,0,IF(M23<$Q$9,((3*$A$1)+(M23-1000)*0.8)/50,0))) -> 0 | R23: =IF($L23=0,0,IF((P23+O23+Q23)<>0,0,IF(M23<$R$9,((5*$A$1)+(M23-2000)*0.6)/50,0))) -> 0 | S23: =IF($L23=0,0,IF((P23+O23+Q23+R23)<>0,0,IF(M23<$S$9,((14*$A$1)+(M23-8000)*0.4)/50,0))) -> 0 | T23: =IF($L23=0,0,IF((P23+O23+Q23+R23+S23)<>0,0,IF(M23<$T$9,((26*$A$1)+(M23-20000)*0.2)/50,0))) -> 0 | U23: =IF($L23=0,0,IF((P23+O23+Q23+R23+S23+T23)<>0,0,(36*$A$1)+(M23-40000)*0.1)/50) -> 0
A24: 46 | B24: 26
A25: =IF(O25/10>206,206,O25/10) -> 0 | B25: 206 | M25: =SUM(M11:M23) -> 0 | O25: =SUM(O11:U23) -> 0 | V25: =IF($J19>0,0.02*$M19,0) -> 0 | X25: =IF($J21>0,0.02*$M21,0) -> 0 | Z25: =IF($J23>0,0.02*$M23,0) -> 0
V26: 18 | X26: 20 | Z26: 22
C27: URGENTE O RAPIDO | E27: =J6 -> 0 | V27: =IF($J19<=0,0,400.01/$J19) -> 0 | W27: =1.5*MODULO -> 808.185 | X27: =IF($J21<=0,0,400.01/$J21) -> 0 | Y27: =1.5*MODULO -> 808.185 | Z27: =IF($J23<=0,0,400.01/$J23) -> 0
C28: =B29 -> 26 | V28: =IF($J19<=0,0,1000.01/$J19) -> 0 | W28: =1.5*MODULO+($L21-400)*1 -> 408.185 | X28: =IF($J21<=0,0,1000.01/$J21) -> 0 | Y28: =1.5*MODULO+($L23-400)*1 -> 408.185 | Z28: =IF($J23<=0,0,1000.01/$J15) -> 0
A29: =IF(O25>46,O25,46) -> 46 | B29: =IF(A25>B24,A25,B24) -> 26 | C29: Calculo | D29: =IF(A5=FALSE,IF(A4=TRUE,A30,A29),IF(A4=TRUE,A30+B29,A29+B29)) -> 36 | V29: =IF($J19<=0,0,2000.01/$J19) -> 0 | W29: =3*MODULO+($L21-1000)*0.8 -> 816.37 | X29: =IF($J21<=0,0,2000.01/$J21) -> 0 | Y29: =3*MODULO+($L23-1000)*0.8 -> 816.37 | Z29: =IF($J23<=0,0,2000.01/$J23) -> 0
A30: 36 | E30: =CONCATENATE(ROUND(D29*H1,2)," € c/IVA") -> 43,56 € c/IVA | V30: =IF($J19<=0,0,8000.01/$J19) -> 0 | W30: =5*MODULO+($L21-2000)*0.6 -> 1493.95 | X30: =IF($J21<=0,0,8000.01/$J21) -> 0 | Y30: =5*MODULO+($L23-2000)*0.6 -> 1493.95 | Z30: =IF($J23<=0,0,8000.01/$J23) -> 0
V31: =IF($J19<=0,0,20000.01/$J19) -> 0 | W31: =14*MODULO+($L21-8000)*0.4 -> 4343.06 | X31: =IF($J21<=0,0,20000.01/$J21) -> 0 | Y31: =14*MODULO+($L23-8000)*0.4 -> 4343.06 | Z31: =IF($J23<=0,0,20000.01/$J23) -> 0
V32: =IF($J19<=0,0,40000.01/$J19) -> 0 | W32: =26*MODULO+($L21-20000)*0.2 -> 10008.54 | X32: =IF($J21<=0,0,40000.01/$J21) -> 0 | Y32: =26*MODULO+($L23-20000)*0.2 -> 10008.54 | Z32: =IF($J23<=0,0,40000.01/$J23) -> 0
L33: g | V33: =J19 -> 0 | W33: =36*MODULO+($L21-40000)*0.1 -> 15396.44 | X33: =J21 -> 0 | Y33: =36*MODULO+($L23-40000)*0.1 -> 15396.44 | Z33: =J23 -> 0

Sheet 2.3.2 (hidden)
A1: ='1'!N17 -> 538.79 | B1: COAM | C1: ='1'!B1 -> PRECIOS DE VISADO PARA LOS TRABAJOS PROFESIONALES v12.02 (21.01.26) | G1: =IVA -> 1.21
A2: FALSE | C2: 2.5.1 TRABAJOS OPTATIVOS ADICIONALES Y ANEXOS A LOS PROYECTOS | G2: 31
G3: 26
C4: Nº horas | G4: 205
A5: FALSE | G5: 0.1
A6: =D4*MODULO/500 -> 0 | B6: =IF(A5=TRUE,A7+F9,A7) -> 31 | C6: Calculo | D6: =B6 -> 31 | G6: =A6*G5 -> 0
A7: =IF(A6<=G2,G2,D4*MODULO/500) -> 31 | D7: =IF(D6="",0,D6*1.21) -> 37.51 | E7: c/IVA | G7: =IF(G6*G5<G3,G3,IF(G6*G5>G4,G4,G6*G5)) -> 26
E8: URGENTE O RAPIDO

Sheet 2.3.3 (hidden)
A1: ='1'!N17 -> 538.79 | B1: COAM | C1: ='1'!B1 -> PRECIOS DE VISADO PARA LOS TRABAJOS PROFESIONALES v12.02 (21.01.26)
C2: 2.5.4 PROYECTOS PARCIALES VISADOS POR OTROS COLEGIOS PROFESIONALES
C3: Los proyectos parciales firmados y visados por otros profesionales, que se aporten al COAM para su incorporación al proyecto de arquitectura, abonarán la cuota de 1/3 CV (costes indirectos colegiales sobre el visado) aplicada al porcentaje del presupuesto parcial respecto al total y sólo para las fases de proyecto de ejecución y dirección de obra.

Sheet 2.3.3B (hidden)
A1: ='1'!N17 -> 538.79 | B1: COAM | C1: ='1'!B1 -> PRECIOS DE VISADO PARA LOS TRABAJOS PROFESIONALES v12.02 (21.01.26)
C2: 2.5.5 Proyectos prototipo
C3: El precio del visado a abonar por los proyecto-prototipo será la correspondiente a un Anteproyecto.

Sheet 2.4.1B (hidden)
A1: ='1'!N17 -> 538.79 | B1: COAM | C1: ='1'!B1 -> PRECIOS DE VISADO PARA LOS TRABAJOS PROFESIONALES v12.02 (21.01.26)
A2: FALSE | C2: 2.4.1 PROYECTO Y DIRECCIÓN DE DERRIBO PARCIAL DE EDIFICACIONES
C3: Presupuesto de ejecución material de la obra (PEM) =
E4: €
A6: =IF(D4=0,0,0.5+(6*((MODULO/D4)^0.2))) -> 0 | C6: Coeficiente CP = | D6: =IF(A6>=2.5,2.5,A6) -> 0
C8: Coeficiente de FASE | D8: ='2.1.1B'!$G$13 -> 0 | O8: FALSE | P8: FALSE | S8: FALSE
A9: FALSE | C9: Proyecto | G9: =IF(A9=TRUE,0.7,0) -> 0 | O9: FALSE | P9: FALSE | S9: FALSE
A10: FALSE | C10: Dirección de obras | G10: =IF(A10=TRUE,0.3,0) -> 0 | O10: FALSE | P10: FALSE | S10: FALSE
G11: =SUM(G9:G10) -> 0
B12: =G11*D4*D6/1000 -> 0 | C12: Calculo | D12: =IF(B12>MODULO/40,B12,IF(G11=0,0,MODULO/40)) -> 0 | O12: FALSE | P12: FALSE | Q12: FALSE | R12: FALSE | S12: FALSE
D13: =CONCATENATE(ROUND(D12*1.16,2)," € c/IVA") -> 0 € c/IVA | P13: FALSE | S13: FALSE
C14: El cliente desea que la cuota variable de intervención por visado le sea facturada a su nombre | O14: FALSE | S14: FALSE
D17: Arquitecto | E17: Cliente
D18: =D12/3 -> 0 | E18: =D12*2/3 -> 0

Sheet 2.4.1C (hidden)
A1: ='1'!N17 -> 538.79 | B1: COAM | C1: ='1'!B1 -> PRECIOS DE VISADO PARA LOS TRABAJOS PROFESIONALES v12.02 (21.01.26)
A2: FALSE | C2: 2.4.1 DEMOLICIÓN PARCIAL
C3: Presupuesto de ejecución material de la obra (PEM) =
E4: €
A6: =IF(D4=0,0,0.5+(6*((MODULO/D4)^0.2))) -> 0 | C6: Coeficiente CP = | D6: =IF(A6>=2.5,2.5,A6) -> 0
C8: Coeficiente de FASE | D8: ='2.1.1B'!$G$13 -> 0 | O8: FALSE | P8: FALSE | S8: FALSE
O9: FALSE | P9: FALSE | S9: FALSE
O10: FALSE | P10: FALSE | S10: FALSE
C12: Calculo | D12: =IF(B12>MODULO/40,B12,IF(D9=0,0,MODULO/40)) -> 0 | O12: FALSE | P12: FALSE | Q12: FALSE | R12: FALSE | S12: FALSE
P13: FALSE | S13: FALSE
O14: FALSE | S14: FALSE
E17: Cliente
D18: =D12/3 -> 0 | E18: =D12*2/3 -> 0

Sheet 2.4.1e (hidden)
A1: ='1'!$N$17 -> 538.79 | B1: COAM | C1: ='1'!B1 -> PRECIOS DE VISADO PARA LOS TRABAJOS PROFESIONALES v12.02 (21.01.26)
A2: FALSE | C2: 2.4.1 DEMOLICIÓN PARCIAL
C4: Se calcula mediante una de las siguientes fórmula:
C5: CV = Módulo · C · [Σ.Si · Qv] · F / 6000 ó CP · PEM · F / 1000
C7: Plantas | F7: Num. Plantas | O7: Codigo del Uso | Q7: Sup. Planta | S7: Total m2 Uso | U7: Qv
C8: de | D8: A
B9: 1 | I9: =INDEX(USOS!$C$1:$C$65,$B9) -> 0 | O9: =INDEX(USOS!$B$1:$B$68,$B9) -> 0 | R9: m2 | S9: =Q9*F9 -> 0 | T9: m2 | U9: =INDEX(USOS!$C$1:$C$68,$B9) -> 0 | W9: =IF(U9<>"-",U9*S9,0) -> 0
B11: 1 | O11: =INDEX(USOS!$B$1:$B$68,$B11) -> 0 | R11: m2 | S11: =Q11*F11 -> 0 | T11: m2 | U11: =INDEX(USOS!$C$1:$C$68,$B11) -> 0 | W11: =IF(U11<>"-",U11*S11,0) -> 0
B13: 1 | O13: =INDEX(USOS!$B$1:$B$68,$B13) -> 0 | R13: m2 | S13: =Q13*F13 -> 0 | T13: m2 | U13: =INDEX(USOS!$C$1:$C$68,$B13) -> 0 | W13: =IF(U13<>"-",U13*S13,0) -> 0
B15: 1 | O15: =INDEX(USOS!$B$1:$B$68,$B15) -> 0 | R15: m2 | S15: =Q15*F15 -> 0 | T15: m2 | U15: =INDEX(USOS!$C$1:$C$68,$B15) -> 0 | W15: =IF(U15<>"-",U15*S15,0) -> 0
B17: 1 | O17: =INDEX(USOS!$B$1:$B$68,$B17) -> 0 | R17: m2 | S17: =Q17*F17 -> 0 | T17: m2 | U17: =INDEX(USOS!$C$1:$C$68,$B17) -> 0 | W17: =IF(U17<>"-",U17*S17,0) -> 0
B19: 1 | O19: =INDEX(USOS!$B$1:$B$68,$B19) -> 0 | R19: m2 | S19: =Q19*F19 -> 0 | T19: m2 | U19: =INDEX(USOS!$C$1:$C$68,$B19) -> 0 | W19: =IF(U19<>"-",U19*S19,0) -> 0
B21: 1 | O21: =INDEX(USOS!$B$1:$B$68,$B21) -> 0 | R21: m2 | S21: =Q21*F21 -> 0 | T21: m2 | U21: =INDEX(USOS!$C$1:$C$68,$B21) -> 0 | W21: =IF(U21<>"-",U21*S21,0) -> 0
B23: 1 | O23: =INDEX(USOS!$B$1:$B$68,$B23) -> 0 | R23: m2 | S23: =Q23*F23 -> 0 | T23: m2 | U23: =INDEX(USOS!$C$1:$C$68,$B23) -> 0 | W23: =IF(U23<>"-",U23*S23,0) -> 0
B25: 1 | O25: =INDEX(USOS!$B$1:$B$68,$B25) -> 0 | R25: m2 | S25: =Q25*F25 -> 0 | T25: m2 | U25: =INDEX(USOS!$C$1:$C$68,$B25) -> 0 | W25: =IF(U25<>"-",U25*S25,0) -> 0
B27: 1 | O27: =INDEX(USOS!$B$1:$B$68,$B27) -> 0 | R27: m2 | S27: =Q27*F27 -> 0 | T27: m2 | U27: =INDEX(USOS!$C$1:$C$68,$B27) -> 0 | W27: =IF(U27<>"-",U27*S27,0) -> 0
C29: Presupuesto de ejecución material PEM | J29: = | M29: € | N29: =IF(S29="-",TRUE,FALSE) -> FALSE
S30: -
B31: =IF(K29=0,0,0.5+(6*((MODULO/K29)^0.2))) -> 0 | C31: =IF(B31>=2.5,2.5,B31) -> 0 | F31: =IF(K29=0,0,CONCATENATE(ROUND(K29/S31,2)," €/m2 ",ROUND((K29/S31)*166.386,0)," pts/m2")) -> 0 | K31: =IF(S31<=300,11.75,IF(S31<=400,11.5,IF(S31<=600,10.8,IF(S31<=800,11.3,IF(S31<=1000,10,IF(S31<=2000,9,L31)))))) -> 11.75 | L31: =IF(S31<=3000,8.6,IF(S31<=5000,8,IF(S31<=8000,7.5,IF(S31<=12000,7.1,IF(S31<=20000,6.7,IF(S31<=35000,6.2,M31)))))) -> 8.6 | M31: =IF(S31<=80000,5.7,IF(S31<=120000,5.4,IF(S31<=200000,5.2,IF(S31<=400000,4.8,IF(S31<=700000,4.6,IF(S31<=1000000,4.45,4.45)))))) -> 5.7 | Q31: Σ Si | R31: = | S31: =SUM(S27,S25,S23,S21,S19,S17,S15,S13,S11,S9) -> 0 | T31: m2 | W31: =SUM(W9,W11,W13,W15,W17,W19,W21,W23,W25,W27) -> 0
B33: =IF(K36=0,0,K36*K29*C31/1000) -> 0 | E33: coeficiente por superficie construida | J33: = | K33: =IF(S31<>0,M33,"") ->  | L33: =IF(S31<>0,(2.6+10.2*((200/S31)^0.2)),0) -> 0 | M33: =IF(L33>11.75,11.75,IF(L33<4.457,4.45,L33)) -> 4.45 | Q33: Σ Si . Qv | R33: = | S33: =W31 -> 0
G35: =#REF! ->  | H35: Coeficiente de FASE | K35: ='2.1.1B'!$G$13 -> 0
J36: =
B38: =MODULO*K33*S33*K36/6000 ->  | C38: =MODULO/40 -> 13.46975 | F38: =IF(B33<B38,B38,B33) ->  | H38: Calculo | J38: = | K38: =IF(F38>MODULO/40,F38,MODULO/40) ->  | L38: =IF(B33<B38,"Calculo según Obra nueva"," ") -> 
K39: =CONCATENATE(ROUND(K38*1.16,2)," € c/IVA") -> 
H40: El cliente desea que la cuota variable de intervención por visado le sea facturada a su nombre
L42: Arquitecto | M42: Cliente
L43: =K38/3 ->  | M43: =K38*2/3 -> 

Sheet 2.5.1C (hidden)
A1: ='1'!$N$17 -> 538.79 | B1: COAM | C1: ='1'!B1 -> PRECIOS DE VISADO PARA LOS TRABAJOS PROFESIONALES v12.02 (21.01.26)
A2: FALSE | C2: 2.5.1 ARQUITECTURA MONUMENTAL Y CONMEMORATIVA
C4: Se calcula mediante una de las siguientes fórmula:
C5: CV = Módulo · C · [Σ.Si · Qv] · F / 6000 ó CP · PEM · F / 1000
C7: Plantas | F7: Num. Plantas | O7: Codigo del Uso | Q7: Sup. Planta | S7: Total m2 Uso | U7: Qv
C8: de | D8: A
B9: 1 | I9: =INDEX(USOS!$C$1:$C$65,$B9) -> 0 | O9: =INDEX(USOS!$B$1:$B$68,$B9) -> 0 | R9: m2 | S9: =Q9*F9 -> 0 | T9: m2 | U9: =INDEX(USOS!$C$1:$C$68,$B9) -> 0 | W9: =IF(U9<>"-",U9*S9,0) -> 0
B11: 1 | O11: =INDEX(USOS!$B$1:$B$68,$B11) -> 0 | R11: m2 | S11: =Q11*F11 -> 0 | T11: m2 | U11: =INDEX(USOS!$C$1:$C$68,$B11) -> 0 | W11: =IF(U11<>"-",U11*S11,0) -> 0
B13: 1 | O13: =INDEX(USOS!$B$1:$B$68,$B13) -> 0 | R13: m2 | S13: =Q13*F13 -> 0 | T13: m2 | U13: =INDEX(USOS!$C$1:$C$68,$B13) -> 0 | W13: =IF(U13<>"-",U13*S13,0) -> 0
B15: 1 | O15: =INDEX(USOS!$B$1:$B$68,$B15) -> 0 | R15: m2 | S15: =Q15*F15 -> 0 | T15: m2 | U15: =INDEX(USOS!$C$1:$C$68,$B15) -> 0 | W15: =IF(U15<>"-",U15*S15,0) -> 0
B17: 1 | O17: =INDEX(USOS!$B$1:$B$68,$B17) -> 0 | R17: m2 | S17: =Q17*F17 -> 0 | T17: m2 | U17: =INDEX(USOS!$C$1:$C$68,$B17) -> 0 | W17: =IF(U17<>"-",U17*S17,0) -> 0
B19: 1 | O19: =INDEX(USOS!$B$1:$B$68,$B19) -> 0 | R19: m2 | S19: =Q19*F19 -> 0 | T19: m2 | U19: =INDEX(USOS!$C$1:$C$68,$B19) -> 0 | W19: =IF(U19<>"-",U19*S19,0) -> 0
B21: 1 | O21: =INDEX(USOS!$B$1:$B$68,$B21) -> 0 | R21: m2 | S21: =Q21*F21 -> 0 | T21: m2 | U21: =INDEX(USOS!$C$1:$C$68,$B21) -> 0 | W21: =IF(U21<>"-",U21*S21,0) -> 0
B23: 1 | O23: =INDEX(USOS!$B$1:$B$68,$B23) -> 0 | R23: m2 | S23: =Q23*F23 -> 0 | T23: m2 | U23: =INDEX(USOS!$C$1:$C$68,$B23) -> 0 | W23: =IF(U23<>"-",U23*S23,0) -> 0
B25: 1 | O25: =INDEX(USOS!$B$1:$B$68,$B25) -> 0 | R25: m2 | S25: =Q25*F25 -> 0 | T25: m2 | U25: =INDEX(USOS!$C$1:$C$68,$B25) -> 0 | W25: =IF(U25<>"-",U25*S25,0) -> 0
B27: 1 | O27: =INDEX(USOS!$B$1:$B$68,$B27) -> 0 | R27: m2 | S27: =Q27*F27 -> 0 | T27: m2 | U27: =INDEX(USOS!$C$1:$C$68,$B27) -> 0 | W27: =IF(U27<>"-",U27*S27,0) -> 0
C29: Presupuesto de ejecución material PEM | J29: = | M29: € | N29: =IF(S29="-",TRUE,FALSE) -> FALSE
S30: -
B31: =IF(K29=0,0,0.5+(6*((MODULO/K29)^0.2))) -> 0 | C31: =IF(B31>=2.5,2.5,B31) -> 0 | F31: =IF(K29=0,0,CONCATENATE(ROUND(K29/S31,2)," €/m2 ",ROUND((K29/S31)*166.386,0)," pts/m2")) -> 0 | K31: =IF(S31<=300,11.75,IF(S31<=400,11.5,IF(S31<=600,10.8,IF(S31<=800,11.3,IF(S31<=1000,10,IF(S31<=2000,9,L31)))))) -> 11.75 | L31: =IF(S31<=3000,8.6,IF(S31<=5000,8,IF(S31<=8000,7.5,IF(S31<=12000,7.1,IF(S31<=20000,6.7,IF(S31<=35000,6.2,M31)))))) -> 8.6 | M31: =IF(S31<=80000,5.7,IF(S31<=120000,5.4,IF(S31<=200000,5.2,IF(S31<=400000,4.8,IF(S31<=700000,4.6,IF(S31<=1000000,4.45,4.45)))))) -> 5.7 | Q31: Σ Si | R31: = | S31: =SUM(S27,S25,S23,S21,S19,S17,S15,S13,S11,S9) -> 0 | T31: m2 | W31: =SUM(W9,W11,W13,W15,W17,W19,W21,W23,W25,W27) -> 0
B33: =IF(K36=0,0,K36*K29*C31/1000) -> 0 | E33: coeficiente por superficie construida | J33: = | K33: =IF(S31<>0,M33,"") ->  | L33: =IF(S31<>0,(2.6+10.2*((200/S31)^0.2)),0) -> 0 | M33: =IF(L33>11.75,11.75,IF(L33<4.457,4.45,L33)) -> 4.45 | Q33: Σ Si . Qv | R33: = | S33: =W31 -> 0
G35: =#REF! ->  | H35: Coeficiente de FASE | K35: ='2.1.1B'!$G$13 -> 0
J36: =
B38: =MODULO*K33*S33*K36/6000 ->  | C38: =MODULO/40 -> 13.46975 | F38: =IF(B33<B38,B38,B33) ->  | H38: Calculo | J38: = | K38: =IF(F38>MODULO/40,F38,MODULO/40) ->  | L38: =IF(B33<B38,"Calculo según Obra nueva"," ") -> 
K39: =CONCATENATE(ROUND(K38*1.16,2)," € c/IVA") -> 
H40: El cliente desea que la cuota variable de intervención por visado le sea facturada a su nombre
L42: Arquitecto | M42: Cliente
L43: =K38/3 ->  | M43: =K38*2/3 -> 

Sheet 2.5.2C (hidden)
A1: ='1'!$N$17 -> 538.79 | B1: COAM | C1: ='1'!B1 -> PRECIOS DE VISADO PARA LOS TRABAJOS PROFESIONALES v12.02 (21.01.26)
A2: FALSE | C2: 2.5.2 DECORACIÓN O ACABADO DE LOCALES
C4: Se calcula mediante una de las siguientes fórmula:
C5: CV = Módulo · C · [Σ.Si · Qv] · F / 6000 ó CP · PEM · F / 1000
C7: Plantas | F7: Num. Plantas | O7: Codigo del Uso | Q7: Sup. Planta | S7: Total m2 Uso | U7: Qv
C8: de | D8: A
B9: 1 | I9: =INDEX(USOS!$C$1:$C$65,$B9) -> 0 | O9: =INDEX(USOS!$B$1:$B$68,$B9) -> 0 | R9: m2 | S9: =Q9*F9 -> 0 | T9: m2 | U9: =INDEX(USOS!$C$1:$C$68,$B9) -> 0 | W9: =IF(U9<>"-",U9*S9,0) -> 0
B11: 1 | O11: =INDEX(USOS!$B$1:$B$68,$B11) -> 0 | R11: m2 | S11: =Q11*F11 -> 0 | T11: m2 | U11: =INDEX(USOS!$C$1:$C$68,$B11) -> 0 | W11: =IF(U11<>"-",U11*S11,0) -> 0
B13: 1 | O13: =INDEX(USOS!$B$1:$B$68,$B13) -> 0 | R13: m2 | S13: =Q13*F13 -> 0 | T13: m2 | U13: =INDEX(USOS!$C$1:$C$68,$B13) -> 0 | W13: =IF(U13<>"-",U13*S13,0) -> 0
B15: 1 | O15: =INDEX(USOS!$B$1:$B$68,$B15) -> 0 | R15: m2 | S15: =Q15*F15 -> 0 | T15: m2 | U15: =INDEX(USOS!$C$1:$C$68,$B15) -> 0 | W15: =IF(U15<>"-",U15*S15,0) -> 0
B17: 1 | O17: =INDEX(USOS!$B$1:$B$68,$B17) -> 0 | R17: m2 | S17: =Q17*F17 -> 0 | T17: m2 | U17: =INDEX(USOS!$C$1:$C$68,$B17) -> 0 | W17: =IF(U17<>"-",U17*S17,0) -> 0
B19: 1 | O19: =INDEX(USOS!$B$1:$B$68,$B19) -> 0 | R19: m2 | S19: =Q19*F19 -> 0 | T19: m2 | U19: =INDEX(USOS!$C$1:$C$68,$B19) -> 0 | W19: =IF(U19<>"-",U19*S19,0) -> 0
B21: 1 | O21: =INDEX(USOS!$B$1:$B$68,$B21) -> 0 | R21: m2 | S21: =Q21*F21 -> 0 | T21: m2 | U21: =INDEX(USOS!$C$1:$C$68,$B21) -> 0 | W21: =IF(U21<>"-",U21*S21,0) -> 0
B23: 1 | O23: =INDEX(USOS!$B$1:$B$68,$B23) -> 0 | R23: m2 | S23: =Q23*F23 -> 0 | T23: m2 | U23: =INDEX(USOS!$C$1:$C$68,$B23) -> 0 | W23: =IF(U23<>"-",U23*S23,0) -> 0
B25: 1 | O25: =INDEX(USOS!$B$1:$B$68,$B25) -> 0 | R25: m2 | S25: =Q25*F25 -> 0 | T25: m2 | U25: =INDEX(USOS!$C$1:$C$68,$B25) -> 0 | W25: =IF(U25<>"-",U25*S25,0) -> 0
B27: 1 | O27: =INDEX(USOS!$B$1:$B$68,$B27) -> 0 | R27: m2 | S27: =Q27*F27 -> 0 | T27: m2 | U27: =INDEX(USOS!$C$1:$C$68,$B27) -> 0 | W27: =IF(U27<>"-",U27*S27,0) -> 0
C29: Presupuesto de ejecución material PEM | J29: = | M29: € | N29: =IF(S29="-",TRUE,FALSE) -> FALSE
S30: -
B31: =IF(K29=0,0,0.5+(6*((MODULO/K29)^0.2))) -> 0 | C31: =IF(B31>=2.5,2.5,B31) -> 0 | F31: =IF(K29=0,0,CONCATENATE(ROUND(K29/S31,2)," €/m2 ",ROUND((K29/S31)*166.386,0)," pts/m2")) -> 0 | K31: =IF(S31<=300,11.75,IF(S31<=400,11.5,IF(S31<=600,10.8,IF(S31<=800,11.3,IF(S31<=1000,10,IF(S31<=2000,9,L31)))))) -> 11.75 | L31: =IF(S31<=3000,8.6,IF(S31<=5000,8,IF(S31<=8000,7.5,IF(S31<=12000,7.1,IF(S31<=20000,6.7,IF(S31<=35000,6.2,M31)))))) -> 8.6 | M31: =IF(S31<=80000,5.7,IF(S31<=120000,5.4,IF(S31<=200000,5.2,IF(S31<=400000,4.8,IF(S31<=700000,4.6,IF(S31<=1000000,4.45,4.45)))))) -> 5.7 | Q31: Σ Si | R31: = | S31: =SUM(S27,S25,S23,S21,S19,S17,S15,S13,S11,S9) -> 0 | T31: m2 | W31: =SUM(W9,W11,W13,W15,W17,W19,W21,W23,W25,W27) -> 0
B33: =IF(K36=0,0,K36*K29*C31/1000) -> 0 | E33: coeficiente por superficie construida | J33: = | K33: =IF(S31<>0,M33,"") ->  | L33: =IF(S31<>0,(2.6+10.2*((200/S31)^0.2)),0) -> 0 | M33: =IF(L33>11.75,11.75,IF(L33<4.457,4.45,L33)) -> 4.45 | Q33: Σ Si . Qv | R33: = | S33: =W31 -> 0
G35: =#REF! ->  | H35: Coeficiente de FASE | K35: ='2.1.1B'!$G$13 -> 0
J36: =
B38: =MODULO*K33*S33*K36/6000 ->  | C38: =MODULO/40 -> 13.46975 | F38: =IF(B33<B38,B38,B33) ->  | H38: Calculo | J38: = | K38: =IF(F38>MODULO/40,F38,MODULO/40) ->  | L38: =IF(B33<B38,"Calculo según Obra nueva"," ") -> 
K39: =CONCATENATE(ROUND(K38*1.16,2)," € c/IVA") -> 
H40: El cliente desea que la cuota variable de intervención por visado le sea facturada a su nombre
L42: Arquitecto | M42: Cliente
L43: =K38/3 ->  | M43: =K38*2/3 -> 

Sheet 2.5.2D (hidden)
A1: ='1'!N17 -> 538.79 | B1: COAM | C1: ='1'!B1 -> PRECIOS DE VISADO PARA LOS TRABAJOS PROFESIONALES v12.02 (21.01.26)
A2: FALSE | C2: 2.5.2 Decoración o acabado de locales
C3: Presupuesto de ejecución material de la obra (PEM) =
E4: €
A6: =IF(D4=0,0,0.5+(6*((MODULO/D4)^0.2))) -> 0 | C6: Coeficiente CP = | D6: =IF(A6>=2.5,2.5,A6) -> 0
C8: Coeficiente de FASE | D8: ='2.1.1B'!$G$13 -> 0 | O8: FALSE | P8: FALSE | S8: FALSE
O9: FALSE | P9: FALSE | S9: FALSE
O10: FALSE | P10: FALSE | S10: FALSE
B12: =D9*D4*D6/1000 -> 0 | C12: Calculo | D12: =IF(B12>MODULO/40,B12,IF(D9=0,0,MODULO/40)) -> 0 | O12: FALSE | P12: FALSE | Q12: FALSE | R12: FALSE | S12: FALSE
D13: =CONCATENATE(ROUND(D12*1.16,2)," € c/IVA") -> 0 € c/IVA | P13: FALSE | S13: FALSE
C14: El cliente desea que la cuota variable de intervención por visado le sea facturada a su nombre | O14: FALSE | S14: FALSE
D17: Arquitecto | E17: Cliente
D18: =D12/3 -> 0 | E18: =D12*2/3 -> 0

Sheet 3.1.1A (hidden)
A1: ='1'!N17 -> 538.79 | B1: COAM | C1: ='1'!B1 -> PRECIOS DE VISADO PARA LOS TRABAJOS PROFESIONALES v12.02 (21.01.26) | H1: FALSE
A2: FALSE | C2: 3.1.1 PLANES GENERALES DE ORDENACIÓN URBANA (PGOU) | H2: 26
A3: FALSE | H3: 205
C4: Superficie total del Término Municipal | H4: 0.1
E5: Hectareas | H5: =B26 -> 0
H6: =IF(H5*H4<H2,H2,IF(H5*H4>H3,H3,H5*H4)) -> 26
C7: Población | H7: =IF(H1=TRUE,B26+H6,B26) -> 0
C9: residentes Término Municipal
E10: habitantes
C12: Presencía turística significativa
E14: nº viviendas
E16: nº plazas hoteleras
C18: Población | D18: =IF(A3=FALSE,D10,D14*3+0.5*D16) -> 0 | E18: habitantes
A20: =IF(D18=0,0,0.008+(0.08*(1000/D18)^0.5)) -> 0 | C20: Coeficiente P | D20: =IF(A20>0.045,0.045,A20) -> 0 | E20: =IF(D20=0.045," Valor máximo","") -> 
C22: Coeficiente de fase | E22: ='3.1.7'!F20 -> ----------
C23: Coeficiente de fase = | D23: ='3.1.7'!G19 -> 0
B26: =D24*MODULO*((0.1*D5)+(D18*D20))/50 -> 0 | C26: Calculo | D26: =H7 -> 0
D27: =CONCATENATE(ROUND(D26*IVA,2)," € c/IVA") -> 0 € c/IVA
C28: URGENTE O RAPIDO

Sheet 3.1.1B (hidden)
A1: ='1'!N17 -> 538.79 | B1: COAM | C1: ='1'!B1 -> PRECIOS DE VISADO PARA LOS TRABAJOS PROFESIONALES v12.02 (21.01.26) | H1: FALSE
A2: FALSE | C2: 3.1.1 NORMAS SUBSIDIARIAS (NNSS) | H2: 26
A3: FALSE | H3: 205
C4: Superficie total del Término Municipal | H4: 0.1
E5: hectareas | H5: =B26 -> 0
H6: =IF(H5*H4<H2,H2,IF(H5*H4>H3,H3,H5*H4)) -> 26
C7: Población | H7: =IF(H1=TRUE,B26+H6,B26) -> 0
C9: residentes Término Municipal
E10: habitantes
C12: Presencía turística significativa
E14: nº viviendas
E16: nº plazas hoteleras
C18: Población | D18: =IF(A3=FALSE,D10,D14*3+0.5*D16) -> 0 | E18: habitantes
A20: =IF(D18=0,0,0.003+(0.03*(1000/D18)^0.5)) -> 0 | C20: Coeficiente P | D20: =IF(A20>0.02,0.02,A20) -> 0 | E20: =IF(D20=0.02," Valor máximo","") -> 
C22: Coeficiente de fase | E22: ='3.1.7'!F20 -> ----------
C23: Coeficiente de fase = | D23: ='3.1.7'!G19 -> 0
B26: =D24*MODULO*((0.1*D5)+(D18*D20))/50 -> 0 | C26: Calculo | D26: =H7 -> 0
C28: URGENTE O RAPIDO

Sheet 3.1.1C (hidden)
A1: ='1'!N17 -> 538.79 | B1: COAM | C1: ='1'!B1 -> PRECIOS DE VISADO PARA LOS TRABAJOS PROFESIONALES v12.02 (21.01.26) | H1: FALSE
A2: FALSE | C2: 3.1.1 PROYECTOS DE DELIMITACIÓN DE SUELO URBANO (PDSU) | H2: 26
A3: FALSE | H3: 205
C4: Superficie de suelo urbano delimitado | H4: 0.1
E5: hectareas | H5: =B26 -> 0
H6: =IF(H5*H4<H2,H2,IF(H5*H4>H3,H3,H5*H4)) -> 26
C7: Población | H7: =IF(H1=TRUE,B26+H6,B26) -> 0
C9: residentes Término Municipal
E10: habitantes
C12: Presencía turística significativa
E14: nº viviendas
E16: nº plazas hoteleras
C18: Población | D18: =IF(A3=FALSE,D10,D14*3+0.5*D16) -> 0 | E18: habitantes
A20: =IF(D18=0,0,0.003+(0.015*(1000/D18)^0.5)) -> 0 | C20: Coeficiente P | D20: =IF(A20>0.015,0.045,A20) -> 0 | E20: =IF(D20=0.015," Valor máximo","") -> 
C22: Coeficiente de fase | E22: ='3.1.7'!F20 -> ----------
C23: Coeficiente de fase = | D23: ='3.1.7'!G19 -> 0
B26: =D24*MODULO*((0.1*D5)+(D18*D20))/50 -> 0 | C26: Calculo | D26: =H7 -> 0
C28: URGENTE O RAPIDO

Sheet 3.1.1D (hidden)
A1: 400 | B1: COAM | C1: ='1'!B1 -> PRECIOS DE VISADO PARA LOS TRABAJOS PROFESIONALES v12.02 (21.01.26) | H1: Seleccione planeamiento… | I1: 0 | J1: 0
A2: FALSE | C2: 3.1.9 ESTUDIO Y ANÁLISIS AMBIENTAL (ambito municipal) | H2: PLANES GENERALES DE ORDENACIÓN URBANA (PGOU) | I2: =IF($D$18>0,0.008+(0.08*(1000/$D$18)^0.5),0) -> 0 | J2: =IF( I2>0.045,0.045,I2) -> 0
A3: FALSE | H3: NORMAS SUBSIDIARIAS (NN.SS.) | I3: =IF($D$18>0,0.003+(0.03*(1000/$D$18)^0.5),0) -> 0 | J3: =IF( I3>0.02,0.02,I3) -> 0
C4: Superficie total del Término Municipal | H4: PROYECTOS DE DELIMITACIÓN DE SUELO URBANO (PDSU) | I4: =IF($D$18>0,0.003+(0.015*(1000/$D$18)^0.5),0) -> 0 | J4: =IF( I4>0.015,0.015,I4) -> 0
E5: Hectareas
C7: Población
C9: residentes Término Municipal
E10: habitantes
C12: Presencía turística significativa
E14: nº viviendas
E16: nº plazas hoteleras
C18: Población | D18: =IF(A3=FALSE,D10,D14*3+0.5*D16) -> 0 | E18: habitantes
A19: 1 | B19: è
A20: =IF(D18=0,0,0.008+(0.08*(1000/D18)^0.5)) -> 0 | C20: Coeficiente Pp = | D20: =INDEX(J1:J4,A19) -> 0
C22: Coeficiente de fase | E22: =TABLAU3!F12 -> ----
C23: Coeficiente de fase = | D23: =TABLAU3!G11 -> 0
A25: FALSE | G25: =IF(A25=TRUE,1.3,1) -> 1
C26: Calculo | D26: =(D24*MODULO*((0.1*D5)+(D18*D20))/50)*0.05*G25 -> 0
D27: =CONCATENATE(ROUND(D26*1.16,2)," € c/IVA") -> 0 € c/IVA
C28: El cliente desea que la cuota variable de intervención por visado le sea facturada a su nombre
D31: Arquitecto | E31: Cliente
D32: =D26/3 -> 0 | E32: =D26*2/3 -> 0

Sheet 3.1.1E (hidden)
A1: 400 | B1: COAM | C1: ='1'!B1 -> PRECIOS DE VISADO PARA LOS TRABAJOS PROFESIONALES v12.02 (21.01.26) | H1: Seleccione planeamiento… | I1: 0 | J1: 0
A2: FALSE | C2: 3.1.9 ESTUDIO Y ANÁLISIS AMBIENTAL (ambito submunicipal) | H2: PLANES GENERALES DE ORDENACIÓN URBANA (PGOU) | I2: =IF($D$18>0,0.008+(0.08*(1000/$D$18)^0.5),0) -> 0 | J2: =IF( I2>0.045,0.045,I2) -> 0
A3: FALSE | H3: NORMAS SUBSIDIARIAS (NN.SS.) | I3: =IF($D$18>0,0.003+(0.03*(1000/$D$18)^0.5),0) -> 0 | J3: =IF( I3>0.02,0.02,I3) -> 0
C4: Superficie total del Término Municipal | H4: PROYECTOS DE DELIMITACIÓN DE SUELO URBANO (PDSU) | I4: =IF($D$18>0,0.003+(0.015*(1000/$D$18)^0.5),0) -> 0 | J4: =IF( I4>0.015,0.015,I4) -> 0
E5: Hectareas
C7: Población
C9: residentes Término Municipal
E10: habitantes
C12: Presencía turística significativa
E14: nº viviendas
E16: nº plazas hoteleras
C18: Población | D18: =IF(A3=FALSE,D10,D14*3+0.5*D16) -> 0 | E18: habitantes
A19: 1 | B19: è
A20: =IF(D18=0,0,0.008+(0.08*(1000/D18)^0.5)) -> 0 | C20: Coeficiente Pp = | D20: =INDEX(J1:J4,A19) -> 0
C22: Coeficiente de fase | E22: =TABLAU3!F12 -> ----
C23: Coeficiente de fase = | D23: =TABLAU3!G11 -> 0
C25: Suelo municipal incluido en el ambito
E26: Hectareas
D28: =IF(D5>0,D26/D5,0) -> 0 | E28: Porcentaje
A29: FALSE | G29: =IF(A29=TRUE,1.3,1) -> 1
C30: Calculo | D30: =(D24*MODULO*((0.1*D5)+(D18*D20))/50)*0.05*G29*D28 -> 0
D31: =CONCATENATE(ROUND(D30*1.16,2)," € c/IVA") -> 0 € c/IVA
C32: El cliente desea que la cuota variable de intervención por visado le sea facturada a su nombre
D35: Arquitecto | E35: Cliente
D36: =D30/3 -> 0 | E36: =D30*2/3 -> 0

Sheet 3.1.2 (hidden)
A1: 400 | B1: COAM | C1: ='1'!B1 -> PRECIOS DE VISADO PARA LOS TRABAJOS PROFESIONALES v12.02 (21.01.26)
C2: 3.1.2 PLANES ESPECIALES SECTORIALES
C4: La cuota para Planes Especiales Sectoriales se calcula en función de su naturaleza por analogía con otras figuras de planeamiento, desarrollo de planeamiento y/o proyectos de urbanización.
D10: Arquitecto | E10: Cliente
D11: =D5/3 -> 0 | E11: =D5*2/3 -> 0

Sheet 3.1.3 (hidden)
A1: ='1'!N17 -> 538.79 | B1: COAM | C1: ='1'!B1 -> PRECIOS DE VISADO PARA LOS TRABAJOS PROFESIONALES v12.02 (21.01.26) | H1: FALSE
A2: FALSE | C2: 3.1.3 PLANES DE SECTORIZACIÓN Y PROGRAMAS DE ACTUACIÓN URBANÍSTICA | H2: 26
C3: Calculo plan parcial | H3: 205
C4: Superficie total ordenada | H4: 0.1
F5: Hectareas | H5: =B25 -> 0
H6: =IF(H5*H4<H2,H2,IF(H5*H4>H3,H3,H5*H4)) -> 26
H7: =IF(H1=TRUE,B26+H6,B26) -> 0
A9: =E5 -> 0 | H9: =IF(H5*H4<H2,H2,IF(H5*H4>H3,H3,H5*H4)) -> 26
A10: =IF(A9=0,0,2+30*(1/A9)^0.4) -> 0 | C10: Coeficiente Ss | E10: =IF(A10>15,15,A10) -> 0
H11: =IF(H1=TRUE,B25+H9,B25) -> 0
A13: =IF(E12=0,0,0.075+2*(1/E12)^0.4) -> 0
A16: 1
C19: Coeficiente de fase | F19: ='3.1.7'!F20 -> ----------
C20: Coeficiente de fase | E20: ='3.1.7'!G19 -> 0
D21: =
A23: =INDEX(#REF!,A16) -> 
C24: Plan Parcial | D24: ¡= | E24: =IF(E21=0,0,A26) -> 0
A25: =IF(E21>0,E21*MODULO*E5*E10/50,0) -> 0 | B25: =E24*0.25 -> 0 | C25: Calculo | E25: =H11 -> 0
A26: =IF(A25<MODULO/10,MODULO/10,A25) -> 53.879 | E26: =CONCATENATE(ROUND(E25*1.16,2)," € C/IVA") -> 0 € C/IVA
C28: URGENTE O RAPIDO

Sheet 3.1.4 (hidden)
A1: ='1'!N17 -> 538.79 | B1: COAM | C1: ='1'!B1 -> PRECIOS DE VISADO PARA LOS TRABAJOS PROFESIONALES v12.02 (21.01.26) | H1: FALSE
A2: FALSE | C2: 3.1.4 PLANES PARCIALES | H2: 26
H3: 205
C4: Superficie total ordenada | H4: 0.1
F5: Hectareas | H5: =B25 -> 0
H6: =IF(H5*H4<H2,H2,IF(H5*H4>H3,H3,H5*H4)) -> 26
H7: =IF(H1=TRUE,B26+H6,B26) -> 0
A9: =E5 -> 0
A10: =IF(A9=0,0,2+30*(1/A9)^0.4) -> 0 | C10: Coeficiente Ss | E10: =IF(A10>15,15,A10) -> 0 | H10: =IF(H1=TRUE,B25+H6,B25) -> 0
A13: =IF(E12=0,0,(0.075+2*((1/E12)^0.4))) -> 0
A16: 1
C19: Coeficiente de fase | F19: ='3.1.7'!F20 -> ----------
C20: Coeficiente de fase | E20: ='3.1.7'!G19 -> 0
D21: =
A23: =IF(E21>0,E21*MODULO*E5*E10/50,0) -> 0 | C23: Calculo | E23: =H10 -> 0
A24: =IF(A23<MODULO/10,MODULO/10,A23) -> 53.879 | E24: =CONCATENATE(ROUND(E23*1.16,2)," € C/IVA") -> 0 € C/IVA
B25: =IF(E21=0,0,A24) -> 0
C27: URGENTE O RAPIDO

Sheet 3.1.5 (hidden)
A1: ='1'!N17 -> 538.79 | B1: COAM | C1: ='1'!B1 -> PRECIOS DE VISADO PARA LOS TRABAJOS PROFESIONALES v12.02 (21.01.26) | H1: FALSE
A2: FALSE | C2: 3.1.5 PLANES ESPECIALES DE REFORMA INTERIOR | H2: 26
C3: Calculo plan parcial | H3: 205
C4: Superficie total ordenada | H4: 0.1
F5: Hectareas | H5: =A25 -> 0
H6: =IF(H5*H4<H2,H2,IF(H5*H4>H3,H3,H5*H4)) -> 26
H7: =IF(H1=TRUE,B26+H6,B26) -> 0
A9: =E5 -> 0
A10: =IF(A9=0,0,2+30*(1/A9)^0.4) -> 0 | C10: Coeficiente Ss | E10: =IF(A10>15,15,A10) -> 0
A13: =IF(E12=0,0,0.075+2*(1/E12)^0.4) -> 0
H14: TRUE
H15: 25
A16: 1 | H16: 200
H17: 0.1
H18: =B39 -> 0
C19: Coeficiente de fase | F19: ='3.1.7'!F20 -> ---------- | H19: =IF(H5*H4<H2,H2,IF(H5*H4>H3,H3,H5*H4)) -> 26
C20: Coeficiente de fase | E20: ='3.1.7'!G19 -> 0 | H20: =IF(H1=TRUE,A25+H19,A25) -> 0
D21: =
A23: =INDEX(#REF!,A16) -> 
C24: Plan Parcial | D24: ¡= | E24: =IF(E21=0,0,A26) -> 0
A25: =IF(E21>0,E21*MODULO*E5*E10/30,0) -> 0 | C25: Calculo | E25: =H20 -> 0
A26: =IF(A25<MODULO/10,MODULO/10,A25) -> 53.879 | E26: =CONCATENATE(ROUND(E25*1.16,2)," € C/IVA") -> 0 € C/IVA
C28: URGENTE O RAPIDO

Sheet 3.1.6 (hidden)
A1: ='1'!N17 -> 538.79 | B1: COAM | C1: ='1'!B1 -> PRECIOS DE VISADO PARA LOS TRABAJOS PROFESIONALES v12.02 (21.01.26) | H1: FALSE
A2: FALSE | C2: 3.1.6 ESTUDIOS DE DETALLE | H2: 26
C3: Calculo plan parcial | H3: 205
C4: Superficie total ordenada | H4: TRUE | I4: 0.75 | J4: =IF(H4=TRUE,I4,0) -> 0.75
F5: Hectareas | H5: FALSE | I5: 0.25 | J5: =IF(H5=TRUE,I5,0) -> 0 | K5: =SUM(J4:J5) -> 0.75
A9: =E5 -> 0
A10: =IF(A9=0,0,2+30*(1/A9)^0.4) -> 0 | C10: Coeficiente Ss | E10: =IF(A10>15,15,A10) -> 0 | H10: 0.1
A13: =IF(E12=0,0,0.075+2*(1/E12)^0.4) -> 0
E14: =IF(A13=0,0,A13) -> 0
A16: 1
E18: =A23 -> 0
C19: Coeficiente de fase | F19: ='3.1.7'!F20 -> ---------- | H19: =B24 -> 40
C20: Coeficiente de fase | E20: ='3.1.7'!G19 -> 0 | H20: =IF(H19*H4<H2,H2,IF(H19*H4>H3,H3,H19*H4)) -> 40
D21: = | H21: =IF(H1=TRUE,B24+H20,B24) -> 40
C23: Plan PARCIAL | D23: = | E23: =IF(E21=0,0,A25) -> 0
A24: =IF(E21>0,E21*MODULO*E5*E10/50,0) -> 0 | B24: =IF(E23*K5<40,40,E23*K5) -> 40 | C24: Calculo | E24: =H21 -> 40
A25: =IF(A24<MODULO/10,MODULO/10,A24) -> 53.879 | E25: =CONCATENATE(ROUND(E24*1.16,2)," € c/IVA") -> 46,4 € c/IVA
C27: URGENTE O RAPIDO

Sheet 3.1.7 (hidden)
B1: COAM | C1: ='1'!B1 -> PRECIOS DE VISADO PARA LOS TRABAJOS PROFESIONALES v12.02 (21.01.26)
C2: 3.1.7 MISIÓN COMPLETA Y MISIÓN PARCIAL: DESGLOSE POR FASES
C4: Cuando el trabajo se desarrolle por fases, la cuota de cada fase se calcula con los porcentajes de la tabla U2
D6: Fase | G6: %
D7: Memoria de información urbanística | G7: 0.08 | I7: FALSE | J7: 0.08 | K7: =IF(I7=TRUE,J7,0) -> 0 | L7: =IF(I7=TRUE,"a","-") -> -
D8: Planos de información urbanística | G8: 0.1 | I8: FALSE | J8: 0.1 | K8: =IF(I8=TRUE,J8,0) -> 0 | L8: =IF(I8=TRUE,"b","-") -> -
D9: Avance, memoria | G9: 0.1 | I9: FALSE | J9: 0.1 | K9: 0 | L9: =IF(I9=TRUE,"c","-") -> -
D10: Avance, planos | G10: 0.12 | I10: FALSE | J10: 0.12 | K10: 0 | L10: =IF(I10=TRUE,"d","-") -> -
D11: Documento de aprobación inicial, memoria | G11: 0.1 | I11: FALSE | J11: 0.1 | K11: 0 | L11: =IF(I11=TRUE,"e","-") -> -
D12: Documento de aprobación inicial, estudio de viabilidad | G12: 0.05 | I12: FALSE | J12: 0.05 | K12: 0 | L12: =IF(I12=TRUE,"f","-") -> -
D13: Documento de aprobación inicial, planos | G13: 0.2 | I13: FALSE | J13: 0.2 | K13: 0 | L13: =IF(I13=TRUE,"g","-") -> -
D14: Documento de aprobación inicial, normas urbanísticas | G14: 0.1 | I14: FALSE | J14: 0.1 | K14: 0 | L14: =IF(I14=TRUE,"h","-") -> -
D15: Informe de alegaciones | G15: 0.1 | I15: FALSE | J15: 0.1 | K15: 0 | L15: =IF(I15=TRUE,"i","-") -> -
D16: Documento de aprobación provisional | G16: 0.05 | I16: FALSE | J16: 0.05 | K16: 0 | L16: =IF(I16=TRUE,"j","-") -> -
K17: =SUM(K7:K16) -> 0
G19: =K17 -> 0
F20: =CONCATENATE(L7,L8,L9,L10,L11,L12,L13,L14,L15,L16) -> ----------

Sheet 3.1.8 (hidden)
A1: ='1'!N17 -> 538.79 | B1: COAM | C1: ='1'!B1 -> PRECIOS DE VISADO PARA LOS TRABAJOS PROFESIONALES v12.02 (21.01.26) | H1: FALSE
A2: FALSE | C2: 3.1.8 CATÁLOGOS DE BIENES Y ESPACIOS PROTEGIDOS | H2: 26
H3: 205
C4: Nº total edificios | E4: ud. | H4: 0.1
H5: =B8 -> 0
C6: Nº elem. catalogados | E6: ud. | H6: =IF(H5*H4<H2,H2,IF(H5*H4>H3,H3,H5*H4)) -> 26
H7: =IF(H1=TRUE,B8+H6,B8) -> 0
B8: =(MODULO*(0.005*D4+0.6*D6))/50 -> 0 | C8: Calculo | D8: =H7 -> 0
D9: =CONCATENATE(ROUND(D8*1.16,2)," € c/IVA") -> 0 € c/IVA
C12: URGENTE O RAPIDO
F13: =H6 -> 26

Sheet 3.1.8B (hidden)
A1: 400 | B1: COAM | C1: ='1'!B1 -> PRECIOS DE VISADO PARA LOS TRABAJOS PROFESIONALES v12.02 (21.01.26)
A2: FALSE | C2: 3.1.8 CATÁLOGOS DE BIENES Y ESPACIOS PROTEGIDOS
A3: FALSE
C4: Superficie total del Término Municipal
E5: Hectareas
C7: Población
C9: residentes Término Municipal
E10: habitantes
C12: Presencía turística significativa
E14: nº viviendas
E16: nº plazas hoteleras
C18: Población | D18: =IF(A3=FALSE,D10,D14*3+0.5*D16) -> 0 | E18: habitantes
A19: 1
A20: =IF(D18=0,0,0.008+(0.08*(1000/D18)^0.5)) -> 0 | B20: =IF(A20>0.045,0.045,A20) -> 0 | C20: Coeficiente P | D20: =IF(A19=1,B20,B21) -> 0 | E20: =IF(D20=0.045," Valor máximo","") -> 
A21: =IF(D18=0,0,0.003+(0.03*(1000/D18)^0.5)) -> 0 | B21: =IF(A20>0.02,0.02,A20) -> 0
C22: Coeficiente de fase | E22: ='3.1.7'!F20 -> ----------
C23: Coeficiente de fase = | D23: ='3.1.7'!G19 -> 0
C25: =IF(A19=1,"Calculo del Plan General","Calculo de la Norma Subsidiaria") -> Calculo del Plan General | D25: =D24*MODULO*((0.1*D5)+(D18*D20))/50 -> 0
C26: Calculo | D26: =MODULO*(D24*MODULO*((0.1*D5)+(D18*D20))/50)*0.03/50 -> 0
C28: El cliente desea que la cuota variable de intervención por visado le sea facturada a su nombre
D31: Arquitecto | E31: Cliente
D32: =D26/3 -> 0 | E32: =D26*2/3 -> 0

Sheet 3.1.9 (hidden)
A1: 400 | B1: COAM | C1: ='1'!B1 -> PRECIOS DE VISADO PARA LOS TRABAJOS PROFESIONALES v12.02 (21.01.26)
C2: 3.1.9 ESTUDIO Y ANÁLISIS AMBIENTAL
C3: La cuota se calcula en función de la superficie del ámbito:
C4: • Ámbito municipal: 5% de la cuota de planeamiento general.
C5: • Ámbito sub-municipal, sobre suelo sectorizado, programado o urbano: 10% de la cuota del planeamiento de desarrollo o detalle.
C6: • Ámbito sub-municipal, sobre suelo no urbanizable, no sectorizado y/o urbanizable no programado; se calcula con el siguiente procedimiento:
D7: − Se calcula el porcentaje de suelo municipal incluido en el ámbito
D8: − Se aplica a la cuota de planeamiento general de todo el término
D9: − Se utiliza como cuota el 5% del valor resultante.
C10: El desglose de los honorarios por fases, sería conforme a los porcentajes de la Tabla U3
C12: TABLA U3 ESTUDIOS Y ANÁLISIS AMBIENTALES: PORCENTAJES POR FASE
D14: Fase | F14: %
D15: Estudio ambiental (información) | F15: 0.175
D16: Análisis ambiental, previo (avance) | F16: 0.225
D17: Análisis ambiental | F17: 0.45
D18: Análisis ambiental, definitivo (aprobación provisional) | F18: 0.15

Sheet 3.1.9B (hidden)
A1: 400 | B1: COAM | C1: ='1'!B1 -> PRECIOS DE VISADO PARA LOS TRABAJOS PROFESIONALES v12.02 (21.01.26) | I1: Seleccione tipo de planeamiento aplicable al ambito
A2: FALSE | C2: 3.1.9 ESTUDIO Y ANÁLISIS AMBIENTAL (ambito submunicipal) | I2: PLANES DE SECTORIZACION | J2: 0.25
C3: Calculo del tipo de planeamiento aplicable al ambito | I3: PROGRAMAS DE ACTUACIÓN URBANISTICA | J3: 0.25
C4: Superficie total ordenada | I4: PLANES PARCIALES | J4: 1
D5: = | F5: Hectareas | I5: PLANES ESPECIALES DE REFORMA INTERIOR | J5: 1.5
A7: 1 | I7: Seleccione estudio… | J7: 0
I8: ESTUDIO Y ANÁLISIS AMBIENTAL | J8: 0.1
A9: =E5 -> 0 | I9: ESTUDIO DE IMPACTO MEDIO AMBIENTAL | J9: 0.13
A10: =IF(A9=0,0,2+30*(1/A9)^0.4) -> 0 | C10: Coeficiente Ss | D10: = | E10: =IF(A10>15,15,A10) -> 0
I11: CERTIFICACIONES TÉCNICAS DE ÓRGANOS COMPETENTES | J11: 0.02
I12: ESTUDIO IMPACTO MEDIO AMBIENTAL (VER BOTON) | J12: 0
A13: =IF(E12=0,0,0.075+2*(1/E12)^0.4) -> 0 | I13: ESTUDIO DE IMAPACTO ACÚSTICO | J13: 0.04
A16: 1
A23: 1 | B23: è
A24: =INDEX(#REF!,A16) -> 
A25: =INDEX(J1:J5,A23) -> 0 | C25: Calculo | D25: = | E25: =A27 -> 40
A26: =1*MODULO*E5*E10/50*A25 -> 0
A27: =IF(A26<MODULO/10,MODULO/10,A26) -> 40 | E27: =TABLAU3!G11 -> 0 | F27: =TABLAU3!F12 -> ----
C28: Coeficiente de fase | D28: =
A30: =0.004*E28 -> 0 | B30: è
A33: =INDEX(J7:J13,A7) -> 0 | C33: Calculo | E33: =E25*A33 -> 0
E34: =CONCATENATE(ROUND(E33*1.16,2)," € c/IVA") -> 0 € c/IVA
C35: El cliente desea que la cuota variable de intervención por visado le sea facturada a su nombre
E38: Arquitecto | F38: Cliente
E39: =E33/3 -> 0 | F39: =E33*2/3 -> 0

Sheet 3.1.9C (hidden)
A1: ='1'!N17 -> 538.79 | B1: COAM | C1: ='1'!B1 -> PRECIOS DE VISADO PARA LOS TRABAJOS PROFESIONALES v12.02 (21.01.26) | H1: FALSE
A2: FALSE | C2: 3.1.9 ESTUDIO Y ANÁLISIS AMBIENTAL | G2: 26
G3: 205
C4: Superficie ordenada = | E4: Ha | G4: 0.1
G5: =B12 -> 53.879
A6: =IF(D4=0,0,2+(30*(1/D4)^0.4)) -> 0 | C6: Coeficiente Ss = | D6: =IF(A6>=2.5,2.5,A6) -> 0 | G6: =IF(G5*G4<G2,G2,IF(G5*G4>G3,G3,G5*G4)) -> 26
C7: Coeficiente de FASE | E7: =TABLAU3!F12 -> ---- | G7: =IF(H1=TRUE,B12+G6,B12) -> 53.879
D8: =TABLAU3!G11 -> 0 | O8: FALSE | P8: FALSE | S8: FALSE
O9: FALSE | P9: FALSE | S9: FALSE
O10: FALSE | P10: FALSE | S10: FALSE
A12: =IF(D9=0,0,MODULO*D9*D4*D6/500) -> 0 | B12: =IF(A12<(MODULO/10),(MODULO/10),A12) -> 53.879 | C12: Calculo | D12: =G7 -> 53.879 | O12: FALSE | P12: FALSE | Q12: FALSE | R12: FALSE | S12: FALSE
D13: =CONCATENATE(ROUND(D12*IVA,2)," € c/IVA") -> 65,19 € c/IVA | P13: FALSE | S13: FALSE
C15: URGENTE O RAPIDO
F16: =G6 -> 26

Sheet 3.1.9D (hidden)
A1: ='1'!N17 -> 538.79 | B1: COAM | C1: ='1'!B1 -> PRECIOS DE VISADO PARA LOS TRABAJOS PROFESIONALES v12.02 (21.01.26) | H1: FALSE
A2: FALSE | C2: 3.1.10 ESTUDIO DE IMPACTO MEDIO AMBIENTAL | H2: 25
C3: Presupuesto de ejecución material de la obra (PEM) = | H3: 200
E4: € | H4: 0.1
H5: =B12 -> 0
A6: =IF(D4=0,0,0.5+(6*((MODULO/D4)^0.2))) -> 0 | C6: Coeficiente Ss = | D6: =IF(A6>=2.5,2.5,A6) -> 0 | H6: =IF(H5*H4<H2,H2,IF(H5*H4>H3,H3,H5*H4)) -> 25
C7: Coeficiente de FASE | E7: =TABLAU3!F12 -> ---- | H7: =IF(H1=TRUE,B12+H6,B12) -> 0
D8: =TABLAU3!G11 -> 0 | O8: FALSE | P8: FALSE | S8: FALSE
O9: FALSE | P9: FALSE | S9: FALSE
O10: FALSE | P10: FALSE | S10: FALSE
B12: =D9*D4*D6/500*1.3 -> 0 | C12: Calculo | D12: =H7 -> 0 | O12: FALSE | P12: FALSE | Q12: FALSE | R12: FALSE | S12: FALSE
D13: =CONCATENATE(ROUND(D12*IVA,2)," € c/IVA") -> 0 € c/IVA
C14: URGENTE O RAPIDO
F15: =H6 -> 25

Sheet 3.1.10 (hidden)
A1: ='1'!N17 -> 538.79 | B1: COAM | C1: ='1'!B1 -> PRECIOS DE VISADO PARA LOS TRABAJOS PROFESIONALES v12.02 (21.01.26) | I1: Seleccione tipo de planeamiento aplicable al ambito
A2: FALSE | C2: 3.1.10 OTROS ESTUDIOS O TRABAJOS COMPLEM. DEL PLANEAMIENTO | I2: PLANES DE SECTORIZACION | J2: 0.25
C3: Calculo del tipo de planeamiento de desarrollo o detalle aplicable al ambito | I3: PROGRAMAS DE ACTUACIÓN URBANISTICA | J3: 0.25
C4: Superficie total ordenada | I4: PLANES PARCIALES | J4: 1
D5: = | F5: Hectareas | I5: PLANES ESPECIALES DE REFORMA INTERIOR | J5: =50/30 -> 1.666666667
A7: 1 | I7: Seleccione estudio o trabajo complementario | J7: 0
I8: INFORME DOCUMENTAL DE LA PROMOCION | J8: 0.025
A9: =E5 -> 0 | I9: ESTUDIO SOBRE CONDICIONES URBANÍSTICAS | J9: 0.015
A10: =IF(A9=0,0,2+30*(1/A9)^0.4) -> 0 | C10: Coeficiente Ss | D10: = | E10: =IF(A10>15,15,A10) -> 0 | I10: ESTUDIO ORIENTATIVO DE MERCADO Y DE VIABILIDAD ECONÓMICA | J10: 0.02
I11: CERTIFICACIONES TÉCNICAS DE ÓRGANOS COMPETENTES | J11: 0.02
I12: ESTUDIO IMPACTO MEDIO AMBIENTAL (VER BOTON) | J12: 0
A13: =IF(E12=0,0,0.075+2*(1/E12)^0.4) -> 0 | I13: ESTUDIO DE IMPACTO ACÚSTICO | J13: 0.04
A16: 1
F19: ='3.1.7'!F20 -> ----------
C20: Coeficiente de fase | E20: ='3.1.7'!G19 -> 0 | I20: FALSE
D21: = | E21: 1 | I21: 26
I22: 205
A23: 1 | B23: è | I23: 0.1
A24: =INDEX(#REF!,A16) ->  | I24: =A33*E25 -> 0
A25: =INDEX(J1:J5,A23) -> 0 | C25: Calculo | D25: = | E25: =IF(E21<>0,A27,0) -> 53.879 | I25: =IF(I24*I23<I21,I21,IF(I24*I23>I22,I22,I24*I23)) -> 26
A26: =IF( E21>0,E21*MODULO*E5*E10/50*A25,0) -> 0 | I26: =IF(I20=TRUE,I24+I25,I24) -> 0
A27: =IF(A26<MODULO/10,MODULO/10,A26) -> 53.879
A30: =0.004*E28 -> 0 | B30: è
A33: =INDEX(J7:J13,A7) -> 0 | C33: Calculo | E33: =I26 -> 0
E34: =CONCATENATE(ROUND(E33*IVA,2)," € c/IVA") -> 0 € c/IVA
C36: URGENTE O RAPIDO
F37: =I25 -> 26

Sheet 3.1.10B (hidden)
A1: 400 | B1: COAM | C1: ='1'!B1 -> PRECIOS DE VISADO PARA LOS TRABAJOS PROFESIONALES v12.02 (21.01.26) | I1: Seleccione tipo de planeamiento aplicable al ambito
A2: FALSE | C2: 3.1.10 OTROS ESTUDIOS O TRABAJOS COMPLEM. DEL PLANEAMIENTO | I2: PLANES DE SECTORIZACION | J2: 0.25
C3: Calculo de la cuota correspondientea la gestión del planeamiento aplicable al ambito | I3: PROGRAMAS DE ACTUACIÓN URBANISTICA | J3: 0.25
I4: PLANES PARCIALES | J4: 1
I5: PLANES ESPECIALES DE REFORMA INTERIOR | J5: =50/30 -> 1.666666667
A7: 1 | I7: Seleccione estudio o trabajo complementario | J7: 0
I8: INFORME DOCUMENTAL DE LA PROMOCION | J8: 0.025
A9: =E5 -> 0 | I9: ESTUDIO SOBRE CONDICIONES URBANÍSTICAS | J9: 0.015
A10: =IF(A9=0,0,2+30*(1/A9)^0.4) -> 0 | I10: ESTUDIO ORIENTATIVO DE MERCADO Y DE VIABILIDAD ECONÓMICA | J10: 0.02
I11: CERTIFICACIONES TÉCNICAS DE ÓRGANOS COMPETENTES | J11: 0.02
I12: ESTUDIO IMPACTO MEDIO AMBIENTAL (VER BOTON) | J12: 0
A13: =IF(E12=0,0,0.075+2*(1/E12)^0.4) -> 0 | I13: ESTUDIO DE IMPACTO ACÚSTICO | J13: 0.04
A16: 1
A23: 1
A25: =INDEX(J1:J5,A23) -> 0
A26: =IF( E21>0,E21*MODULO*E5*E10/50*A25,0) -> 0
A27: =IF(A26<MODULO/10,MODULO/10,A26) -> 40
A30: =0.004*E28 -> 0
A33: =INDEX(J7:J13,A7) -> 0
E38: Arquitecto | F38: Cliente
E39: =E33/3 -> 0 | F39: =E33*2/3 -> 0

Sheet 3.2.1 (hidden)
A1: ='1'!N17 -> 538.79 | B1: COAM | C1: ='1'!B1 -> PRECIOS DE VISADO PARA LOS TRABAJOS PROFESIONALES v12.02 (21.01.26) | H1: FALSE | I1: Seleccione tipo de planeamiento aplicable al ambito | L1: FALSE
A2: FALSE | C2: 3.2.1 PROYECTOS DE REPARCELACIÓN, COMPENSACIÓN, COOPERACIÓN Y EXPROPIACIÓN | I2: PLANES DE SECTORIZACION | J2: 0.25 | L2: 26
I3: PROGRAMAS DE ACTUACIÓN URBANISTICA | J3: 0.25 | L3: 205
I4: PLANES PARCIALES | J4: 1 | L4: 0.1
C5: Superficie total | D5: = | F5: Hectareas | I5: PLANES ESPECIALES DE REFORMA INTERIOR | J5: 1.5 | L5: =B17 -> 0
L6: =IF(L5*L4<L2,L2,IF(L5*L4>L3,L3,L5*L4)) -> 26
A7: =IF(E5>0,(2+(30*(1/E5)^0.4)),0) -> 0 | C7: Coeficiente Ss | D7: = | E7: =IF(A7>15,15,A7) -> 0 | L7: =IF(L1=TRUE,B17+L6,B17) -> 0
A9: 1
A10: =IF(E9=0,0,0.075+2*(1/E9)^0.4) -> 0
A11: =IF(A9=1,0.25,0.3) -> 0.25 | E11: =IF(A10=0,0,A10) -> 0
F12: =TABLAU4!F12 -> ----
C13: Coeficiente de fase | E13: =TABLAU4!G11 -> 0
D14: =
A16: =MODULO*A11*E5*E7/50 -> 0
A17: =IF(MODULO/40>A16,MODULO/40,A16) -> 13.46975 | B17: =IF(E14=0,0,IF(A18=FALSE,A17*E14,A17*E14*0.1)) -> 0 | C17: Calculo | E17: =L7 -> 0
A18: FALSE | E18: =CONCATENATE(ROUND(E17*IVA,2)," € c/IVA") -> 0 € c/IVA
C19: URGENTE O RAPIDO
F20: =L6 -> 26
A23: 1

Sheet 3.2.2 (hidden)
A1: ='1'!N17 -> 538.79 | B1: COAM | C1: ='1'!B1 -> PRECIOS DE VISADO PARA LOS TRABAJOS PROFESIONALES v12.02 (21.01.26) | H1: FALSE
A2: FALSE | C2: 3.2.2 PROYECTOS DE PARCELACIÓN | H2: 26
H3: 205
C4: Superficie total | H4: 0.1
F5: Hectareas | H5: =IF(B14<30,30,B14) -> 30
H6: =IF(H5*H4<H2,H2,IF(H5*H4>H3,H3,H5*H4)) -> 26
H7: =IF(H1=TRUE,H5+H6,H5) -> 30 | J7: según me ha dicho Lazaro tiene que ver con las fechas
A9: =E5 -> 0
A10: =IF(A9=0,0,(2+(30*(1/A9)^0.4))) -> 0 | C10: Coeficiente Ss | E10: =IF(A10>15,15,A10) -> 0
A13: =IF(E5>0,0.1*MODULO*E5*E10/50,0) -> 0 | C13: Calculo | E13: =H7 -> 30
A14: =IF(A13<MODULO/40,MODULO/40,A13) -> 13.46975 | B14: =IF(A19=FALSE,A14,A14*0.1) -> 13.46975 | E14: =CONCATENATE(ROUND(E13*IVA,2)," € C/IVA") -> 36,3 € C/IVA
A16: 1 | C16: URGENTE O RAPIDO
F17: =H6 -> 26
A19: FALSE

Sheet 3.2.3 (hidden)
A1: 400 | B1: COAM | C1: ='1'!B1 -> PRECIOS DE VISADO PARA LOS TRABAJOS PROFESIONALES v12.02 (21.01.26)
C2: 3.2.3 TRABAJOS COMPLEMENTARIOS DE LA GESTIÓN URBANÍSTICA
C4: • Obtención de títulos de propiedad: 10% de la cuota correspondiente a la de gestión del planeamiento aplicable al ámbito.
C7: • Acreditaciones de titularidad: 10% de los honorarios orientativos de gestión del planeamiento aplicable al ámbito.
C8: En todos los demás casos que pudieran darse y no figuren en la anterior relación, la cuota se calcula por analogía con otras cuotas o por el total de horas con
C9: CV = nº horas • M / 500 y un mínimo ≮ M / 40.
D10: Arquitecto | E10: Cliente
D11: =D5/3 -> 0 | E11: =D5*2/3 -> 0

Sheet 3.3.2B (hidden)
A1: ='1'!N17 -> 538.79 | B1: COAM | C1: ='1'!B1 -> PRECIOS DE VISADO PARA LOS TRABAJOS PROFESIONALES v12.02 (21.01.26)
A2: FALSE | C2: 3.3.2 OBRAS URBANAS Y AMPLIACIÓN, REFORMA Y REPARACIÓN DE OBRAS DE URBANIZACIÓN
C3: Presupuesto de ejecución material de la obra (PEM) =
E4: €
A6: =IF(D4=0,0,0.5+(6*((MODULO/D4)^0.2))) -> 0 | C6: Coeficiente CP = | D6: =IF(A6>=2.5,2.5,A6) -> 0
C8: Coeficiente de FASE | D8: ='2.1.1B'!$G$13 -> 0 | O8: FALSE | P8: FALSE | S8: FALSE
O9: FALSE | P9: FALSE | S9: FALSE
O10: FALSE | P10: FALSE | S10: FALSE
B12: =D9*D4*D6/1000 -> 0 | C12: Calculo | D12: =IF(B12>MODULO/40,B12,IF(D9=0,0,MODULO/40)) -> 0 | O12: FALSE | P12: FALSE | Q12: FALSE | R12: FALSE | S12: FALSE
D13: =CONCATENATE(ROUND(D12*1.16,2)," € c/IVA") -> 0 € c/IVA | P13: FALSE | S13: FALSE
C14: El cliente desea que la cuota variable de intervención por visado le sea facturada a su nombre | O14: FALSE | S14: FALSE
D17: Arquitecto | E17: Cliente
D18: =D12/3 -> 0 | E18: =D12*2/3 -> 0

Sheet 3.3.1 (hidden)
A1: ='1'!N17 -> 538.79 | B1: COAM | C1: ='1'!B1 -> PRECIOS DE VISADO PARA LOS TRABAJOS PROFESIONALES v12.02 (21.01.26) | H1: FALSE
A2: FALSE | C2: 3.3.1 PROYECTOS DE URBANIZACIÓN | H2: 26
C3: Superficie total abarcada | H3: 205
E4: Hectareas | H4: 0.1
H5: 46
A6: =IF(D4=0,0,2+(45*(1/D4)^0.25)) -> 0 | C6: Coeficiente Ss = | D6: =IF(A6>=39.8398657,40,A6) -> 0 | H6: =IF(H5*B12<H2,H2,IF(H5*B12>H3,H3,H5*B12)) -> 26
H7: =B12*H4 -> 0
C8: Coeficiente de FASE | H8: =IF(H7<H2,H2,IF(H7>H3,H3,H7)) -> 26 | O8: FALSE | P8: FALSE | S8: FALSE
H9: =IF(H1=TRUE,B12+H8,B12) -> 0 | O9: FALSE | P9: FALSE | S9: FALSE
O10: FALSE | P10: FALSE | S10: FALSE
B12: =D9*MODULO*D4*D6/50 -> 0 | C12: Calculo | D12: =H9 -> 0 | O12: FALSE | P12: FALSE | Q12: FALSE | R12: FALSE | S12: FALSE
B13: 46 | D13: =CONCATENATE(ROUND(D12*IVA,2)," € c/IVA") -> 0 € c/IVA | P13: FALSE | S13: FALSE
C14: URGENTE O RAPIDO | O14: FALSE | S14: FALSE

Sheet 3.3.2 (hidden)
A1: 400 | B1: COAM | C1: ='1'!B1 -> PRECIOS DE VISADO PARA LOS TRABAJOS PROFESIONALES v12.02 (21.01.26)
A2: FALSE | C2: 3.3.2 PROYECTOS DE OBRAS URBANAS
C3: Superficie total abarcada
E4: Hectareas
A6: =IF(D4=0,0,2+(45*(1/D4)^0.25)) -> 0 | C6: Coeficiente Ss = | D6: =IF(A6>=39.8398657,40,A6) -> 0
C8: Coeficiente de FASE | D8: =#REF! ->  | O8: FALSE | P8: FALSE | S8: FALSE
O9: FALSE | P9: FALSE | S9: FALSE
O10: FALSE | P10: FALSE | S10: FALSE
C11: =#REF! -> 
C12: Porcentaje por capitulo o tipo de obra de urbanización | D12: =#REF! -> 
C17: Calculo | D17: =D13*D9*MODULO*D4*D6/50 -> 0 | O17: FALSE | P17: FALSE | Q17: FALSE | R17: FALSE | S17: FALSE
D18: 2.1 | P18: FALSE | S18: FALSE
C19: El cliente desea que la cuota variable de intervención por visado le sea facturada a su nombre | O19: FALSE | S19: FALSE
D22: Arquitecto | E22: Cliente
D23: =D17/3 -> 0 | E23: =D17*2/3 -> 0

Sheet 3.3.3 (hidden)
A1: 400 | B1: COAM | C1: ='1'!B1 -> PRECIOS DE VISADO PARA LOS TRABAJOS PROFESIONALES v12.02 (21.01.26)
A2: FALSE | C2: 3.3.3 PROYECTOS DE AMPLIACIÓN, REFORMA Y REPARACIÓN DE OBRAS DE URBANIZACIÓN
C3: Superficie total abarcada
E4: ha.
A6: =IF(D4=0,0,2+(45*(1/D4)^0.25)) -> 0 | C6: S = | D6: =IF(A6>=39.8398657,40,A6) -> 0
C8: Coeficiente de FASE | D8: =#REF! ->  | O8: FALSE | P8: FALSE | S8: FALSE
O9: FALSE | P9: FALSE | S9: FALSE
O10: FALSE | P10: FALSE | S10: FALSE
C11: =#REF! -> 
C12: Porcentaje por capitulo o tipo de obra de urbanización | D12: =#REF! -> 
C15: Proyecto nueva urb. | D15: =D13*D9*MODULO*D4*D6/50 -> 0
C17: Calculo | D17: =1.1*D13*D9*MODULO*D4*D6/50 -> 0 | O17: FALSE | P17: FALSE | Q17: FALSE | R17: FALSE | S17: FALSE
D18: =CONCATENATE(ROUND(D17*1.16,2)," € c/IVA") -> 0 € c/IVA | P18: FALSE | S18: FALSE
C19: El cliente desea que la cuota variable de intervención por visado le sea facturada a su nombre | O19: FALSE | S19: FALSE
D22: Arquitecto | E22: Cliente
D23: =D17/3 -> 0 | E23: =D17*2/3 -> 0

Sheet 4.1.1 (hidden)
A1: ='1'!N17 -> 538.79 | B1: COAM | C1: ='1'!B1 -> PRECIOS DE VISADO PARA LOS TRABAJOS PROFESIONALES v12.02 (21.01.26) | J1: FALSE
A2: FALSE | C2: 4.2.1 DESLINDES Y SEGREGACIONES DE TERRENOS Y SOLARES | J2: 26
J3: 205
H4: =0.75*MODULO/50 -> 8.08185 | I4: 51 | J4: 0.1
H5: =(0.75*MODULO+(D4-50)*2)/50 -> 6.08185 | I5: 101 | J5: =B7 -> 52
B6: =IF(D4<I4,H4,IF(D4<I5,H5,IF(D4<I6,H6,IF(D4<I7,H7,IF(D4<I8,H8,H9))))) -> 8.08185 | C6: Calculo | D6: =IF(J1=TRUE,31+J2,31) -> 31 | H6: =(MODULO+(D4-100)*0.8)/50 -> 9.1758 | I6: 1001 | J6: =IF(J5*J4<J2,J2,IF(J5*J4>J3,J3,J5*J4)) -> 26
B7: =IF(B6<52,52,B6) -> 52 | D7: =CONCATENATE(ROUND(D6*IVA,2)," € c/IVA") -> 37,51 € c/IVA | H7: =(2.8*MODULO+(D4-1000)*0.4)/50 -> 22.17224 | I7: 5001 | J7: =IF(J1=TRUE,B7+J6,B7) -> 52
H8: =(6.8*MODULO+(D4-5000)*0.3)/50 -> 43.27544 | I8: 10001
H9: =(10.55*MODULO+(D4-10000)*0.2)/50 -> 73.68469
C10: URGENTE O RAPIDO
F11: =J6 -> 26

Sheet 4.1.2 (hidden)
A1: ='1'!N17 -> 538.79 | B1: COAM | C1: ='1'!B1 -> PRECIOS DE VISADO PARA LOS TRABAJOS PROFESIONALES v12.02 (21.01.26) | J1: FALSE
A2: FALSE | C2: 4.2.2 DESLINDES DE EDIFICACIONES | J2: 26
J3: 205
H4: =MODULO/50 -> 10.7758 | I4: 61 | J4: 0.1
H5: =(MODULO+(D4-60)*5)/50 -> 4.7758 | I5: 101 | J5: =B7 -> 52
B6: =IF(D4<I4,H4,IF(D4<I5,H5,IF(D4<I6,H6,IF(D4<I7,H7,H8)))) -> 10.7758 | C6: Valor | D6: =IF(J1=FALSE,31,31+F11) -> 31 | H6: =(1.5*MODULO+(D4-100)*2)/50 -> 12.1637 | I6: 1001 | J6: =IF(J5*J4<J2,J2,IF(J5*J4>J3,J3,J5*J4)) -> 26
B7: =IF(B6<52,52,B6) -> 52 | D7: =CONCATENATE(ROUND(D6*IVA,2)," € c/IVA") -> 37,51 € c/IVA | H7: =(6*MODULO+(D4-1000)*0.6)/50 -> 52.6548 | I7: 5001 | J7: =IF(J1=TRUE,B7+J6,B7) -> 52
H8: =(12*MODULO+(D4-5000)*0.3)/50 -> 99.3096
C10: URGENTE O RAPIDO
F11: =J6 -> 26

Sheet 4.1.3 (hidden)
A1: ='1'!N17 -> 538.79 | B1: COAM | C1: ='1'!B1 -> PRECIOS DE VISADO PARA LOS TRABAJOS PROFESIONALES v12.02 (21.01.26) | J1: FALSE
A2: FALSE | C2: 4.2.3 REPLANTEOS DE LINDEROS, ALINEACIONES Y OTROS | J2: 26
J3: 205
H4: =0.5*MODULO/50 -> 5.3879 | I4: 51 | J4: 0.1
H5: =(0.5*MODULO+(D4-50)*2)/50 -> 3.3879 | I5: 101 | J5: =B7 -> 52
B6: =IF(D4<I4,H4,IF(D4<I5,H5,IF(D4<I6,H6,IF(D4<I7,H7,H8)))) -> 5.3879 | C6: Valor | D6: =IF(J1=FALSE,31,31+F11) -> 31 | H6: =(0.75*MODULO+(D4-100)*1)/50 -> 6.08185 | I6: 501 | J6: =IF(J5*J4<J2,J2,IF(J5*J4>J3,J3,J5*J4)) -> 26
B7: =IF(B6<52,52,B6) -> 52 | D7: =CONCATENATE(ROUND(D6*IVA,2)," € c/IVA") -> 37,51 € c/IVA | H7: =(1.75*MODULO+(D4-500)*0.8)/50 -> 10.85765 | I7: 1001 | J7: =IF(J1=TRUE,B7+J6,B7) -> 52
H8: =(2.75*MODULO+(D4-1000)*0.4)/50 -> 21.63345 | I8: 5001
H9: =(6.75*MODULO+(D4-5000)*0.2)/50 -> 52.73665 | I9: 10001
C10: URGENTE O RAPIDO | H10: =(9.25*MODULO+(D4-10000)*0.15)/50 -> 69.67615
F11: =J6 -> 26

Sheet 4.1.4 (hidden)
A1: ='1'!N17 -> 538.79 | B1: COAM | C1: ='1'!B1 -> PRECIOS DE VISADO PARA LOS TRABAJOS PROFESIONALES v12.02 (21.01.26) | J1: FALSE
A2: FALSE | C2: 4.2.4 MEDICIÓN DE TERRENOS Y SOLARES | J2: 26
J3: 205
H4: =0.6*MODULO/50 -> 6.46548 | I4: 101 | J4: 0.1
H5: =(0.6*MODULO+(D4-100)*0.4)/50 -> 5.66548 | I5: 1001 | J5: =B7 -> 52
B6: =IF(D4<I4,H4,IF(D4<I5,H5,IF(D4<I6,H6,IF(D4<I7,H7,H8)))) -> 6.46548 | C6: Valor | D6: =IF(J1=FALSE,31,31+F11) -> 31 | H6: =(1.5*MODULO+(D4-1000)*0.2)/50 -> 12.1637 | I6: 10001 | J6: =IF(J5*J4<J2,J2,IF(J5*J4>J3,J3,J5*J4)) -> 26
B7: =IF(B6<52,52,B6) -> 52 | D7: =CONCATENATE(ROUND(D6*IVA,2)," € c/IVA") -> 37,51 € c/IVA | H7: =(6*MODULO+(D4-10000)*0.1)/50 -> 44.6548 | I7: 100001 | J7: =IF(J1=TRUE,B7+J6,B7) -> 52
H8: =(28.5*MODULO+(D4-100000)*0.05)/50 -> 207.1103
C10: URGENTE O RAPIDO
F11: =J6 -> 26

Sheet 4.1.5 (hidden)
A1: ='1'!N17 -> 538.79 | B1: COAM | C1: ='1'!B1 -> PRECIOS DE VISADO PARA LOS TRABAJOS PROFESIONALES v12.02 (21.01.26) | J1: FALSE
A2: FALSE | C2: 4.2.5 MEDICIÓN DE EDIFICACIONES | J2: 26
J3: 205
J4: 0.1
C5: plantas iguales a 1ª | E5: ud. | J5: =B12 -> 49
C6: plantas diferentes | E6: ud. | J6: =IF(J5*J4<J2,J2,IF(J5*J4>J3,J3,J5*J4)) -> 26
J7: =IF(J1=TRUE,B12+J6,B12) -> 49
C9: superficie a medir | D9: =D4*(1+D5*0.1+D6*0.5) -> 0 | E9: m2 | H9: =0.75*MODULO/50 -> 8.08185 | I9: 101
H10: =(0.75*MODULO+(D9-100))/50 -> 6.08185 | I10: 1001
B11: =IF(D9<I9,H9,IF(D9<I10,H10,IF(D9<I11,H11,H12))) -> 8.08185 | C11: Valor | D11: =IF(J1=FALSE,31,31+F16) -> 31 | H11: =(3*MODULO+(D9-1000)*0.4)/50 -> 24.3274 | I11: 10001
B12: =IF(B11<49,49,B11) -> 49 | D12: =CONCATENATE(ROUND(D11*IVA,2)," € c/IVA") -> 37,51 € c/IVA | H12: =(12*MODULO+(D9-10000)*0.2)/50 -> 89.3096
C15: URGENTE O RAPIDO
F16: =J2 -> 26

Sheet 4.2.1 (hidden)
A1: ='1'!N17 -> 538.79 | B1: COAM | C1: ='1'!B1 -> PRECIOS DE VISADO PARA LOS TRABAJOS PROFESIONALES v12.02 (21.01.26) | J1: FALSE
A2: FALSE | C2: 4.3.1 TASACIÓN DE TERRENOS Y SOLARES | J2: 26
J3: 205
J4: 0.1
C5: plantas iguales a 1ª | E5: ud. | J5: =B12 -> 49
C6: plantas diferentes | E6: ud. | J6: =IF(J5*J4<J2,J2,IF(J5*J4>J3,J3,J5*J4)) -> 26
J7: =IF(J1=TRUE,B12+J6,B12) -> 49
C9: superficie a medir | D9: =D4*(1+D5*0.1+D6*0.5) -> 0 | E9: m2 | H9: =0.75*MODULO/50 -> 8.08185 | I9: 101
H10: =(0.75*MODULO+(D9-100))/50 -> 6.08185 | I10: 1001
B11: =IF(D9<I9,H9,IF(D9<I10,H10,IF(D9<I11,H11,H12))) -> 8.08185 | C11: Valor | D11: =IF(J1=FALSE,31,31+F16) -> 31 | H11: =(3*MODULO+(D9-1000)*0.4)/50 -> 24.3274 | I11: 10001
B12: =IF(B11<49,49,B11) -> 49 | D12: =CONCATENATE(ROUND(D11*IVA,2)," € c/IVA") -> 37,51 € c/IVA | H12: =(12*MODULO+(D9-10000)*0.2)/50 -> 89.3096
C15: URGENTE O RAPIDO
F16: =J2 -> 26

Sheet 4.2.1B (hidden)
A1: ='1'!N17 -> 538.79 | B1: COAM | C1: ='1'!B1 -> PRECIOS DE VISADO PARA LOS TRABAJOS PROFESIONALES v12.02 (21.01.26) | J1: FALSE
A2: FALSE | C2: 4.3.1 TASACIONES DE TERRENO Y SOLARES | J2: 25
A3: 1 | J3: 200
A4: FALSE | C4: Tasación de solar | J4: 0.1
A5: =IF(A4,1,2) -> 2 | C5: Tasación de terreno | H5: 1 | J5: =B15 -> 53
J6: =IF(J5*J4<J2,J2,IF(J5*J4>J3,J3,J5*J4)) -> 25
C7: NIVEL VALORACIÓN ESTIMATIVA | H7: FALSE | J7: =IF(J1=TRUE,J5+J6,J5) -> 53
C11: Valor de tasación | E11: miles € | H11: =MODULO/50 -> 10.7758 | I11: 101
H12: =(MODULO+(D11-100)*1.6)/50 -> 7.5758 | I12: 601
B13: =IF(A4=FALSE,F14,IF( F14*0.3<0.8*MODULO/50,0.8*MODULO/50,F14*0.3)) -> 10.7758 | C13: Calculo | D13: =J7 -> 53 | E13: =IF(D11<I11,H11,IF(D11<I12,H12,IF(D11<I13,H13,IF(D11<I14,H14,IF(D11<I15,H15,H16))))) -> 10.7758 | F13: =IF(A3=1,E13,E14) -> 10.7758 | H13: =(3*MODULO+(D11-600))/50 -> 20.3274 | I13: 1201
B14: =IF(B13>53,B13,53) -> 53 | D14: =CONCATENATE(ROUND(D13*IVA,2)," € c/IVA") -> 64,13 € c/IVA | E14: =IF(D11<I18,H18,IF(D11<I19,H19,IF(D11<I20,H20,IF(D11<I21,H21,IF(D11<I22,H22,IF(D11<I23,H23,H24)))))) -> 6.22064 | F14: =IF( F13<0.8*MODULO/50,0.8*MODULO/50,F13) -> 10.7758 | H14: =(4.5*MODULO+(D11-1200)*0.75)/50 -> 30.4911 | I14: 2001
B15: =IF(A5=2,B14,IF(B13<30,30,B13)) -> 53 | H15: =(6*MODULO+(D11-2000)*0.6)/50 -> 40.6548 | I15: 6001
C16: URGENTE O RAPIDO | H16: =(12*MODULO+(D11-6000)*0.4)/50 -> 81.3096
F17: =J6 -> 25
H18: =0.8*MODULO/50 -> 8.62064
H19: =(0.8*MODULO+(D11-60)*2)/50 -> 6.22064 | I19: 201
H20: =(1.5*MODULO+(D11-200)*1.6)/50 -> 9.7637 | I20: 601
H21: =(3.1*MODULO+(D11-600)*1.2)/50 -> 19.00498 | I21: 1201
H22: =(4.9*MODULO+(D11-1200)*0.9)/50 -> 31.20142 | I22: 2001
H23: =(6.7*MODULO+(D11-2000)*0.75)/50 -> 42.19786 | I23: 6001
H24: =(14.2*MODULO+(D11-6000)*0.6)/50 -> 81.01636

Sheet 4.2.2 (hidden)
A1: ='1'!N17 -> 538.79 | B1: COAM | C1: ='1'!B1 -> PRECIOS DE VISADO PARA LOS TRABAJOS PROFESIONALES v12.02 (21.01.26) | J1: FALSE
A2: FALSE | C2: 4.3.2 TASACIONES COMPLEMENTARIAS DE SUELO | I2: 26 | J2: 25
I3: 205 | J3: 200
J4: 0.1
C5: plantas iguales a 1ª | E5: ud. | J5: =B12 -> 49
C6: plantas diferentes | E6: ud. | J6: =IF(J5*J4<J2,J2,IF(J5*J4>J3,J3,J5*J4)) -> 25
J7: =IF(J1=TRUE,B12+J6,B12) -> 49
C9: superficie a medir | D9: =D4*(1+D5*0.1+D6*0.5) -> 0 | E9: m2 | H9: =0.75*MODULO/50 -> 8.08185 | I9: 101
H10: =(0.75*MODULO+(D9-100))/50 -> 6.08185 | I10: 1001
B11: =IF(D9<I9,H9,IF(D9<I10,H10,IF(D9<I11,H11,H12))) -> 8.08185 | C11: Valor | D11: =IF(J1=FALSE,31,31+F16) -> 31 | H11: =(3*MODULO+(D9-1000)*0.4)/50 -> 24.3274 | I11: 10001
B12: =IF(B11<49,49,B11) -> 49 | D12: =CONCATENATE(ROUND(D11*IVA,2)," € c/IVA") -> 37,51 € c/IVA | H12: =(12*MODULO+(D9-10000)*0.2)/50 -> 89.3096
C15: URGENTE O RAPIDO
F16: =I2 -> 26

Sheet 4.2.2B (hidden)
A1: ='1'!N17 -> 538.79 | B1: COAM | C1: ='1'!B1 -> PRECIOS DE VISADO PARA LOS TRABAJOS PROFESIONALES v12.02 (21.01.26) | J1: FALSE
A2: FALSE | C2: 4.3.2 TASACIONES COMPLEMENTARIAS DE SUELO | J2: 25
A3: 2 | J3: 200
A4: FALSE | J4: 0.1
C5: Tasación de terreno | H5: 1 | J5: =B15 -> 53
J6: =IF(J5*J4<J2,J2,IF(J5*J4>J3,J3,J5*J4)) -> 25
C7: NIVEL VALORACIÓN ESTIMATIVA | H7: FALSE | J7: =IF(J1=TRUE,J5+J6,J5) -> 53
C11: Valor de tasación | E11: € | F11: =D11/1000 -> 0 | H11: =MODULO/50 -> 10.7758 | I11: 101
H12: =(MODULO+(D11-100)*1.6)/50 -> 7.5758 | I12: 601
B13: =IF(A4=FALSE,F14,IF( F14*0.3<53,53,53*0.3)) -> 8.62064 | C13: Calculo | D13: =J7 -> 53 | E13: =IF(D11<I11,H11,IF(D11<I12,H12,IF(D11<I13,H13,IF(D11<I14,H14,IF(D11<I15,H15,H16))))) -> 10.7758 | F13: =IF(A3=1,E13,E14) -> 8.62064 | H13: =(3*MODULO+(D11-600))/50 -> 20.3274 | I13: 1201
B14: =IF(B13<53,53,B13) -> 53 | D14: =CONCATENATE(ROUND(D13*IVA,2)," € c/IVA") -> 64,13 € c/IVA | E14: =IF(F11<I18,H18,IF(F11<I19,H19,IF(F11<I20,H20,IF(F11<I21,H21,IF(F11<I22,H22,IF(F11<I23,H23,H24)))))) -> 8.62064 | F14: =IF( F13<0.8*MODULO/50,0.8*MODULO/50,F13) -> 8.62064 | H14: =(4.5*MODULO+(D11-1200)*0.75)/50 -> 30.4911 | I14: 2001
A15: =IF(A4=FALSE,B14,B14*0.3) -> 53 | B15: =IF(A4,IF(A15>30,A15,30),A15) -> 53 | H15: =(6*MODULO+(D11-2000)*0.6)/50 -> 40.6548 | I15: 6001
C16: URGENTE O RAPIDO | H16: =(12*MODULO+(D11-6000)*0.4)/50 -> 81.3096
F17: =J6 -> 25
H18: =0.8*MODULO/50 -> 8.62064 | I18: 61
H19: =(0.8*MODULO+((D11/1000)-60)*2)/50 -> 6.22064 | I19: 201
H20: =(1.5*MODULO+((D11/1000)-200)*1.6)/50 -> 9.7637 | I20: 601
H21: =(3.1*MODULO+((D11/1000)-600)*1.2)/50 -> 19.00498 | I21: 1201
H22: =(4.9*MODULO+((D11/1000)-1200)*0.9)/50 -> 31.20142 | I22: 2001
H23: =(6.7*MODULO+((D11/1000)-2000)*0.75)/50 -> 42.19786 | I23: 6001
H24: =(14.2*MODULO+((D12/1000)-6000)*0.6)/50 -> 81.01636

Sheet 4.2.3 (hidden)
A1: ='1'!N17 -> 538.79 | B1: COAM | C1: ='1'!B1 -> PRECIOS DE VISADO PARA LOS TRABAJOS PROFESIONALES v12.02 (21.01.26) | J1: FALSE
A2: FALSE | C2: 4.3.3 TASACIÓN DE EDIFICACIONES | J2: 26
J3: 205
J4: 0.1
C5: plantas iguales a 1ª | E5: ud. | J5: =B12 -> 49
C6: plantas diferentes | E6: ud. | J6: =IF(J5*J4<J2,J2,IF(J5*J4>J3,J3,J5*J4)) -> 26
J7: =IF(J1=TRUE,B12+J6,B12) -> 49
C9: superficie a medir | D9: =D4*(1+D5*0.1+D6*0.5) -> 0 | E9: m2 | H9: =0.75*MODULO/50 -> 8.08185 | I9: 101
H10: =(0.75*MODULO+(D9-100))/50 -> 6.08185 | I10: 1001
B11: =IF(D9<I9,H9,IF(D9<I10,H10,IF(D9<I11,H11,H12))) -> 8.08185 | C11: Valor | D11: =IF(J1=FALSE,31,31+F16) -> 31 | H11: =(3*MODULO+(D9-1000)*0.4)/50 -> 24.3274 | I11: 10001
B12: =IF(B11<49,49,B11) -> 49 | D12: =CONCATENATE(ROUND(D11*IVA,2)," € c/IVA") -> 37,51 € c/IVA | H12: =(12*MODULO+(D9-10000)*0.2)/50 -> 89.3096
C15: URGENTE O RAPIDO
F16: =J2 -> 26

Sheet 4.2.3B (hidden)
A1: ='1'!N17 -> 538.79 | B1: COAM | C1: ='1'!B1 -> PRECIOS DE VISADO PARA LOS TRABAJOS PROFESIONALES v12.02 (21.01.26) | G1: =1+'1'!N18 -> 1.21 | J1: FALSE
A2: FALSE | C2: 4.3.3 TASACIÓN DE EDIFICACIONES | J2: 25
A3: FALSE | J3: 200
A4: FALSE | C4: NIVEL VALORACIÓN ESTIMATIVA | J4: 0.1
C5: URGENTE O RAPIDO | E5: =J6 -> 25 | J5: =C11 -> 53
J6: =IF(J5*J4<J2,J2,IF(J5*J4>J3,J3,J5*J4)) -> 25
J7: =IF(J1=TRUE,C11+J6,C11) -> 53
C8: Valor de tasación | E8: miles € | H8: =1.2*MODULO/50 -> 12.93096 | I8: 101
H9: =(1.2*MODULO+(D8-100)*1.6)/50 -> 9.73096 | I9: 601
B10: =IF(E11<53,53,E11) -> 53 | C10: Calculo | D10: =J7 -> 53 | E10: =IF(D8<I8,H8,IF(D8<I9,H9,IF(D8<I10,H10,IF(D8<I11,H11,IF(D8<I12,H12,H13))))) -> 12.93096 | H10: =(3.2*MODULO+(D8-600)*1.2)/50 -> 20.08256 | I10: 1201
B11: =IF(A3=FALSE,B10,B10*0.3) -> 53 | C11: =IF(A4=TRUE,B11+25,B11) -> 53 | D11: =CONCATENATE(ROUND(D10*IVA,2)," € c/IVA") -> 64,13 € c/IVA | E11: =IF(E10<1.2*MODULO/50,1.2*MODULO/50,E10) -> 12.93096 | H11: =(5*MODULO+(D8-1200)*0.9)/50 -> 32.279 | I11: 2001
H12: =(6.8*MODULO+(D8-2000)*0.7)/50 -> 45.27544 | I12: 6001
H13: =(13.8*MODULO+(D8-6000)*0.6)/50 -> 76.70604

Sheet 4.2.4 (hidden)
A1: ='1'!N17 -> 538.79 | B1: COAM | C1: ='1'!B1 -> PRECIOS DE VISADO PARA LOS TRABAJOS PROFESIONALES v12.02 (21.01.26) | J1: FALSE
A2: FALSE | C2: 4.3.4 TASACIÓN PARCIAL DE EDIFICIOS | J2: 26
J3: 205
J4: 0.1
C5: plantas iguales a 1ª | E5: ud. | J5: =B12 -> 49
C6: plantas diferentes | E6: ud. | J6: =IF(J5*J4<J2,J2,IF(J5*J4>J3,J3,J5*J4)) -> 26
J7: =IF(J1=TRUE,B12+J6,B12) -> 49
C9: superficie a medir | D9: =D4*(1+D5*0.1+D6*0.5) -> 0 | E9: m2 | H9: =0.75*MODULO/50 -> 8.08185 | I9: 101
H10: =(0.75*MODULO+(D9-100))/50 -> 6.08185 | I10: 1001
B11: =IF(D9<I9,H9,IF(D9<I10,H10,IF(D9<I11,H11,H12))) -> 8.08185 | C11: Valor | D11: =IF(J1=TRUE,31+J2,31) -> 31 | H11: =(3*MODULO+(D9-1000)*0.4)/50 -> 24.3274 | I11: 10001
B12: =IF(B11<49,49,B11) -> 49 | D12: =CONCATENATE(ROUND(D11*IVA,2)," € c/IVA") -> 37,51 € c/IVA | H12: =(12*MODULO+(D9-10000)*0.2)/50 -> 89.3096
C15: URGENTE O RAPIDO
F16: =J2 -> 26

Sheet 4.2.4B (hidden)
A1: ='1'!N17 -> 538.79 | B1: COAM | C1: ='1'!B1 -> PRECIOS DE VISADO PARA LOS TRABAJOS PROFESIONALES v12.02 (21.01.26) | G1: =1+'1'!N18 -> 1.21 | J1: FALSE
A2: FALSE | C2: 4.3.4 TASACIÓN PARCIAL DE EDIFICIOS | J2: 25
A3: FALSE | J3: 200
A4: FALSE | C4: NIVEL VALORACIÓN ESTIMATIVA | J4: 0.1
C5: URGENTE O RAPIDO | E5: =J6 -> 25 | J5: =B11 -> 53
J6: =IF(J5*J4<J2,J2,IF(J5*J4>J3,J3,J5*J4)) -> 25
J7: =IF(A4=TRUE,J5+J6,J5) -> 53
C8: Valor de tasación | E8: miles € | H8: =1.2*MODULO/50 -> 12.93096 | I8: 101
H9: =(1.2*MODULO+(D8-100)*1.6)/50 -> 9.73096 | I9: 601
B10: =IF(E11<53,53,E11) -> 53 | C10: Calculo | D10: =J7 -> 53 | E10: =IF(D8<I8,H8,IF(D8<I9,H9,IF(D8<I10,H10,IF(D8<I11,H11,IF(D8<I12,H12,H13))))) -> 12.93096 | H10: =(3.2*MODULO+(D8-600)*1.2)/50 -> 20.08256 | I10: 1201
B11: =IF(A3=FALSE,B10,B10*0.3) -> 53 | D11: =CONCATENATE(ROUND(D10*IVA,2)," € c/IVA") -> 64,13 € c/IVA | E11: =IF(E10<1.2*MODULO/50,1.2*MODULO/50,E10) -> 12.93096 | H11: =(5*MODULO+(D8-1200)*0.9)/50 -> 32.279 | I11: 2001
H12: =(6.8*MODULO+(D8-2000)*0.7)/50 -> 45.27544 | I12: 6001
H13: =(13.8*MODULO+(D8-6000)*0.6)/50 -> 76.70604

Sheet 4.2.5 (hidden)
A1: ='1'!N17 -> 538.79 | B1: COAM | C1: ='1'!B1 -> PRECIOS DE VISADO PARA LOS TRABAJOS PROFESIONALES v12.02 (21.01.26) | J1: FALSE
A2: FALSE | C2: 4.3.5 TASACIONES DE LAS RENTAS | J2: 26
J3: 205
J4: 0.1
C5: plantas iguales a 1ª | E5: ud. | J5: =B12 -> 49
C6: plantas diferentes | E6: ud. | J6: =IF(J5*J4<J2,J2,IF(J5*J4>J3,J3,J5*J4)) -> 26
J7: =IF(J1=TRUE,B12+J6,B12) -> 49
C9: superficie a medir | D9: =D4*(1+D5*0.1+D6*0.5) -> 0 | E9: m2 | H9: =0.75*MODULO/50 -> 8.08185 | I9: 101
H10: =(0.75*MODULO+(D9-100))/50 -> 6.08185 | I10: 1001
B11: =IF(D9<I9,H9,IF(D9<I10,H10,IF(D9<I11,H11,H12))) -> 8.08185 | C11: Valor | D11: =IF(J1=FALSE,31,31+F16) -> 31 | H11: =(3*MODULO+(D9-1000)*0.4)/50 -> 24.3274 | I11: 10001
B12: =IF(B11<49,49,B11) -> 49 | D12: =CONCATENATE(ROUND(D11*IVA,2)," € c/IVA") -> 37,51 € c/IVA | H12: =(12*MODULO+(D9-10000)*0.2)/50 -> 89.3096
C15: URGENTE O RAPIDO
F16: =J2 -> 26

Sheet 4.2.5B (hidden)
A1: ='1'!N17 -> 538.79 | B1: COAM | C1: ='1'!B1 -> PRECIOS DE VISADO PARA LOS TRABAJOS PROFESIONALES v12.02 (21.01.26) | G1: =1+'1'!N18 -> 1.21 | J1: FALSE
A2: FALSE | C2: 4.3.5 TASACIÓN DE LAS RENTAS | J2: 25
J3: 200
C4: Valor de tasación | E4: miles € | H4: =1.5*MODULO/50 -> 16.1637 | I4: 31 | J4: 0.1
H5: =(1.5*MODULO+(D4-30)*16)/50 -> 6.5637 | I5: 61 | J5: =B6 -> 16.1637
B6: =IF(D4<I4,H4,IF(D4<I5,H5,IF(D4<I6,H6,IF(D4<I7,H7,IF(D4<I8,H8,H9))))) -> 16.1637 | C6: Calculo | D6: =IF(J7<53,53,J7) -> 53 | H6: =(2.7*MODULO+(D4-60)*8)/50 -> 19.49466 | I6: 601 | J6: =IF(J5*J4<J2,J2,IF(J5*J4>J3,J3,J5*J4)) -> 25
D7: =CONCATENATE(ROUND(D6*_IVA1,2)," € c/IVA") -> 64,13 € c/IVA | H7: =(13.5*MODULO+(D4-600)*6)/50 -> 73.4733 | I7: 3001 | J7: =IF(J1=TRUE,J5+J6,J5) -> 16.1637
C8: URGENTE O RAPIDO | H8: =(49.5*MODULO+(D4-3000)*5)/50 -> 233.4021 | I8: 6001 | J8: =IF(J7<53,53,J7) -> 53
F9: =J6 -> 25 | H9: =(87*MODULO+(D4-6000)*4)/50 -> 457.4946

Sheet 4.3.0 (hidden)
A1: ='1'!N17 -> 538.79 | B1: COAM | C1: ='1'!B1 -> PRECIOS DE VISADO PARA LOS TRABAJOS PROFESIONALES v12.02 (21.01.26) | H1: FALSE
A2: FALSE | C2: 4.4 RECONOCIMIENTOS, ANDAMIOS, EXÁMENES Y CONSULTAS | H2: 26
H3: 205
D4: 31 | H4: 0.1
C5: Calculo | D5: =H7 -> 31 | H5: =D4 -> 31
D6: =CONCATENATE(ROUND(D5*IVA,2)," € c/IVA") -> 37,51 € c/IVA | H6: =IF(H5*H4<H2,H2,IF(H5*H4>H3,H3,H5*H4)) -> 26
H7: =IF(H1=TRUE,D4+H6,D4) -> 31
C9: URGENTE O RAPIDO
F10: =H6 -> 26

Sheet 4.4.1 (hidden)
A1: ='1'!N17 -> 538.79 | B1: COAM | C1: ='1'!B1 -> PRECIOS DE VISADO PARA LOS TRABAJOS PROFESIONALES v12.02 (21.01.26) | H1: FALSE
A2: FALSE | C2: 4.5.1 INFORMES, PERITAJES, DICTÁMENES Y CERTIFICADOS | H2: 26
H3: 205
D4: 36 | H4: 0.1
C5: Calculo | D5: =H7 -> 36 | H5: =D4 -> 36
D6: =CONCATENATE(ROUND(D5*IVA,2)," € c/IVA") -> 43,56 € c/IVA | H6: =IF(H5*H4<H2,H2,IF(H5*H4>H3,H3,H5*H4)) -> 26
H7: =IF(H1=TRUE,D4+H6,D4) -> 36
C9: URGENTE O RAPIDO
F10: =H6 -> 26
D11: =D5/3 -> 12 | E11: =D5*2/3 -> 24
D12: =CONCATENATE(ROUND(D11*1.18,2)," € c/IVA") -> 14,16 € c/IVA | E12: =CONCATENATE(ROUND(E11*1.18,2)," € c/IVA") -> 28,32 € c/IVA

Sheet 4.4.2 (hidden)
A1: ='1'!N17 -> 538.79 | B1: COAM | C1: ='1'!B1 -> PRECIOS DE VISADO PARA LOS TRABAJOS PROFESIONALES v12.02 (21.01.26) | J1: FALSE
A2: FALSE | C2: 4.5.3 ARBITRAJES | J2: 25
J3: 200
C4: Cantidad en litigio | E4: miles € | H4: =(MODULO+D4*50)/50 -> 10.7758 | I4: 6.001 | J4: 0.1
H5: =(MODULO+D4*40)/50 -> 10.7758 | I5: 60.001 | J5: =B6 -> 53
B6: =IF(H10<53,53,H10) -> 53 | C6: Calculo | D6: =J7 -> 53 | H6: =(MODULO+D4*30)/50 -> 10.7758 | I6: 300.001 | J6: =IF(J5*J4<J2,J2,IF(J5*J4>J3,J3,J5*J4)) -> 25
D7: =CONCATENATE(ROUND(D6*IVA,2)," € c/IVA") -> 64,13 € c/IVA | H7: =(MODULO+D4*20)/50 -> 10.7758 | I7: 600.001 | J7: =IF(J1=TRUE,B6+J6,B6) -> 53
H8: =(MODULO+D4*10)/50 -> 10.7758
C9: URGENTE O RAPIDO
F10: =J6 -> 25 | H10: =IF(D4<I4,H4,IF(D4<I5,H5,IF(D4<I6,H6,IF(D4<I7,H7,H8)))) -> 10.7758

Sheet 4.5.1C (hidden)
A1: ='1'!N17 -> 538.79 | B1: COAM | C1: ='1'!B1 -> PRECIOS DE VISADO PARA LOS TRABAJOS PROFESIONALES v12.02 (21.01.26)
A2: FALSE | C2: 2.5.1 ARQUITECTURA MONUMENTAL Y CONMEMORATIVA
C3: Presupuesto de ejecución material de la obra (PEM) =
E4: €
A6: =IF(D4=0,0,0.5+(6*((MODULO/D4)^0.2))) -> 0 | C6: Coeficiente CP = | D6: =IF(A6>=2.5,2.5,A6) -> 0
C8: Coeficiente de FASE | D8: ='2.1.1B'!$G$13 -> 0 | O8: FALSE | P8: FALSE | S8: FALSE
O9: FALSE | P9: FALSE | S9: FALSE
O10: FALSE | P10: FALSE | S10: FALSE
B12: =D9*D4*D6/1000 -> 0 | C12: Calculo | D12: =IF(B12>MODULO/40,B12,IF(D9=0,0,MODULO/40)) -> 0 | O12: FALSE | P12: FALSE | Q12: FALSE | R12: FALSE | S12: FALSE
D13: =CONCATENATE(ROUND(D12*1.16,2)," € c/IVA") -> 0 € c/IVA | P13: FALSE | S13: FALSE
C14: El cliente desea que la cuota variable de intervención por visado le sea facturada a su nombre | O14: FALSE | S14: FALSE
D17: Arquitecto | E17: Cliente
D18: =D12/3 -> 0 | E18: =D12*2/3 -> 0

Sheet 4.5.2 (hidden)
A1: ='1'!N17 -> 538.79 | B1: COAM | C1: ='1'!B1 -> PRECIOS DE VISADO PARA LOS TRABAJOS PROFESIONALES v12.02 (21.01.26) | H1: FALSE
A2: FALSE | C2: 4.5.2 EXPEDIENTES DE ACTIVIDAD E INSTALACIONES | H2: 26
H3: 205
D4: =46 -> 46 | H4: 0.1
C5: Calculo | D5: =H7 -> 46 | H5: =D4 -> 46
D6: =CONCATENATE(ROUND(D5*1.18,2)," € c/IVA") -> 54,28 € c/IVA | H6: =IF(H5*H4<H2,H2,IF(H5*H4>H3,H3,H5*H4)) -> 26
H7: =IF(H1=TRUE,D4+H6,D4) -> 46
C8: URGENTE O RAPIDO
F9: =H6 -> 26

Sheet 4.5.3 (hidden)
A1: ='1'!N17 -> 538.79 | B1: COAM | C1: ='1'!B1 -> PRECIOS DE VISADO PARA LOS TRABAJOS PROFESIONALES v12.02 (21.01.26) | H1: FALSE
A2: FALSE | C2: 4.5.3 ARBITRAJES | H2: 26
H3: 205
D4: 36 | H4: 0.1
C5: Calculo | D5: =IF(H1=FALSE,E5,E5+F11) -> 36 | E5: 36 | H5: =D4 -> 36
D6: =CONCATENATE(ROUND(D5*IVA,2)," € c/IVA") -> 43,56 € c/IVA | H6: =IF(H5*H4<H2,H2,IF(H5*H4>H3,H3,H5*H4)) -> 26
H7: =IF(H1=TRUE,D4+H6,D4) -> 36
C10: URGENTE O RAPIDO
F11: =H6 -> 26

Sheet 4.5.6 (hidden)
A1: ='1'!N17 -> 538.79 | B1: COAM | C1: ='1'!B1 -> PRECIOS DE VISADO PARA LOS TRABAJOS PROFESIONALES v12.02 (21.01.26) | H1: FALSE
A2: FALSE | C2: 4.6.1 EXPEDIENTES DE RUINA | H2: 26
H3: 205
C4: El precio de visado para expediente de Ruina Legal serán suma de los correspondientes a los distintos trabajos a realizar (levantamiento de planos, tasación de la edificación y de las reparaciones a efectuar, informe de conclusiones). | H4: 0.1
C5: La cuota por expediente de Ruina Física Inminente se podrán calcular en función el tiempo empleado | H5: =B10 -> 0
H6: =IF(H5*H4<H2,H2,IF(H5*H4>H3,H3,H5*H4)) -> 26
C7: Ruina fisica inminente | H7: =IF(H1=TRUE,B10+H6,B10) -> 0
C8: Nº horas | G8: =D8*MODULO/500 -> 0
G9: =IF(G8<30,30,G8) -> 30
B10: =IF(D8>0,G9,"0") -> 0 | C10: Calculo | D10: =H7 -> 0 | E10: =IF(D8>0,CONCATENATE(ROUND(D10*IVA,2)," € c/IVA"),"") -> 
C12: URGENTE O RAPIDO
F13: =H6 -> 26

Sheet 4.5.5 (hidden)
A1: ='1'!N17 -> 538.79 | B1: COAM | C1: ='1'!B1 -> PRECIOS DE VISADO PARA LOS TRABAJOS PROFESIONALES v12.02 (21.01.26) | G1: =IVA -> 1.21
A2: FALSE | C2: 2.4.1 PROYECTO Y DIRECCIÓN DE DEMOLICIÓN TOTAL DE EDIFICACIONES | G2: 46
A3: 1 | E3: URGENTE O RAPIDO | G3: 26
A4: FALSE | G4: 205
A5: FALSE | F5: =IF(B13*G5<G3,G3,IF(B13*G5>G4,G4,B13*G5)) -> 26 | G5: 0.1
A6: FALSE | G6: =B13 -> 0
C7: Fases del trabajo
C8: Proyecto | G8: =IF(A4=TRUE,0.8,0) -> 0
C9: Dirección de obras | G9: =IF(A5=TRUE,0.2,0) -> 0
G10: =SUM(G8:G9) -> 0
C11: Superficie del edificio | E11: m2 | G11: =MODULO*D11*G10/5000 -> 0
G12: =IF(G11<MODULO/40,MODULO/40,G11) -> 13.46975
B13: =IF(G12>G2,G12,IF(G10=0,0,G2)) -> 0 | C13: Calculo | D13: =IF(A6=TRUE,B13+F5,B13) -> 0
D14: =CONCATENATE(ROUND(D13*G1,2)," € c/IVA") -> 0 € c/IVA

Sheet 4.5.5.b (hidden)
A1: ='1'!N17 -> 538.79 | B1: COAM | C1: ='1'!B1 -> PRECIOS DE VISADO PARA LOS TRABAJOS PROFESIONALES v12.02 (21.01.26) | G1: =IVA -> 1.21
A2: FALSE | C2: 2.4.2 PROYECTO Y DIRECCIÓN DE DEMOLICIÓN PARCIAL DE EDIFICACIONES | G2: 45
A3: 1 | E3: URGENTE O RAPIDO | G3: 26
A4: FALSE | G4: 205
A5: FALSE | F5: =IF(B13*G5<G3,G3,IF(B13*G5>G4,G4,B13*G5)) -> 26 | G5: 0.1
A6: FALSE | G6: =B13 -> 0
C7: Fases del trabajo
C8: Proyecto | G8: =IF(A4=TRUE,0.8,0) -> 0
C9: Dirección de obras | G9: =IF(A5=TRUE,0.2,0) -> 0
G10: =SUM(G8:G9) -> 0
C11: Superficie del edificio | E11: m2 | G11: =MODULO*D11*G10/5000 -> 0
G12: =IF(G11<MODULO/40,MODULO/40,G11) -> 13.46975
B13: =IF(G12>G2,G12,IF(G10=0,0,G2)) -> 0 | C13: Calculo | D13: =IF(A6=TRUE,B13+F5,B13) -> 0
D14: =CONCATENATE(ROUND(D13*G1,2)," € c/IVA") -> 0 € c/IVA

Sheet 4.5.5B (hidden)
A1: ='1'!N17 -> 538.79 | B1: COAM | C1: ='1'!B1 -> PRECIOS DE VISADO PARA LOS TRABAJOS PROFESIONALES v12.02 (21.01.26)
A2: FALSE | C2: 2.4.2 PROYECTO Y DIRECCIÓN DE DEMOLICIÓN PARCIAL DE EDIFICACIONES
A3: 1 | G3: =IF(A3=1,0.0025,0.0035) -> 0.0025
A4: FALSE
A5: FALSE
C7: Fases del trabajo
C8: Proyecto | G8: =IF(A4=TRUE,0.85,0) -> 0
C9: Dirección de obras | G9: =IF(A5=TRUE,0.15,0) -> 0
G10: =SUM(G8:G9) -> 0
C11: Superficie de actuación | E11: m2 | G11: =MODULO*D11*G10/5000 -> 0
G12: =IF(G11<MODULO/40,MODULO/40,G11) -> 13.46975
C13: Calculo | D13: =IF(G12>MODULO/40,G12,IF(G10=0,0,MODULO/40)) -> 0
D14: =CONCATENATE(ROUND(D13*1.18,2)," € c/IVA") -> 0 € c/IVA
C15: El cliente desea que la cuota variable de intervención por visado le sea facturada a su nombre
D18: Arquitecto | E18: Cliente
D19: =D13/3 -> 0 | E19: =D13*2/3 -> 0

Sheet 4.5.7 (hidden)
A1: ='1'!N17 -> 538.79 | B1: COAM | C1: ='1'!B1 -> PRECIOS DE VISADO PARA LOS TRABAJOS PROFESIONALES v12.02 (21.01.26)
A2: FALSE | C2: 4.6.2 INSPECCIÓN TÉCNICA DE EDIFICIOS
C5: Calculo | D5: =(MODULO/18.87) -> 28.5527292
C7: El cliente desea que la cuota variable de intervención por visado le sea facturada a su nombre
D10: Arquitecto | E10: Cliente
D11: =D5/3 -> 9.5175764 | E11: =D5*2/3 -> 19.0351528

Sheet 4.5.7b (hidden)
A1: ='1'!N17 -> 538.79 | B1: COAM | C1: ='1'!B1 -> PRECIOS DE VISADO PARA LOS TRABAJOS PROFESIONALES v12.02 (21.01.26) | J1: FALSE
A2: FALSE | C2: 4.6.2 INSPECCIÓN TÉCNICA DE EDIFICIOS | J2: 25
J3: 200
B4: è | C4: Antigüedad de la contrucción: | E4: años | F4: A= | G4: =IF(D4<20,1,IF(D4<40,1.25,IF(D4<70,1.5,IF(D4<=100,1.75,2)))) -> 1 | J4: 0.1
J5: =C17 -> 35
B6: è | C6: Superficie construida: | E6: m2 | F6: DE= | G6: =IF($D$6>9000,I6,H6) -> 1 | H6: =IF($D$6<301,1,IF($D$6<601,1.1,IF($D$6<1201,1.2,IF($D$6<2401,1.3,IF($D$6<3601,1.4,IF($D$6<6001,1.5,1.6)))))) -> 1 | I6: =IF($D$6<9001,1.6,IF($D$6<12001,1.7,IF($D$6<15001,1.8,IF($D$6<18001,1.9,IF($D$6<21001,2.1,IF($D$6<24001,2.1,IF($D$6<27001,2.2,IF($D$6<30001,2.3,2.4)))))))) -> 1.6 | J6: =IF(J5*J4<J2,J2,IF(J5*J4>J3,J3,J5*J4)) -> 25
J7: =IF(J1=TRUE,C17+J6,C17) -> 35
B8: è | C8: Altura de la construcción: | E8: m | F8: h= | G8: =IF(D8<=6,1,IF(D8<=12,1.25,IF(D8<=24,1.5,IF(D8<=30,1.75,IF(D8<=36,2,IF(D8<=45,2.25,IF(D8<=54,2.5,IF(D8<=60,2.75,2.75+H8*0.1)))))))) -> 1 | H8: =INT((D8-60)/3) -> -20
C9: (aprox. 3m por planta)
B10: è | C10: Tipo de estructura: | F10: E= | G10: =LOOKUP(H10,TABLAITE!I2:J6) -> 0 | H10: 1
C12: Grado de complejidad: | D12: 0.8 | F12: K= | G12: =D12 -> 0.8
D13: Valor erroneo (entre 0,80 y 2,00)
B16: =(MODULO*G4*G6*G8*G10*G12*0.02) -> 0 | C16: Calculo | D16: =J7 -> 35
C17: =IF(B16<35,35,B16) -> 35 | D17: =CONCATENATE(ROUND(D16*IVA,2)," € c/IVA") -> 42,35 € c/IVA
C19: URGENTE O RAPIDO
F20: =J6 -> 25

Sheet 4.6.0 (hidden)
A1: ='1'!N17 -> 538.79 | B1: COAM | C1: ='1'!B1 -> PRECIOS DE VISADO PARA LOS TRABAJOS PROFESIONALES v12.02 (21.01.26) | G1: FALSE
A2: FALSE | C2: 4.6.4 TRABAJOS DE ARQUITECTURA Y DEL ARQUITECTO POR TIEMPO | G2: 26
A3: =MODULO/500 -> 1.07758 | G3: 205
A4: =A3*D4 -> 0 | C4: Nº horas | G4: 0.1
A5: 31 | G5: =B7 -> 31
A6: =IF(A4<A5,A5,A4) -> 31 | C6: Calculo | D6: =A7 -> 31 | G6: =IF(G5*G4<G2,G2,IF(G5*G4>G3,G3,G5*G4)) -> 26
A7: =IF(G1=TRUE,A6+F11,A6) -> 31 | B7: 31 | D7: =CONCATENATE(ROUND(D6*IVA,2)," € c/IVA") -> 37,51 € c/IVA | G7: =IF(G1=TRUE,B7+G6,B7) -> 31
C10: URGENTE O RAPIDO
F11: =G6 -> 26

Sheet 4.6.2 (hidden)
A1: ='1'!N17 -> 538.79 | B1: COAM | C1: ='1'!B1 -> PRECIOS DE VISADO PARA LOS TRABAJOS PROFESIONALES v12.02 (21.01.26) | H1: FALSE
A2: FALSE | C2: 4.6.2 INSPECCION TECNICA DE EDIFICIOS | H2: 26
H3: 205
D4: 30 | H4: 0.1
C5: Calculo | D5: =IF(H1=FALSE,E5,E5+F11) -> 31 | E5: 31 | H5: 31
D6: =CONCATENATE(ROUND(D5*IVA,2)," € c/IVA") -> 37,51 € c/IVA | H6: =IF(H5*H4<H2,H2,IF(H5*H4>H3,H3,H5*H4)) -> 26
H7: =IF(H1=TRUE,D4+H6,D4) -> 30
C10: URGENTE O RAPIDO
F11: =H6 -> 26

Sheet 4.6.2B (hidden)
A1: ='1'!N17 -> 538.79 | B1: COAM | C1: ='1'!B1 -> PRECIOS DE VISADO PARA LOS TRABAJOS PROFESIONALES v12.02 (21.01.26) | H1: FALSE
A2: FALSE | C2: 4.6.3 INFORME DE EVALUACIÓN DE EDIFICIOS | H2: 25
H3: 200
D4: 30 | H4: 0.1
C5: Calculo | D5: =IF(H1=FALSE,E5,E5+F11) -> 30 | E5: 30 | H5: =D4 -> 30
D6: =CONCATENATE(ROUND(D5*IVA,2)," € c/IVA") -> 36,3 € c/IVA | H6: =IF(H5*H4<H2,H2,IF(H5*H4>H3,H3,H5*H4)) -> 25
H7: =IF(H1=TRUE,D4+H6,D4) -> 30
C10: URGENTE O RAPIDO
F11: =H6 -> 25

Sheet 4.6.3 (hidden)
A1: ='1'!N17 -> 538.79 | B1: COAM | C1: ='1'!B1 -> PRECIOS DE VISADO PARA LOS TRABAJOS PROFESIONALES v12.02 (21.01.26) | H1: FALSE
A2: FALSE | C2: 4.6.3 INFORME DE EVALUACIÓN DE EDIFICIOS | H2: 26
H3: 205
D4: 36 | H4: 0.1
C5: Calculo | D5: =H9 -> 36 | E5: 30 | H5: =D4 -> 36
D6: =CONCATENATE(ROUND(D5*IVA,2)," € c/IVA") -> 43,56 € c/IVA | H6: =IF(H5*H4<H2,H2,IF(H5*H4>H3,H3,H5*H4)) -> 26
H7: =IF(H1=TRUE,D4+H6,D4) -> 36
H9: =IF(H1=FALSE,H5,H5+H6) -> 36
C10: URGENTE O RAPIDO
F11: =H6 -> 26

Sheet 4.6.4 (hidden)
A1: ='1'!N17 -> 538.79 | B1: COAM | C1: ='1'!B1 -> PRECIOS DE VISADO PARA LOS TRABAJOS PROFESIONALES v12.02 (21.01.26) | G1: FALSE
A2: FALSE | C2: 4.6.5 LEVANTAMIENTO DE PLANOS | G2: 26
G3: 205
C4: Nº horas | G4: 0.1
G5: =B7 -> 31
C6: Calculo | D6: =G7 -> 31 | G6: =IF(G5*G4<G2,G2,IF(G5*G4>G3,G3,G5*G4)) -> 26
B7: =IF(D4<32,31,D4*MODULO/500) -> 31 | D7: =CONCATENATE(ROUND(D6*IVA,2)," € c/IVA") -> 37,51 € c/IVA | G7: =IF(G1=TRUE,B7+G6,B7) -> 31
C10: URGENTE O RAPIDO
F11: =H7 -> 0

Sheet 4.6.5 (hidden)
A1: ='1'!N17 -> 538.79 | B1: COAM | C1: ='1'!B1 -> PRECIOS DE VISADO PARA LOS TRABAJOS PROFESIONALES v12.02 (21.01.26) | H1: FALSE
A2: FALSE | C2: 4.6.6 REQUERIMIENTOS ADMINISTRATIVOS | H2: 26
H3: 205
D4: 30 | H4: 0.1
C5: Calculo | D5: =H9 -> 31 | H5: 31
D6: =CONCATENATE(ROUND(D5*IVA,2)," € c/IVA") -> 37,51 € c/IVA | H6: =IF(H5*H4<H2,H2,IF(H5*H4>H3,H3,H5*H4)) -> 26
H7: =IF(H1=TRUE,D4+H6,D4) -> 30
H9: =IF(H1=FALSE,H5,H5+H6) -> 31
C10: URGENTE O RAPIDO
F11: =H6 -> 26

Sheet 4.6.6 (hidden)
B1: COAM | C1: ='1'!B1 -> PRECIOS DE VISADO PARA LOS TRABAJOS PROFESIONALES v12.02 (21.01.26)
A2: FALSE | C2: 4.6.7 VISADO URGENTE Y VISADO RAPIDO
C4: Por la urgencia y rapidez en el visado de los trabajos se abonará una tarifa añadida al precio de visado del 10% del precio de visado, con un mínimo de tarifa añadida por urgencia de 26 euros por expediente y un máximo de 205 euros por expediente.
A10: TRUE

Sheet 4.6.7 (hidden)
A1: ='1'!N17 -> 538.79 | B1: COAM | C1: ='1'!B1 -> PRECIOS DE VISADO PARA LOS TRABAJOS PROFESIONALES v12.02 (21.01.26) | H1: FALSE
A2: FALSE | C2: 4.6.8 DOCUMENTOS PARA CONSTANCIA | H2: 26
H3: 205
D4: 31 | H4: 0.1
C5: Calculo | D5: =H7 -> 31 | H5: 31
D6: =CONCATENATE(ROUND(D5*IVA,2)," € c/IVA") -> 37,51 € c/IVA | H6: =IF(H5*H4<H2,H2,IF(H5*H4>H3,H3,H5*H4)) -> 26
H7: =IF(H1=TRUE,D4+H6,D4) -> 31
C8: URGENTE O RAPIDO
F9: =H6 -> 26

Sheet 4.6.8 (hidden)
A1: ='1'!N17 -> 538.79 | B1: COAM | C1: ='1'!B1 -> PRECIOS DE VISADO PARA LOS TRABAJOS PROFESIONALES v12.02 (21.01.26)
A2: FALSE | C2: 4.6.9 TRABAJOS NO INCLUIDOS ANTERIORMENTE
C4: El precio de visado de cualquier tipo de trabajo profesional no incluido en los apartados anteriores se calculará por analogía con el más similar de ellos.

Sheet TABLAITE (hidden)
A1: Antigüedad de construcción | B1: A | C1: Superficie en m2 | D1: DE | E1: Altura en metros | F1: número de plantas | G1: h | H1: Estructura | J1: E
A2: Seleccione valor… | B2: 0 | C2: Seleccione valor… | D2: 0 | E2: Seleccione valor… | G2: 0 | H2: Seleccione valor… | I2: 1
A3: hasta 20 años | B3: 1 | C3: hasta 300 m2 | D3: 1 | E3: hasta 6 m | F3: 1 a 2 plantas | G3: 1 | H3: Hormigón | I3: 2 | J3: 1
A4: de 20 a 40 años | B4: 1.25 | C4: de 301 a 600 m2 | D4: 1.1 | E4: de 6 a 12 m | F4: 3 a 4 plantas | G4: 1.25 | H4: Mixta | I4: 3 | J4: 1.05
A5: de 40 a 70 años | B5: 1.5 | C5: de 601 a 1.200 m2 | D5: 1.2 | E5: de 12 a 24 m | F5: 5 a 8 plantas | G5: 1.5 | H5: Metálica | I5: 4 | J5: 1.1
A6: de 70 a 100 años | B6: 1.75 | C6: de 1.201 a 2.400 m2 | D6: 1.3 | E6: de 24 a 30 m | F6: 8 a 10 plantas | G6: 1.75 | H6: Ladrillo-Madera | I6: 5 | J6: 1.2
A7: más de 100 años | B7: 2 | C7: de 2.401 a 3.600 m2 | D7: 1.4 | E7: de 30 a 36 m | F7: 10 a 12 plantas | G7: 2
C8: de 3.601 a 6.000 m2 | D8: 1.5 | E8: de 36 a 45 m | F8: 12 a 15 plantas | G8: 2.25
C9: de 6.001 a 9.000 m2 | D9: 1.6 | E9: de 45 a 54 m | F9: 15 a 18 plantas | G9: 2.5
C10: de 9.001 a 12.000 m2 | D10: 1.7 | E10: de 54 a 60 m | F10: 18 a 20 plantas | G10: 2.75
C11: de 12.01 a 15.000 m2 | D11: 1.8 | E11: mas 60m | G11: 0.1
C12: de 15.001 a 18.000 m2 | D12: 1.9
C13: de 18.001 a 21.000 m2 | D13: 2
C14: de 21.001 a 24.000 m2 | D14: 2.1
C15: de 24.001 a 27.000 m2 | D15: 2.2
C16: de 27.001 a 30.000 m2 | D16: 2.3
C17: más de 30.001 m2 | D17: 2.4

Sheet TABLAT (hidden)
B1: ='1'!B1 -> PRECIOS DE VISADO PARA LOS TRABAJOS PROFESIONALES v12.02 (21.01.26)
B2: TABLA T. CÓDIGO DEL TIPO DE TRABAJO
B4: EDIFICACIÓN | E4: OTROS DOCUMENTOS Y TRABAJOS DE ARQUITECTURA
C5: Nueva planta | F5: Estudio básico de seguridad y salud, por el/los arquitecto/s
C6: Intervención parcial: ampliación, rehabilitación, reforma… | F6: Estudio de seguridad y salud, por el/los arquitecto/s
C7: Demolición parcial | F7: Coordinación de seguridad y salud, por el/los arquitecto/s
C8: Demolición total | F8: Deslinde y segregación de terrenos y solares
C9: Legalización de edificio u obra | F9: Deslinde de edificaciones
C10: Proyecto parcial | F10: Replanteo
C11: Otros | F11: Medición de terrenos y solares
F12: Medición de edificación
B13: URBANISMO | F13: Tasación de solares
C14: Plan general de ordenación urbana | F14: Tasación de terrenos
C15: Normas subsidiarias | F15: Tasación de edificios
C16: Proyectos de delimitación de suelo urbano | F16: Tasación parcial de edificios
C17: Planes de sectorización y Programas de actuación urbanística | F17: Tasación de las rentas
C18: Planes parciales | F18: Reconocimiento, consulta, andamios
C19: Planes especiales de reforma interior | F19: Informe, peritaje, dictamen, certificado
C20: Estudios de detalle | F20: Expediente de actividad e instalaciones
C21: Catálogos de bienes y espacios protegidos | F21: Arbitraje
C22: Estudios y análisis ambientales | F22: Expediente de ruina
C23: Otros estudios complementarios | F23: ITE; Inspección Técnica de Edificios
C24: Proyectos de reparcelación | F24: IEE; Informe de Evaluación de Edificios
C25: Proyectos de expropiación | F25: Trabajo valorado por tiempo
C26: Proyectos de cooperación | F26: Otros
C27: Proyectos de compensación
C28: Proyectos de parcelación
C29: Obras de urbanización
C30: Obras urbanas (intervención parcial)
C31: Otros

Sheet TABLAU3 (hidden)
B1: COAM | C1: ='1'!B1 -> PRECIOS DE VISADO PARA LOS TRABAJOS PROFESIONALES v12.02 (21.01.26)
C2: TABLA U3 ESTUDIOS Y ANÁLISIS AMBIENTALES
D4: Fase | G4: %
D5: Estudio ambiental (información) | G5: =J5 -> 0.18 | I5: FALSE | J5: 0.18 | K5: =IF(I5=TRUE,J5,0) -> 0 | L5: =IF(I5=TRUE,"a","-") -> -
D6: Análisis ambiental, previo (avance) | G6: =J6 -> 0.22 | I6: FALSE | J6: 0.22 | K6: =IF(I6=TRUE,J6,0) -> 0 | L6: =IF(I6=TRUE,"b","-") -> -
D7: Análisis ambiental | G7: =J7 -> 0.45 | I7: FALSE | J7: 0.45 | K7: =IF(I7=TRUE,J7,0) -> 0 | L7: =IF(I7=TRUE,"c","-") -> -
D8: Análisis ambiental, definitivo (aprobación provisional) | G8: =J8 -> 0.15 | I8: FALSE | J8: 0.15 | K8: =IF(I8=TRUE,J8,0) -> 0 | L8: =IF(I8=TRUE,"d","-") -> -
K9: =SUM(K5:K8) -> 0
G11: =K9 -> 0
F12: =CONCATENATE(L5,L6,L7,L8) -> ----

Sheet TABLAU4 (hidden)
B1: COAM | C1: ='1'!B1 -> PRECIOS DE VISADO PARA LOS TRABAJOS PROFESIONALES v12.02 (21.01.26)
C2: TABLA U4 GESTIÓN URBANÍSTICA: PORCENTAJES POR FASES
D4: Fase | G4: %
D5: Bases y estatutos | G5: =J5 -> 0.1 | I5: FALSE | J5: 0.1 | K5: =IF(I5=TRUE,J5,0) -> 0 | L5: =IF(I5=TRUE,"a","-") -> -
D6: Información y memoria | G6: =J6 -> 0.15 | I6: FALSE | J6: 0.15 | K6: =IF(I6=TRUE,J6,0) -> 0 | L6: =IF(I6=TRUE,"b","-") -> -
D7: Plano (s) de fincas iniciales y resultantes | G7: =J7 -> 0.15 | I7: FALSE | J7: 0.15 | K7: =IF(I7=TRUE,J7,0) -> 0 | L7: =IF(I7=TRUE,"c","-") -> -
D8: Descripciones de cada finca (fichas urbanísticas) | G8: =J8 -> 0.6 | I8: FALSE | J8: 0.6 | K8: =IF(I8=TRUE,J8,0) -> 0 | L8: =IF(I8=TRUE,"d","-") -> -
K9: =SUM(K5:K8) -> 0
G11: =K9 -> 0
F12: =CONCATENATE(L5,L6,L7,L8) -> ----

Sheet USOS (hidden)
A1: Seleccione USO… (coeficiente Qv) | C1: 0 | D1: Coeficiente de minoración
A2: 10 RESIDENCIAL: VIVIENDA Y RESIDENCIA COMUNITARIA | B2: NO VALIDO | C2: - | D2: Intervención Completa | E2: 1
A3: Edificio de viviendas, incluyendo zonas comunes | B3: 10 01 | C3: 1.2 | D3: Estructura | E3: 0.4
A4: Unifamiliar | B4: 10 02 | C4: 1.5 | D4: Estructura, instalaciones, albañileria y acabados | E4: 0.9
A5: Residencia comunitaria: estudiantes, 3ª edad | B5: 10 03 | C5: 1.5 | D5: Instalaciones, albañileria y acabados | E5: 0.7
A6: 11 HOSTELERÍA | B6: NO VALIDO | C6: - | D6: Albañileria y acabados | E6: 0.5
A7: Hotel, apartotel y apartamentos turísticos 4* o mas | B7: 11 01 | C7: 2.3 | D7: Acabados | E7: 0.3
A8: Hoteles, apartotel y otros aloj. turísticos de 3* | B8: 11 02 | C8: 2
A9: Hoteles, apartotel y otros aloj. turísticos de 2* o menos | B9: 11 03 | C9: 1.6
A10: 12 APARCAMIENTO Y DEPENDENCIAS AUXILIARES | B10: NO VALIDO | C10: -
A11: Soportales, porches cubiertos, sótanos y bajo cubierta no vivideros | B11: 12 01 | C11: 0.8
A12: Garaje al aire libre, descubierto o con visera | B12: 12 02 | C12: 0.3
A13: Garaje en planta baja o semisótano | B13: 12 03 | C13: 0.8
A14: Garaje en sótano/s, o planta 1 o superior | B14: 12 04 | C14: 1
A15: 13. OFICINAS Y ADMINISTRATIVO | B15: NO VALIDO | C15: -
A16: Locales de oficinas sin instalaciones | B16: 13 01 | C16: 0.8
A17: Locales de oficinas con instalaciones y acabados | B17: 13 02 | C17: 1.6
A18: Edificios de oficinas y comercial, administrasción pública | B18: 13 03 | C18: 2
A19: Edificio en parque empresarial, sede institucional o ministerial | B19: 13 04 | C19: 2.4
A20: 14. COMERCIAL | B20: NO VALIDO | C20: -
A21: Locales comerciales sin instalaciones | B21: 14 01 | C21: 0.7
A22: Locales comerciales con instalaciones y acabados | B22: 14 02 | C22: 1.4
A23: Gran almacén, edificio en parque comercial | B23: 14 03 | C23: 2.4
A24: 15. INDUSTRIAL | B24: NO VALIDO | C24: -
A25: Nave industrial, almacén sin instalaciones | B25: 15 01 | C25: 0.6
A26: Nave industrial, almacén con instalaciones | B26: 15 02 | C26: 0.8
A27: Edificio industrial o almacén de 2 o más plantas | B27: 15 03 | C27: 1.3
A28: Sede en parque industrial, laboratorios | B28: 15 04 | C28: 2.4
A29: 16. RESTAURACIÓN | B29: NO VALIDO | C29: -
A30: Casa de comidas, bar, taberna | B30: 16 01 | C30: 1.3
A31: Cafetería, pub, autoservicio, restaurante < 3 tenedores | B31: 16 02 | C31: 1.5
A32: Restaurante 3 o mas tenedores | B32: 16 03 | C32: 2
A33: 17. SANITARIO | B33: NO VALIDO | C33: -
A34: Centro de salud, ambulatorio, clínica, consulta | B34: 17 01 | C34: 1.5
A35: Clínica o centro médico o asistencial en edificio exclusivo | B35: 17 02 | C35: 2.4
A36: Hospital | B36: 17 03 | C36: 3
A37: 18. REUNIÓN OCIO Y ESPECTÁCULOS | B37: NO VALIDO | C37: -
A38: Colegio, instituto, academia, guardería, pre-escolar | B38: 18 01 | C38: 1.4
A39: Formación profesional, artes y oficios, centro especializado… | B39: 18 02 | C39: 1.7
A40: Universidad o investigación | B40: 18 03 | C40: 2.2
A41: Centro cívico o social < 500 m2, salas juego o recreo | B41: 18 04 | C41: 1.3
A42: Biblioteca, sala reunión-exposiciones | B42: 18 05 | C42: 1.8
A43: Centro cultural < 1000 m2; club o sede social en edificio exclusivo | B43: 18 06 | C43: 2
A44: Centro cultural 1.000 a 2.000 m2; teatro, cine, discoteca | B44: 18 07 | C44: 2.3
A45: Centro cultural > 2.000 m2; edificio en parque temático | B45: 18 08 | C45: 3
A46: Museo, auditorio, edificio de congresos | B46: 18 09 | C46: 3.5
A47: 19. DEPORTIVO | B47: NO VALIDO | C47: -
A48: Pista deportiva de hierba o especial, drenada, campos de golf | B48: 19 01 | C48: 0.4
A49: Instalación semicerrada (frontón...) | B49: 19 02 | C49: 0.8
A50: Piscina no cubierta | B50: 19 03 | C50: 1.1
A51: Polideportivo < 1.000 m2 | B51: 19 04 | C51: 1.2
A52: Centro polideportivo 1.000 a 5.000 m2, piscina cubierta | B52: 19 05 | C52: 2.1
A53: Centro polideportivo > 5.000 m2 | B53: 19 06 | C53: 2.4
A54: 20. RELIGIOSO Y FUNERARIO | B54: NO VALIDO | C54: -
A55: Local de culto | B55: 20 01 | C55: 1.4
A56: Centro de culto en edificio exclusivo | B56: 20 02 | C56: 2
A57: Tanatorio, crematorio | B57: 20 03 | C57: 1.7
A58: 21. TRANSPORTES (áreas cubiertas) | B58: NO VALIDO | C58: -
A59: Estación de servicio, marquesina, estación de autobuses | B59: 21 01 | C59: 1.7
A60: Intercambiador, estación ferroviaria o de metro | B60: 21 02 | C60: 2.8
A61: 22. URBANIZACIÓN Y ACONDICIONAMIENTO DE TERRENOS | B61: NO VALIDO | C61: -
A62: Espacios acondicionados no cubiertos | B62: 22 01 | C62: 0.2
A63: Zonas cubiertas para instalaciones al aire libre | B63: 22 02 | C63: 1.2
A64: Graderío descubierto | B64: 22 03 | C64: 0.8
A65: Graderío cubierto | B65: 22 04 | C65: 2
A66: Tratamiento de suelo natural en parcela o urbano | B66: 22 05 | C66: 0.05
A67: Ajardinamiento | B67: 22 06 | C67: 0.1
A68: Viario | B68: 22 07 | C68: 0.3

Sheet JCALCULO (hidden)
E3: REDONDEO 1 | F3: REDONDEO 2 | G3: SIN REDONDEO | H3: FORMULA A EMPLEAR
C5: 299 | E5: =ROUND((2.6+10.2*((200/C5)^0.2)),1) -> 12 | F5: =ROUND((2.6+10.2*((200/C5)^0.2)),2) -> 12.01 | G5: =2.6+10.2*((200/C5)^0.2) -> 12.0117836 | H5: =IF(G5>11.75,11.75,IF(G5<4.457,4.45,ROUND(G5,1))) -> 11.75
C6: 300 | D6: 11.75 | E6: =ROUND((2.6+10.2*((200/C6)^0.2)),1) -> 12 | F6: =ROUND((2.6+10.2*((200/C6)^0.2)),2) -> 12.01 | G6: =2.6+10.2*((200/C6)^0.2) -> 12.0055007 | H6: 11.75
C7: 301 | E7: 12 | F7: 12 | G7: 11.99924287 | H7: 11.75
C8: 344.29 | G8: 11.75000411 | H8: 11.75
C9: 400 | D9: 11.5 | E9: 11.5 | F9: 11.48 | G9: 11.47961575 | H9: 11.5
C10: 600 | D10: 10.8 | E10: 10.8 | F10: 10.79 | G10: 10.78796393 | H10: 10.8
C11: 800 | D11: 10.3 | E11: 10.3 | F11: 10.33 | G11: 10.33015449 | H11: 10.3
C12: 1000 | D12: 10 | E12: 10 | F12: 9.99 | G12: 9.99275257 | H12: 10
C13: 2000 | D13: 9 | E13: 9 | F13: 9.04 | G13: 9.035764914 | H13: 9
C14: 3000 | D14: 8.6 | E14: 8.5 | F14: 8.53 | G14: 8.534469743 | H14: 8.5
C15: 5000 | D15: 8 | E15: 8 | F15: 7.96 | G15: 7.958116721 | H15: 8
C16: 8000 | D16: 7.5 | E16: 7.5 | F16: 7.48 | G16: 7.477397749 | H16: 7.5
C17: 12000 | D17: 7.1 | E17: 7.1 | F17: 7.1 | G17: 7.097487052 | H17: 7.1
C18: 20000 | D18: 6.7 | E18: 6.7 | F18: 6.66 | G18: 6.66069314 | H18: 6.7
C19: 35000 | D19: 6.2 | E19: 6.2 | F19: 6.23 | G19: 6.230718365 | H19: 6.2
C20: 80000 | D20: 5.7 | E20: 5.7 | F20: 5.68 | G20: 5.677429932 | H20: 5.7
C21: 120000 | D21: 5.4 | E21: 5.4 | F21: 5.44 | G21: 5.437722487 | H21: 5.4
C22: 200000 | D22: 5.2 | E22: 5.2 | F22: 5.16 | G22: 5.16212416 | H22: 5.2
C23: 400000 | D23: 4.8 | E23: 4.8 | F23: 4.83 | G23: 4.830458631 | H23: 4.8
C24: 700000 | D24: 4.6 | E24: 4.6 | F24: 4.59 | G24: 4.59428197 | H24: 4.6
C25: 999934.01 | E25: 4.5 | F25: 4.46 | G25: 4.456999996 | H25: 4.45
C26: 999999 | E26: 4.5 | F26: 4.46 | G26: 4.456975858 | H26: 4.45
C27: 1000000 | D27: 4.45 | E27: 4.5 | F27: 4.46 | G27: 4.456975487 | H27: 4.45
C28: 1000001 | E28: 4.5 | F28: 4.46 | G28: 4.456975116 | H28: =IF(G28>11.75,11.75,IF(G28<4.457,4.45,ROUND(G28,1))) -> 4.45
C29: =SI(G6>11,75;11,75;SI(G6<4,457;4,45;REDONDEAR(2,6+10,2*((200/C5)^0,2);1)))
